{"text_format":"1","workbook":"xlsx","n_sheets":8,"sheets":["Ohjeet","Rajaukset","Viherkerroin","Tulokset","Uudet elementit_painotukset","Lisatietoa","Kelpoisuusehdot","Hulevesiratkaisut"],"not_rendered":{"charts":3,"images":29,"macros":0,"external_links":0,"defined_names":9,"comments":3,"pivot_tables":0},"unopened":[],"bounds":{"document_bytes":16777216,"sheet_cells":100000,"rows_first":2000,"rows_last":500,"rows_between":2000,"halvings":0,"cell_chars":16384,"cell_head_chars":4096},"cells_cut":0,"cells_raw":0,"read":"whole","date_system":"1900"}

{"sheet":"Ohjeet","index":0,"n_rows":27,"n_cols":6,"rows_kept":27,"cut":false,"hidden":false,"merged":[[22,1,22,2],[23,1,23,2],[26,2,26,3],[17,1,17,2],[18,1,18,2],[19,1,19,2],[20,1,20,2],[21,1,21,2],[14,1,14,2],[15,1,15,2],[16,1,16,2],[8,1,8,2],[10,1,10,2],[11,1,11,2],[12,1,12,2],[3,1,3,2],[5,1,5,2],[7,1,7,2],[6,1,6,2],[13,1,13,2],[4,1,4,2]]}
[]
[null,"Ohjeet työkalun käyttöön","Versio 5/2022",null,null,"Käsitteet"]
[]
[null,"1) Siirtymät sivujen välillä"]
[null,"Voit siirtyä välilehtien välillä näkymän alalaidassa olevien välilehtikuvakkeiden avulla (\"Ohjeet\", \"Rajaukset\", \"Viherkerroin\", \"Tulokset\", \"Hulevesiratkaisut\"). Näkymän alalaidassa on myös valintanappeja, jotka mahdollistavat siirtymät välilehtien välillä. Painamalla \"Edellinen\"-nappulaa, pääset edelliselle välilehdelle, ja painaessasi \"Seuraava\"-nappia, voit siirtyä seuraavalle välilehdelle. \"Ohjeet\"-valintanappia painamalla on mahdollista palata tälle välilehdelle tarvittaessa. Luettuasi ohjeen loppuun, paina \"Aloita\"-valintanappia.",null,null,null,"Tavoitetaso = viherkertoimen taso, johon Viherkerroin-taulukkoa täyttäessä pyritään. Määrittyy automaattisesti maankäytön mukaan."]
[null,"2) Rajaukset"]
[null,"Rajaukset-välilehdellä määritellään viherkertoimen tavoitetasoon vaikuttavat korttelin tai tontin sekä ympäröivän alueen ominaispiirteet. Lomakkeen täyttäminen aloitetaan lisäämällä ylälaitaan päivämäärä sekä tunnistetiedot (kohteen ja täyttäjän nimet, korttelinumero sekä tonttinumero). Seuravaksi määritellään lomakkeen oikeaan reunaan laskentaan tarvittavat tiedot: \"Korttelin / tontin pinta-ala, m²\", \"Rakennusten peittopinta-ala, m²\" ja \"Kerrosala, k-m²\". Syötettyjen tietojen perusteella päivittyvät kentät \"Rakennusten peittämä ala suhteessa pinta-alaan\" (rakennusten peittopinta-ala jaettuna tontin / korttelin pinta-alalla) ja \"Kerrosalan suhden pinta-alaan (tehokkuusluku)\" (rakennusten kerrosala jaettuna tontin / korttelin pinta-alalla). Kohteen tunnistetiedot tulostuvat automaattisesti Viherkerroin- ja Tulokset-välilehdille.",null,null,null,"Rakennusten peittopinta-ala, m² = rakennusten (mukaan lukien katokset) peittämä maa-ala (m²)"]
[null,"Kysymykset-kohdassa määritetään korttelin / tontin ja ympäröivän alueen ominaispiirteitä kuvaavat 7 rajausta valitsevalla sopivin Vastaus-kohdista. Valintojen perusteella muodostuvat tontin \"Tavoitetaso\" sekä \"Laskennassa huomioitavat asiat\". Huomioitavat asiat tuovat esiin kohteen ominaisuuksien perusteella tärkeitä suunnittelukysymyksiä sekä mahdollisesti vaadittavia elementtityyppejä (esim. hulevesirakenne, säilytettävä elementti). Nämä tiedot tulee huomioida viherkertoimen laskennassa ja tulosten arvioinnissa.",null,null,null,"Kerrosala, k-m² = rakennuksen kaikkien kerrosten alojen yhteenlaskettu pinta-ala (k-m²)"]
[null,"Hulevesien hallintaratkaisun keskisyvyyden laskenta -laatikko tarjoaa apua Kysymyksissä 6 ja 7 tarvittavan hulevesiratkaisujen viivytyskerroksen keskisyvyyden laskentaan. Kuvissa 1 ja 2 havainnollistetaan laskennassa tarvittavia tietoja. Kenttiin syötetään \"Rakenteen pohjan pinta-ala, m² (A1)\", \"Rakenteen ylimmän vesipinnan pinta-ala, m² (A2)\" sekä \"Maksimisyvyys\" (h). Näiden pohjalta muodostuu automaattisesti laskennallinen \"Keskisyvyys\". Rakenteen keskisyvyys on usein pienempi kuin maksimisyvyys rakenteen muodon vuoksi. Loivaluiskaisen rakenteen keskisyvyys on merkittävästi pienempi (0,3-0,5- kertainen) kuin maksimisyvyys. Jos pidätysrakenteessa on pysyvän vesipinnan (ylivuotoputken) yläpuolella viivytystilavuutta, voidaan viivytyskerrokselle laskea keskisyvyys. Myös imeytysrakenteelle voidaan laskea viivytystä, jos rakenne on suunniteltu siten, että vesi viipyy (lammikoituu) maakerrosten päällä ennen imeytymistä. Biosuodatusrakenteiden suositeltu viivytyskerroksen maksimisyvyys (h) on noin 0,3 m."]
[null,"3) Viherkerroinlaskenta"]
[null,"Viherkerroin-välilehdellä täytetään tontille kaavaillut elementit: säilytettävä kasvillisuus ja maaperä, istutettava ja kylvettävä kasvillisuus, käytettävät pinnoitteet ja hulevesienhallintarakenteet sekä (edellä mainittujen elementtityyppien kanssa osittain päällekkäiset) bonuselementit. "]
[null,"\"Elementin määritelmä\" -sarake sisältää kuvauksen kustakin elementistä. Lisätietoa elementeistä (kasvualustan syvyys, painotuksen muodostuminen) saa painamalla \"Lisätietoa\"-valintanappia elementtityyppi-sarakkeessa, jolloin \"Lisätietoa\"-välilehti aukeaa. Takaisin Viherkerroin-välilehdelle pääsee \"Takaisin\"-nappulaa painamalla."]
[null,"\"Pinta-ala tai lukumäärä\" -sarakkeeseen syötetään elementtejä koskevat määrätiedot \"Yksikkö\"-sarakkeen kertomassa muodossa (kpl, m²). Muut tiedot päivittyvät välilehdelle automaattisesti. "]
[null,"\"Painotus\"-sarakkeessa näkyy kullekin elementille määritetty painotus. \"Painotettu pinta-ala, m²\" -sarakkeeseen muodostuu syötetyn pinta-alan tai lukumäärän ja painotuksen tulo huomioiden esimerkiksi puille määritetyn keskimääräisen latvuspinta-alan, jonka saa esiin \"Elementin määritelmä\" -sarakkeen lisätieto-kommenteista."]
[null,"Välilehden vasempaan yläkulmaan päivittyy automaattisesti yhteenlasketun painotetun pinta-alan ja tontin kokonaispinta-alan perusteella laskettu \"Viherkerroin\". "]
[null,"4) Hulevesimäärän laskenta"]
[null,"Viherkerroin-välilehdellä on lisäksi arvioitu tontin kokonaisvalumakerroin ja sen perusteella viivytystilavuustarve tontilla. "]
[null,"Kaikille elementtityypeille on arvioitu oma valumakerroin, sen pohjalla lasketaan automaattisesti tontin keskimääräinen \"Valumakerroin C\". "]
[null,"\"Viivytystilavuustarve tontilla m3\" perustuu sademäärään (\"Sadanta\"). Tavallinen tontin mitoitussade hulevesien viivyttämiseksi on 10min kerran 5:ssä vuodessa sadetapahtuma, sen sademäärä on noin 150 l/s*ha eli ~10mm. Tilastollisten tutkimusten mukaan Suomessa noin 85-90% sadetapahtumien sademäärästä on 10mm tai vähemmän. Hulevesimäärä on laskettu seuraavsti: Tontin pinta-ala * tontin keskimääräinen valumakerroin * sademäärä."]
[null,"Hulevesiratkaisut-välilehdellä on lisätietoa rakenteiden ominaisuuksista (mm. viivytys ja biosuodatus)."]
[null,"5) Tulokset"]
[null,"Tulokset-välilehdellä ovat viherkertoimen laskennasta saadut tulokset. Kuvaajat ja taulukot kertovat viherkertoimen muodostumiseen vaikuttavista tekijöistä ja erilaisten elementtien hyödyntämisasteesta. Kuvaaja \"Osuus Viherkertoimen painotetusta kokonaispinta-alasta, %\" kertoo, kuinka suurta osuutta kukin elementtikategoria vastaa lopullisesta Viherkerroin-luvusta. Kuvaaja \"Laskennassa painottuneet tekijät, %\" kertoo elementtien painotuksessa huomioitujen tekijöiden (ekologisuus, toiminnallisuus, maisema-arvo, kunnossapito, hulevesi) suhteellisen merkityksen viherkertoimessa. Kunkin elementin saamat painoarvot ovat tarkastettavissa Lisätietoa-välilehdellä (Viherkerroin-välilehden valintanapit)."]
[null,"Kohdassa \"Täyttäjän kommentit\" on mahdollista lisätä kommentteja laskennasta omaksi tiedoksi tai muiden tulosten tarkastelijoiden käyttöön. Kohtaan \"Huomioitavat asiat\" tulostuu automaattisesti laskennan tuloksia ja muita huomioitavia asioita. "]
[null,"Luettuasi ohjeen loppuun, paina \"Aloita\"-valintanappia tai siirry haluamallesi välilehdelle alalaidassa olevien välilehtikuvakkeiden avulla."]
[]
[]
[null,null,"Aloita"]

{"sheet":"Rajaukset","index":1,"n_rows":77,"n_cols":10,"rows_kept":77,"cut":false,"hidden":false,"merged":[[24,9,25,9],[26,9,36,9],[10,32,10,33],[17,3,17,6],[18,3,18,6],[19,3,19,6],[20,3,20,6],[21,3,21,6],[24,1,25,6],[77,3,77,5],[12,1,15,1],[12,2,15,2],[10,7,11,7],[10,3,11,6],[10,2,11,2],[10,1,11,1],[73,3,73,5],[19,1,21,1],[38,1,38,2],[71,3,71,7]]}
[]
[null,"Päivämäärä",null,"Täyttäjän nimi",null,"Korttelinumero"]
[]
[]
[null,null,null,"Kohteen nimi (osoite) ",null,"Tonttinumero"]
[]
[]
[]
[null,"Ohjeet",null,null,null,null,null,"Seuraava"]
[]
[null,"Rajaukset","Nro","Kysymys",null,null,null,"Vastaus",null,"Tavoitetaso"]
[null,null,null,null,null,null,null,null,null,{"$f":"OFFSET(B56,0,C58)-IF(C59=1,0.1,0)-IF(C63=2,0.2,0)+IF(AND(C59=1,C63=2),0.1,0)","v":0.9}]
[null,"Suunniteltu maankäyttö",1,"Asuinalueet",null,null,null,null,null,"Korttelin / tontin pinta-ala, m²"]
[null,null,null,"Palvelujen alueet ja toimistorakentamisen alueet"]
[null,null,null,"Kaupan- ja liikerakentamisen alueet",null,null,null,null,null,"Rakennusten peittopinta-ala, m²"]
[null,null,null,"Teollisuustoimintojen ja logistiikan alueet"]
[null,"Suunniteltu pihatyyppi",2,"Onko kansipihan osuus yli 50 % pihan pinta-alasta?",null,null,null,null,null,"Kerrosala, k-m²"]
[null,"Ympäröivät alueet",3,"Onko ≤ 50 m etäisyydellä tontista luonnonsuojelualuetta/vesistöä/luonnonkasvillisuudesta koostuvaa viherkäytävää? "]
[null,"Maaperä lähtötilanteessa",4,"Onko läpäisevän maa-aineksen syvyys vähintään 1 m (kallioperän tai pohjaveden pinnan tason päällä) vähintään 50 %:lla pihan pinta-alasta?",null,null,null,null,null,"Rakennusten peittämä ala suhteessa pinta-alaan"]
[null,"Suunnitellut hulevesiratkaisut",5,"Mikä on arvioitu viivytysalueen (Kuva 1) toteutuskelpoisen viivytystilan keskisyvyys (m)? 1) ",null,null,null,0,null,{"$f":"J16/J14","v":{"$error":"#DIV/0!"}}]
[null,null,6,"Mikä on arvioitu biosuodatusrakenteen (Kuva 2) päällä olevan viivytystilan keskisyvyys (m)? 1) ",null,null,null,0,null,"Kerrosalan suhde pinta-alaan (tehokkuusluku)"]
[null,null,7,"Onko mahdollista hyödyntää tontin lähialueita viivytykseen? Miten suurelle osuudelle hulevesimäärästä/viivytystarpeesta (%)?",null,null,null,0,null,{"$f":"J18/J14","v":{"$error":"#DIV/0!"}}]
[]
[]
[null,"Hulevesien hallintaratkaisun keskisyvyyden laskenta",null,null,null,null,null,null,null,"Laskennassa huomioitavat asiat"]
[]
[null,null,null,null,null,null,null,null,null,{"$f":"Rajaukset!D72","v":""}]
[]
[]
[]
[]
[null,null,null,null,null,"Rakenteen pohjan pinta-ala, m² (A1)"]
[]
[null,null,null,null,null,"Rakenteen ylimmän vesipinnan pinta-ala, m² (A2)"]
[]
[null,null,null,null,null,"Viivytyskerroksen maksimisyvyys, m (h)"]
[]
[null,null,null,null,null,"Keskisyvyys (h)"]
[null,"Kuva 1. Viivytysalue",null,"Kuva 2. Biosuodatusrakenne",null,{"$f":"(F33+F35)/(2*F35)*F37","v":{"$error":"#DIV/0!"}}]
[]
[]
[null,"1) Viivytyskerros = hulevesien hallintaratkaisun (biosuodatus, imeytys, pidätys, viivytys) tila, jossa vesi viipyy / lammikoituu, mutta ei muodosta pysyvää vesipintaa:"]
[null,"esim. viivytys- tai pidätysrakenteen pysyvän vesipinnan (ja ylivuotoputken) yläpuolinen kerros; biosuodatusrakenteen kasvualustan yläpuolelle muodostuva lammikoitumisalue"]
[]
[]
[]
[]
[]
[]
["piilotettava alue; ei lukitusta, jotta logiikka toimii. "]
[]
[]
[]
[]
[]
[null,"Tavoitetaso:",0.9,0.8,0.7,0.5]
[]
[1,"Suunniteltu maankäyttö",1]
[2,"Suunniteltu pihatyyppi",2,{"$f":"IF(C59=1,\"- Kansipihan osuus > 50%; Tavoitetasoa laskettu.\",\"\")","v":""}]
[null,"huomio: lisää vihekattoa",null,{"$f":"IF(AND(C59=1,SUM(Viherkerroin!G21:G23)=0),\"- Suositeltavaa lisätä viherkattoa.\",\"\")","v":""}]
[null,"huomio: kansipihan rajoitukset",null,{"$f":"IF(AND(C59=1,SUM(Viherkerroin!G2:G7,Viherkerroin!G20,Viherkerroin!G24:G27,Viherkerroin!G29,)>0),\"- Huom. Kannen rajoitukset säilytettävän kasvillisuuden, isojen puiden ja hulevesiratkaisujen osalta!\",\"\")","v":""}]
[3,"ympäröivät alueet",2,{"$f":"IF(C62=1,\"- Lähellä luonnonsuojelualuetta/ vesistöä/ luonnonkasvillisuudesta koostuvaa viherkäytävää; suositeltavaa säilyttää tontilla kasvillisuutta!\",\"\")","v":""}]
[4,"Maaperä lähtötilanteessa",1,{"$f":"IF(C63=2,\"- Läpäisevä maaperäkerros rajallinen; Tavoitetasoa laskettu. Suositeltavaa hyödyntää viherkattoa ja runsaasti kasvillisuutta.\",\"\")","v":""}]
[5,"Viivytys ja pidätys",{"$f":"H20","v":0},{"$f":"IF(AND(C64>0,C69<=0),\"- Lisää viivyttävä rakenne!\",\"\")","v":""}]
[6,"Biosuodatus",0,{"$f":"IF(AND(C65>0,C70<=0),\"- Lisää biosuodatusrakenne!\",\"\")","v":""}]
[7,"Lähialueiden hyödyntäminen viivytykseen",{"$f":"H22","v":0},{"$f":"IF(C66>0,\"- Tontin ulkopuolisia alueita hyödynnetään hulevesien viivytykseen!\",\"\")","v":""}]
[]
[null,"Hulevesirakennetarkistus ja huomiot:"]
[null,"viivytysrak. Syvyys puuttuu",{"$f":"SUM(Viherkerroin!G24+Viherkerroin!G25+Viherkerroin!G26+Viherkerroin!G27)","v":0},{"$f":"IF(AND(C64<=0,C69>0),\"- Määritä viivytysrakenteen viivytystilan keskisyvyys (Rajaukset: Kysymys 5)!\",\"\")","v":""}]
[null,"biosuodatusrak. Syvyys puuttuu",{"$f":"SUM(Viherkerroin!G20,Viherkerroin!G29)","v":0},{"$f":"IF(AND(C65<=0,C70>0),\"- Määritä biosuodatusrakenteen viivytystilan keskisyvyys (Rajaukset: Kysymys 6)!\",\"\")","v":""}]
[]
[null,"RAJAUKSET-välilehdelle tulostuvat \"Huomioitavat asiat\":",null,{"$f":"D59&IF(D59<>\"\",CHAR(10),\"\")&D60&IF(D60<>\"\",CHAR(10),\"\")&D62&IF(D62<>\"\",CHAR(10),\"\")&D61&IF(D61<>\"\",CHAR(10),\"\")&D63&IF(D63<>\"\",CHAR(10),\"\")&D64&IF(D64<>\"\",CHAR(10),\"\")&D65&IF(D65<>\"\",CHAR(10),\"\")&D66&IF(D66<>\"\",CHAR(10),\"\")&D69&IF(D69<>\"\",CHAR(10),\"\")&D70&IF(D70<>\"\",CHAR(10),\"\")","v":""}]
[]
[null,"VIHERKERROIN-välilehdelle tulostuvat (elementteihin liittyvät) \"Huomioitavat asiat\":",null,{"$f":"D59&IF(D59<>\"\",CHAR(10),\"\")&D60&IF(D60<>\"\",CHAR(10),\"\")&D63&IF(D63<>\"\",CHAR(10),\"\")&D62&IF(D62<>\"\",CHAR(10),\"\")&D61&IF(D61<>\"\",CHAR(10),\"\")&D64&IF(D64<>\"\",CHAR(10),\"\")&D65&IF(D65<>\"\",CHAR(10),\"\")&D69&IF(D69<>\"\",CHAR(10),\"\")&D70&IF(D70<>\"\",CHAR(10),\"\")","v":""}]
[]
[null,"TULOKSET: jää viivyttämättä, m3:",{"$f":"Tulokset!C21","v":{"$error":"#DIV/0!"}},{"$f":"IF(C76>0,\"- Osa hulevesistä jää viivyttämättä!\",\"\")","v":{"$error":"#DIV/0!"}}]
[null,"TULOKSET-välilehdelle tulostuvat \"Huomioitavat asiat\":",null,{"$f":"D59&IF(D59<>\"\",CHAR(10),\"\")&D63&IF(D63<>\"\",CHAR(10),\"\")&D62&IF(D62<>\"\",CHAR(10),\"\")&D61&IF(D61<>\"\",CHAR(10),\"\")&D66&IF(D66<>\"\",CHAR(10),\"\")&D76&IF(D76<>\"\",CHAR(10),\"\")","v":{"$error":"#DIV/0!"}}]

{"sheet":"Viherkerroin","index":2,"n_rows":43,"n_cols":28,"rows_kept":43,"cut":false,"hidden":false,"merged":[[1,2,4,2],[30,2,39,2],[9,0,11,0],[19,2,27,2],[16,2,17,2],[6,2,14,2],[1,0,2,0],[12,0,13,0],[19,0,30,0]]}
["Viherkerroin",null,"Elementti-tyyppi",null,"Elementin määritelmä","Yksikkö","Pinta-ala tai lukumäärä","Painotus","\"TO HIDE\" Pinta-ala, m²","Painotettu pinta-ala, m²","Valuma-kerroin C",null,null,null,null,null,"\"TO HIDE\" \"pinnoiteet kaikki\"","\"TO HIDE\" \"pinnoiteet veg covered\"","\"TO HIDE\" ylläkerros","\"TO HIDE\" allakerros","\"TO HIDE\" \"pinnoiteet kaikki\"","\"TO HIDE\" \"pinnoiteet veg covered\"","\"TO HIDE\" ylläkerros","\"TO HIDE\" allakerros",null,null,"\"TO HIDE\" koko valumakerroin","\"TO HIDE\" valumakerroin ilman säilyt."]
[{"$f":"A9/A7","v":{"$error":"#DIV/0!"}},null,"Säilytettävä kasvillisuus ja maaperä",null,"Säilytettävä hyväkuntoinen isokokoinen (täysikasvuisena > 10 m) puu, vähintään 3 m  (à 25 m²)","kpl",null,{"$f":"'Uudet elementit_painotukset'!M2","v":3.4673611111111109},{"$f":"G2*25","v":0},{"$f":"G2*25*H2","v":0},0.1,null,null,null,null,null,null,null,{"$f":"I2","v":0},null,{"$f":"Q2*K2","v":0},{"$f":"R2*K2","v":0},{"$f":"S2*K2","v":0},{"$f":"T2*K2","v":0},null,null,{"$f":"I2*K2","v":0}]
[null,null,null,null,"Säilytettävä hyväkuntoinen, pienikokoinen (täysikasvuisena ≤ 10 m) puu, vähintään 3 m  (à 15 m²)","kpl",null,{"$f":"'Uudet elementit_painotukset'!M3","v":3.0322916666666666},{"$f":"G3*15","v":0},{"$f":"G3*15*H3","v":0},0.1,null,null,null,null,null,null,null,{"$f":"I3","v":0},null,0,0,0,0,null,null,0]
["Tavoitetaso",null,null,null,"Säilytettävä hyväkuntoinen puu (1,5-3 m) tai iso pensas  (à 3 m²)","kpl",null,{"$f":"'Uudet elementit_painotukset'!M4","v":2.3583333333333329},{"$f":"G4*3","v":0},{"$f":"G4*3*H4","v":0},0.15,null,null,null,null,null,null,null,{"$f":"I4","v":0},null,0,0,0,0,null,null,0]
[{"$f":"Rajaukset!J12","v":0.9},null,null,null,"Säilytettävä luonnonniitty tai luonnonmukainen pohjakasvillisuus","m²",null,{"$f":"'Uudet elementit_painotukset'!M5","v":2.2069444444444444},{"$f":"G5","v":0},{"$f":"G5*H5","v":0},0.1,null,null,null,null,null,null,{"$f":"I5","v":0},null,null,0,0,0,0,null,null,0]
["Tontin pinta-ala, m²",null,"Lisätietoa",null,"Säilytettävä luonnonmukainen avokallio (ainakin osittain paljas kalliopinta, vähäisesti puustoa)","m²",null,{"$f":"'Uudet elementit_painotukset'!M6","v":1.8645833333333333},{"$f":"G6","v":0},0,0.7,null,null,null,null,null,null,{"$f":"I6","v":0},null,null,0,0,0,0,null,null,0]
[{"$f":"Rajaukset!J14","v":0},null,"Istutettava / kylvettävä kasvillisuus",null,"Isokokoinen puu, täysikasvuisena > 10 m  (à 25 m²)","kpl",null,{"$f":"'Uudet elementit_painotukset'!M7","v":2.8107638888888884},{"$f":"G7*25","v":0},{"$f":"G7*25*H7","v":0},0.1,null,null,null,null,null,null,null,{"$f":"I7","v":0},null,0,0,0,0,null,null,0,{"$f":"I7*K7","v":0}]
["Painotettu pinta-ala yht., m²",null,null,null,"Pienikokoinen puu, täysikasvuisena ≤ 10 m  (à 15 m²)","kpl",null,{"$f":"'Uudet elementit_painotukset'!M8","v":2.2913194444444445},{"$f":"G8*15","v":0},{"$f":"G8*15*H8","v":0},0.1,null,null,null,null,null,null,null,{"$f":"I8","v":0},null,0,0,0,0,null,null,0,0]
[{"$f":"SUM(J2:J41)","v":0},null,null,null,"Isot pensaat  (à 3 m²)","kpl",null,{"$f":"'Uudet elementit_painotukset'!M9","v":1.7017361111111107},{"$f":"G9*3","v":0},{"$f":"G9*3*H9","v":0},0.1,null,null,null,null,null,null,null,{"$f":"I9","v":0},null,0,0,0,0,null,null,0,0]
["Viivytystilavuustarve tontilla m3",null,null,null,"Muut pensaat  ","m²",null,{"$f":"'Uudet elementit_painotukset'!M10","v":1.4180555555555554},{"$f":"G10","v":0},0,0.15,null,null,null,null,null,null,{"$f":"I10","v":0},null,null,0,0,0,0,null,null,0,0]
[null,null,null,null,"Perennat","m²",null,{"$f":"'Uudet elementit_painotukset'!M11","v":1.6315972222222221},{"$f":"G11","v":0},0,0.2,null,null,null,null,null,{"$f":"I11","v":0},null,null,null,0,0,0,0,null,null,0,0]
[null,null,null,null,"Niitty tai keto","m²",null,{"$f":"'Uudet elementit_painotukset'!M12","v":1.7711805555555553},0,0,0.2,null,null,null,null,null,{"$f":"I12","v":0},null,null,null,0,0,0,0,null,null,0,0]
[{"$f":"A18*A16*A7/1000","v":{"$error":"#DIV/0!"}},null,null,null,"Viljelypalstat ","m²",null,{"$f":"'Uudet elementit_painotukset'!M13","v":2.0093749999999999},0,0,0.3,null,null,null,null,null,{"$f":"I13","v":0},null,null,null,0,0,0,0,null,null,0,0]
[null,null,null,null,"Nurmikko","m²",null,{"$f":"'Uudet elementit_painotukset'!M14","v":1.101736111111111},0,0,0.25,null,null,null,null,null,null,{"$f":"I14","v":0},null,null,0,0,0,0,null,null,0,0]
["Sadanta mm",null,null,null,"Monivuotiset köynnökset  (à 2 m²)","kpl",null,{"$f":"'Uudet elementit_painotukset'!M15","v":1.5767361111111109},{"$f":"G15*2","v":0},{"$f":"G15*2*H15","v":0},0.15,null,null,null,null,null,{"$f":"I15","v":0},null,null,null,0,0,0,0,null,null,0,0]
[10,null,"Lisätietoa","i","Viherseinä, vertikaalinen pinta-ala","m²",null,{"$f":"'Uudet elementit_painotukset'!M16","v":0.93159722222222219},{"$f":"G16","v":0},0,"-",null,null,null,null,null,{"$f":"I16","v":0}]
["Valumakerroin C",null,"Pinnoitteet","i","Puoliläpäisevät pinnoitteet (esim. nurmikivi, kivituhka, terassi)","m²",null,{"$f":"'Uudet elementit_painotukset'!M17","v":1.020486111111111},0,{"$f":"G17*H17","v":0},0.6,null,null,null,null,null,null,{"$f":"I17","v":0},null,null,{"$f":"Q17*K23","v":0},{"$f":"R17*K17","v":0},{"$f":"S17*K17","v":0},{"$f":"T17*K17","v":0},null,null,{"$f":"I17*K17","v":0},{"$f":"I17*K17","v":0}]
[{"$f":"Y30","v":{"$error":"#DIV/0!"}},null,null,"i","Läpäisevät pinnoitteet (esim. sora- ja hiekkapinnat)","m²",null,{"$f":"'Uudet elementit_painotukset'!M18","v":1.4260416666666664},0,{"$f":"G18*H18","v":0},0.35,null,null,null,null,null,null,{"$f":"I18","v":0},null,null,{"$f":"Q18*K15","v":0},0,0,0,null,null,0,0]
["Laskennassa huomioitavat asiat",null,"Lisätietoa","i","Vettä läpäisemätön pinta","m²",{"$f":"IF((A7-G18-G17-G23-G22-G21-G14-G13-G12-G11-G10-G6-G5-G29-G27-G26-G24-G20)<0,\"HUOM < 0\",(A7-G18-G17-G23-G22-G21-G14-G13-G12-G11-G10-G6-G5-G29-G27-G26-G24-G20))","v":0},"-",0,"-",1,null,null,null,null,null,{"$f":"I19","v":0},null,null,null,{"$f":"Q19*K19","v":0},0,0,0,null,null,0,0]
[{"$f":"Rajaukset!D74","v":""},null,"Hulevesien hallinta-rakenteet","i","Sadepuutarha, jossa monipuolista ja kerroksellista kasvillisuutta ","m²",null,{"$f":"'Uudet elementit_painotukset'!M19","v":2.78125},0,0,0.2,null,null,null,null,null,0,null,null,null,0,0,0,0,null,null,0,0]
[null,null,null,"i","Viherkatto: Kattopuutarha, kasvualustan paksuus 30 – 100 cm (paksuus toivotun lajiston mukaan, kts. Lisätietoa)","m²",null,{"$f":"'Uudet elementit_painotukset'!M20","v":2.0329861111111112},{"$f":"G21","v":0},{"$f":"G21*H21","v":0},0.1,null,null,null,null,null,0,null,null,null,0,0,0,0,null,null,0,0]
[null,null,null,"i","Viherkatto: Niitty, keto tai heinä, kasvualustan paksuus 10 – 29 cm (paksuus toivotun lajiston mukaan, kts. Lisätietoa)","m²",null,{"$f":"'Uudet elementit_painotukset'!M21","v":1.6722222222222221},{"$f":"G22","v":0},{"$f":"G22*H22","v":0},0.4,null,null,null,null,null,0,null,null,null,0,0,0,0,null,null,0,0]
[null,null,null,"i","Viherkatto: Maksaruoho- tai sammalkatto, kasvualustan paksuus 4 – 9 cm","m²",null,{"$f":"'Uudet elementit_painotukset'!M22","v":1.3885416666666663},{"$f":"G23","v":0},{"$f":"G23*H23","v":0},0.6,null,null,null,null,null,0,null,null,null,0,0,0,0,null,null,0,0]
[null,null,null,"i","Imeytysallas tai -painanne matalalla kasvillisuus- tai kiviainespinnalla (ei pysyvää vesipintaa, läpäisevä maaperä) ","m²",null,{"$f":"'Uudet elementit_painotukset'!M23","v":2.306597222222222},0,0,0.1,null,null,null,null,null,0,null,null,null,0,0,0,0,null,null,0,0]
[null,null,null,"i","Imeytyskaivanto (esim. kivipesä)","m²",null,{"$f":"'Uudet elementit_painotukset'!M24","v":1.5229166666666665},{"$f":"G25","v":0},0,0.1,null,null,null,null,null,null,null,null,{"$f":"I25","v":0},0,0,0,0,null,null,0,0]
[null,null,null,"i","Lampi, kosteikko tai tulvaniitty luonnonmukaisella kasvillisuudella (ainakin osan vuodesta pysyvä vesipinta; muun ajan maa pysyy kosteana)","m²",null,{"$f":"'Uudet elementit_painotukset'!M25","v":2.8413194444444443},0,0,0.1,null,null,null,null,null,{"$f":"I26","v":0},null,null,null,0,0,0,0,null,null,0,0]
[null,null,null,"i","Viivytys- tai pidätysallas tai -painanne matalalla kasvillisuus- tai kiviainespinnalla (ainakin osan vuodesta pysyvä vesipinta; muun ajan maa pysyy kosteana) ","m²",null,{"$f":"'Uudet elementit_painotukset'!M26","v":2.0229166666666663},0,0,0.2,null,null,null,null,null,{"$f":"I27","v":0},null,null,null,0,0,0,0,null,null,0,0]
[null,null,null,"i","Viivytyskaivanto tai -säiliö (maanalainen, huom. yksikkö on tilavuus!)","m3",null,{"$f":"'Uudet elementit_painotukset'!M27","v":1.364236111111111},0,"-","-"]
[null,null,"Lisätietoa","i","Biosuodatuspainanne tai -allas (esim. tienvarsipainanne)","m²",null,{"$f":"'Uudet elementit_painotukset'!M28","v":2.4117361111111109},0,0,0.15,null,"Täytä tähän lisätietoja bonuselementeistä (mm. elementit, lukumäärä, laji, sijainti)",null,null,null,null,null,null,{"$f":"I29","v":0},{"$f":"Q29*K29","v":0},{"$f":"R29*K29","v":0},{"$f":"S29*K29","v":0},{"$f":"T29*K29","v":0},"C",null,{"$f":"I29*K29","v":0},{"$f":"I29*K29","v":0}]
[null,null,"Bonuselementit","i","Hulevesien kerääminen läpäisemättömiltä pinnoilta kasteluvedeksi tai ohjaaminen hallitusti läpäisevälle kasvillisuudelle maassa","m²",null,{"$f":"'Uudet elementit_painotukset'!M29","v":0.66388888888888875},0,{"$f":"G30*H30","v":0}," -",{"$f":"IF(ISBLANK(M30),\"esim. asfaltoitu pysäköintialue, jolta hulevedet ohjataan alueen yhteydessä olevalle suodatuskaistalle\",M30)","v":"esim. asfaltoitu pysäköintialue, jolta hulevedet ohjataan alueen yhteydessä olevalle suodatuskaistalle"},null,null,null,null,{"$f":"SUM(Q2:Q29)","v":0},{"$f":"SUM(R2:R29)","v":0},{"$f":"SUM(S2:S29)","v":0},{"$f":"SUM(T2:T29)","v":0},{"$f":"IFERROR(SUM(U2:U29)/Q30,0)","v":0},{"$f":"IFERROR(((SUM(V2:V29))*((R30-S30-T30)/R30)/(R30-S30-T30)),0)","v":0},{"$f":"IFERROR(SUM(W2:W29)/S30,0)","v":0},{"$f":"IFERROR(SUM(X2:X29)/T30,0)","v":0},{"$f":"(U30*Q30+V30*R30+W30*S30+X30*T30)/SUM(Q30:T30)","v":{"$error":"#DIV/0!"}},null,{"$f":"SUM(AA2:AA29)/(SUM($I$2:$I$29)-$I$28-$I$16)","v":{"$error":"#DIV/0!"}},{"$f":"SUM(AB2:AB29)/(SUM($I$7:$I$29)-$I$28-$I$16)","v":{"$error":"#DIV/0!"}}]
[null,null,null,null,"Hulevesien ohjaaminen läpäisemättömiltä pinnoilta rakennettuihin vesiaiheisiin, kuten lampiin ja puroihin, joissa vesi vaihtuu/kiertää","m²",null,{"$f":"'Uudet elementit_painotukset'!M30","v":0.83263888888888871},0,{"$f":"G31*H31","v":0}," -",{"$f":"IF(ISBLANK(M31),\"esim. kivetty pinta, jolta hulevedet johdetaan kivipuron kautta lampeen, jossa on ylivuoto veden vaihtumisen mahdollistamiseksi\",M31)","v":"esim. kivetty pinta, jolta hulevedet johdetaan kivipuron kautta lampeen, jossa on ylivuoto veden vaihtumisen mahdollistamiseksi"},null,null,null,null,null,null,{"$f":"S30-S9","v":0}]
["Päivämäärä",null,null,null,"Varjostava isokokoinen puu (à 25 m²) rakennuksen etelä- ja lounaispuolella (erityisesti lehtipuut) ","kpl",null,{"$f":"'Uudet elementit_painotukset'!M34","v":0.89548611111111109},{"$f":"G32*25","v":0},{"$f":"G32*25*H32","v":0}," -",{"$f":"IF(ISBLANK(M32),\"esim. kolme lehmusta rakennuksen lounaispuolella\",M32)","v":"esim. kolme lehmusta rakennuksen lounaispuolella"},null,null,null,null,null,null,{"$f":"IF(S31=0,\"- Ei säilytettäviä tai istutettavia puita, on suositeltavaa lisätä joko säilytettäviä tai istutettavia puita)\",\"\")","v":"- Ei säilytettäviä tai istutettavia puita, on suositeltavaa lisätä joko säilytettäviä tai istutettavia puita)"}]
[{"$f":"IF(Rajaukset!B3>0,Rajaukset!B3,\"-\")","v":"-"},null,null,null,"Varjostava pienikokoinen puu (à 15 m²) rakennuksen etelä- ja lounaispuolella (erityisesti lehtipuut) ","kpl",null,{"$f":"'Uudet elementit_painotukset'!M35","v":0.89548611111111109},{"$f":"G33*15","v":0},{"$f":"G33*15*H33","v":0}," -",{"$f":"IF(ISBLANK(M33),\"esim. kolme pihlajaa talon B lounaispuolella\",M33)","v":"esim. kolme pihlajaa talon B lounaispuolella"}]
["Täyttäjän nimi",null,null,null,"Viljelyyn soveltuvat istutukset: hedelmäpuut (à 10 m²), marjapensaat (à 10 m²)","kpl",null,{"$f":"'Uudet elementit_painotukset'!M36","v":0.98402777777777772},{"$f":"G34*10","v":0},{"$f":"G34*15*H34","v":0}," -",{"$f":"IF(ISBLANK(M34),\"esim. kaksi omenapuuta ja neljä mustaherukkapensasta pihan keskellä\",M34)","v":"esim. kaksi omenapuuta ja neljä mustaherukkapensasta pihan keskellä"}]
[{"$f":"IF(Rajaukset!D3>0,Rajaukset!D3,\"-\")","v":"-"},null,null,null,"Monikerroksinen, luonnonmukaisesti kehittyvä kasvillisuus, väh. 5 alueella luontaisesti esiintyvää lajia/100 m²","m²",null,{"$f":"'Uudet elementit_painotukset'!M38","v":1.1791666666666665},{"$f":"G35","v":0},{"$f":"G35*H35","v":0}," -",{"$f":"IF(ISBLANK(M35),\"esim. säilytetyn metsänreunan männyt, pihlaja sekä varvuista koostuva pohjakasvillisuus tai istutettu kasvupaikalle sopiva kasviyhdyskunta\",M35)","v":"esim. säilytetyn metsänreunan männyt, pihlaja sekä varvuista koostuva pohjakasvillisuus tai istutettu kasvupaikalle sopiva kasviyhdyskunta"}]
["Kohteen nimi (osoite)",null,null,null,"Helsingille ominaiset puulajit ja kukkivat puut ja pensaat - väh. 3 lajia/100 m²","m²",null,{"$f":"'Uudet elementit_painotukset'!M39","v":0.90277777777777768},0,0," -",{"$f":"IF(ISBLANK(M36),\"esim. tontin lounaisreunan metsävaahtera ja siperianomenapuu sekä näiden yhteyteen istutettavat japaninruusukvittenipensaat\",M36)","v":"esim. tontin lounaisreunan metsävaahtera ja siperianomenapuu sekä näiden yhteyteen istutettavat japaninruusukvittenipensaat"}]
[{"$f":"IF(Rajaukset!D6>0,Rajaukset!D6,\"-\")","v":"-"},null,null,null,"Monilajinen kukkiva kasvillisuus, jota pölyttäjät kykenevät hyödyntämään, väh. 10 pölyttäjille tärkeää lajia/100 m²","m²",null,{"$f":"'Uudet elementit_painotukset'!M40","v":0.82055555555555559},0,{"$f":"G37*H37","v":0}," -",{"$f":"IF(ISBLANK(M37),\"esim. monilajinen perenna-alue oleskelupaikan lähellä\",M37)","v":"esim. monilajinen perenna-alue oleskelupaikan lähellä"}]
["Korttelinumero",null,null,null,"Viljelylaatikot","m²",null,{"$f":"'Uudet elementit_painotukset'!M42","v":0.64097222222222217},0,0," -",{"$f":"IF(ISBLANK(M38),\"esim. leikkipaikan viereiset kahdeksan viljelylaatikkoa, à 1,5 m²\",M38)","v":"esim. leikkipaikan viereiset kahdeksan viljelylaatikkoa, à 1,5 m²"}]
[{"$f":"IF(Rajaukset!F3>0,Rajaukset!F3,\"-\")","v":"-"},null,null,null,"Leikkimiseen tai urheiluun osoitettu läpäisevä pinta (esim. hiekka-, hake- tai sorapintaiset leikkipaikat, urheilukenttänurmi)","m²",null,{"$f":"'Uudet elementit_painotukset'!M43","v":0.71145833333333319},0,0," -",{"$f":"IF(ISBLANK(M39),\"esim. turvahiekka leikkipaikalla\",M39)","v":"esim. turvahiekka leikkipaikalla"}]
["Tonttinumero",null,null,null,"Yhteiskäytössä olevat kattoterassit, joissa kasvillisuutta vähintään 10 % pinta-alasta","m²",null,{"$f":"'Uudet elementit_painotukset'!M44","v":0.60833333333333317},0,0," -",{"$f":"IF(ISBLANK(M40),\"esim. rakennuksen kattoterassin köynnös- ja pensasistutukset\",M40)","v":"esim. rakennuksen kattoterassin köynnös- ja pensasistutukset"}]
[{"$f":"IF(Rajaukset!F6>0,Rajaukset!F6,\"-\")","v":"-"},null,"Lisätietoa",null,"Luonnon monimuotoisuuden ja eläimistön elinolosuhteiden tukeminen (à 5 m², esim. lahopuu/maapuu, lahopuuaita, lehtikomposti, hyönteishotelli)","kpl",null,{"$f":"'Uudet elementit_painotukset'!M46","v":0.84479166666666639},{"$f":"G41*5*H41","v":0},{"$f":"G41*5*H41","v":0}," -",{"$f":"IF(ISBLANK(M41),\"esim. tontin koillisreunan maapuut ja hyöteishotelli\",M41)","v":"esim. tontin koillisreunan maapuut ja hyöteishotelli"}]
[]
[null,null,"Edellinen",null,null,null,null,null,null,null,"Seuraava"]

{"sheet":"Tulokset","index":3,"n_rows":50,"n_cols":8,"rows_kept":50,"cut":false,"hidden":false,"merged":[[21,1,21,2],[22,1,22,2],[18,1,18,2],[14,4,14,5],[19,4,22,7],[15,4,17,7],[18,4,18,6],[12,1,12,2],[13,1,13,2],[17,1,17,2],[0,1,1,2],[11,1,11,2],[7,1,8,1],[7,2,8,2],[9,1,10,1],[9,2,10,2],[14,1,15,1],[14,2,15,2],[7,4,7,5],[13,4,13,5],[12,4,12,5],[11,4,11,5],[10,4,10,5],[9,4,9,5],[8,4,8,5]]}
[null,"Tuloskortti"]
[null,null,null,null,"Täyttäjän nimi",null,null,"Korttelinumero"]
[null,"Versio 5/2022",null,null,{"$f":"IF(Rajaukset!D3>0,Rajaukset!D3,\"-\")","v":"-"},null,null,{"$f":"IF(Rajaukset!F3>0,Rajaukset!F3,\"-\")","v":"-"}]
[null,"Päivämäärä",null,null,"Kohteen nimi (osoite)",null,null,"Tonttinumero"]
[null,{"$f":"IF(Rajaukset!B3>0,Rajaukset!B3,\"-\")","v":"-"},null,null,{"$f":"IF(Rajaukset!D6>0,Rajaukset!D6,\"-\")","v":"-"},null,null,{"$f":"IF(Rajaukset!F6>0,Rajaukset!F6,\"-\")","v":"-"}]
[]
[null,"Viherkertoimen laskelma",null,null,"Suunnitelmaan sisällytetyt elementit"]
[null,{"$f":"IF(C8<C10,\"Viherkerroin < tavoitetaso!\",\"Viherkerroin\")","v":{"$error":"#DIV/0!"}},{"$f":"Viherkerroin!A2","v":{"$error":"#DIV/0!"}},null,"Elementtityyppi",null,"Elementtejä täytetty, kpl","Elementtityypin kokonaislukumäärä, kpl"]
[null,null,null,null,"Säilytettävä kasvillisuus",null,{"$f":"'Uudet elementit_painotukset'!BA15","v":0},{"$f":"'Uudet elementit_painotukset'!BB15","v":5}]
[null,"Tavoitetaso",{"$f":"Rajaukset!J12","v":0.9},null,"Istutettava kasvillisuus",null,{"$f":"'Uudet elementit_painotukset'!BA16","v":0},{"$f":"'Uudet elementit_painotukset'!BB16","v":10}]
[null,null,null,null,"Pinnoitteet",null,{"$f":"'Uudet elementit_painotukset'!BA17","v":0},{"$f":"'Uudet elementit_painotukset'!BB17","v":2}]
[null,null,null,null,"Hulevesien hallintarakenteet",null,{"$f":"'Uudet elementit_painotukset'!BA18","v":0},{"$f":"'Uudet elementit_painotukset'!BB18","v":9}]
[null,"Hulevesimäärä m3",null,null,"Bonuselementit",null,{"$f":"'Uudet elementit_painotukset'!BA19","v":0},{"$f":"'Uudet elementit_painotukset'!BB19","v":12}]
[null,{"$f":"Viherkerroin!A13","v":{"$error":"#DIV/0!"}},null,null,"Yhteensä",null,{"$f":"'Uudet elementit_painotukset'!BA20","v":0},{"$f":"'Uudet elementit_painotukset'!BB20","v":38}]
[null,"Valumakerroin C","Mahdollisuus viivyttämiseen ulkopuolella",null,"Täyttäjän kommentit:"]
[]
[null,{"$f":"Viherkerroin!A18","v":{"$error":"#DIV/0!"}},{"$f":"IF(Rajaukset!H22>0,\"Kyllä\",\"Ei\")","v":"Ei"}]
[null,"Viivytystilavuustarve tontilla m3"]
[null,{"$f":"B14*(1-(Rajaukset!H22/100))","v":{"$error":"#DIV/0!"}},null,null,"Huomioitavat asiat:"]
[null,"Esitettyjen hulevesiratkaisujen viivytystilavuus m3","Jää viivyttämättä m3",null,{"$f":"Rajaukset!D77","v":{"$error":"#DIV/0!"}}]
[null,{"$f":"(Viherkerroin!G24+Viherkerroin!G25+Viherkerroin!G26+Viherkerroin!G27)*Rajaukset!H20+Viherkerroin!G28+(Viherkerroin!G20+Viherkerroin!G29)*Rajaukset!H21","v":0},{"$f":"IF((B19-B21)<0,0,B19-B21)","v":{"$error":"#DIV/0!"}}]
[null,"Läpäisemättömän pinnan osuus"]
[null,{"$f":"Viherkerroin!G19/Viherkerroin!A7","v":{"$error":"#DIV/0!"}}]
[]
[]
[]
[]
[]
[]
[]
[]
[]
[]
[]
[]
[]
[]
[]
[]
[]
[]
[]
[]
[]
[]
[]
[]
[]
[]
[null,"Edellinen"]

{"sheet":"Uudet elementit_painotukset","index":4,"n_rows":66,"n_cols":58,"rows_kept":66,"cut":false,"hidden":true,"merged":[[28,0,45,0],[18,0,27,0],[6,0,15,0],[16,0,17,0],[0,49,0,50],[2,49,4,49],[2,50,4,50],[5,49,7,49],[5,50,7,50],[11,49,12,49],[1,0,5,0],[0,2,0,3],[0,4,0,5],[0,6,0,7],[0,8,0,9],[0,10,0,11]]}
["Elementtityypit","Elementit","Ekologisuus",null,"Toiminnallisuus",null,"Maisema-arvo",null,"Kunnossapito",null,"Hulevesi",null,"Painotettu keskiarvo","Painotettu pinta-ala",null,"Asteikko (Ekologisuus, toiminnallisuus, maisema-arvo - Huom. Bonuselementeillä maksimipistemäärä 1)",null,null,null,null,null,null,null,null,null,null,null,null,null,null,null,null,null,null,null,"Ekologisuus","Toiminnallisuus","Maisema-arvo","Kunnossapito","Hulevesi","Yhteensä, %",null,"Ekologisuus","Toiminnallisuus","Maisema-arvo","Kunnossapito","Hulevesi","Yhteensä, %",null,"Asiantuntijahaastatteluista laskettu yleinen painotus osa-alueille",null,null,null,"SARJA(;'Uudet elementit_painotukset'!$AX$15:$AX$19;'Uudet elementit_painotukset'!$BD$15:$BD$19;1)",null,null,null,"Lkm täytetty"]
["Säilytettävä kasvillisuus ja maaperä","Säilytettävä hyväkuntoinen isokokoinen (täysikasvuisena > 10 m) puu; vähintään 3 m (à 25 m²), säilytettävä kasvualusta 25 m²","Pitkäikäisyyden ja suuren biomassan ansiosta erittäin suuri merkitys hiilensidonnalle ja -varastoinnille. Erityisesti avointa maisemaa hallitsevat, suuret yksittäiset puut ja puuryhmät ovat tärkeä luontotyyppi (4,13). Ns. säästöpuiden jättäminen on metsätaloudessa havaittu merkittäväksi keinoksi säilyttää elinympäristöjä hakkuiden välillä (6-8), huomioiden kuitenkin, että vain osa lajeista kykenee hyödyntämään niitä. Huom. Syväjuuriset, metsässä kasvaneet puut (esim. mänty) sopeutuvat paremmin yksittäispuiksi kuin pintajuuriset puut (esim. kuusi), jotka usein ränsistyvät joutuessaan erilaisiin kasvuoloihin. ",3,"Vakiintuneella, täysikasvuisena suuren koon saavuttavalla, puulla on erittäin suuri merkitys pienilmaston tasaamiselle ja puhdistamiselle sekä näkösuojana toimimiselle (etenkin, jos kyseessä havupuu)(11). Puusto voi suojata myös jonkin verran melulta (1), joskin vaikutus onkin enimmäkseen psykologinen (näkösuoja vähentää melun häiritsevyyttä). Merkittävä myös toiminnallisuuden kannalta, esim. virkistyskäyttö ja luonnosta oppiminen (9). Hyväkuntoisen puun säilyttämisessä ei ole turvallisuusriskejä, mikäli puun juuriston ja rungon suojauksesta huolehditaan rakennusvaiheessa. Huom. Syväjuuriset, metsässä kasvaneet puut (esim. mänty) sopeutuvat paremmin yksittäispuiksi kuin pintajuuriset puut (esim. kuusi), jotka usein ränsistyvät joutuessaan erilaisiin kasvuoloihin.",3,"Vakiintuneella, täysikasvuisena suuren koon saavuttavalla, puulla on erittäin suuri maisema-arvo, sillä se lieventää siirtymää rakentamattomasta maankäytöstä rakennettuun. Kaupunkimetsien on havaittu vaikuttavan positiivisesti tonttien hintoihin (3). Säilytettävä kasvillisuus on usein merkittävämpi maisemaelementti kuin istutettava kasvillisuus, jolla voi kestää useita vuosia vakiintua ja saavuttaa vastaava koko. Maisema-arvoon vaikuttaa merkittävästi säilytettävän kasvillisuuden kunto. Syväjuuriset, metsässä kasvaneet puut (esim. mänty) sopeutuvat paremmin yksittäispuiksi kuin pintajuuriset puut (esim. kuusi), jotka usein ränsistyvät joutuessaan erilaisiin kasvuoloihin.",3,"Hoitotarve kerran vuodessa tai harvemmin rakennusvaiheen suojaamisen jälkeen. Lannoitus (n. kerran vuodessa) sekä puun kunnon tarkkailu ja  vaarallisten oksien poisto  tarpeen alueilla, jossa puu voi kaatussaan aiheuttaa turvallisuusriskin. Terveydentilan heikentymisestä kertovat usein latvuston kellastuminen ja harventuminen sekä pienentyneet lehdet. Jalopuut kestävät tyypillisesti hyvin lahovikoja toisin kuin esimerkiksi koivu.",2.5,"Vakiintuneella, täysikasvuisena suuren koon saavuttavalla, puulla on erittäin suuri merkitys hulevesien hallinnalle juuriston sitoman veden ja latvuston varastoiman sadeveden (interseptiohaihdunnan) ansiosta (11).",3,{"$f":"(D2*$AY$3+F2*$AY$6+H2*$AY$9+J2*$AY$10+L2*$AY$11)/5","v":3.4673611111111109},{"$f":"Viherkerroin!J2","v":0},{"$f":"(D2*$AY$3+F2*$AY$6+H2*$AY$9+J2*$AY$10+L2*$AY$11)/($AY$3+$AY$6+$AY$9+$AY$10+$AY$11)","v":2.9405182567726742},"3 = Suuri merkitys",null,null,null,null,null,null,null,null,null,null,null,null,null,null,null,null,null,null,null,{"$f":"IF($N2>0,AQ2,0)","v":0},{"$f":"IF($N2>0,AR2,0)","v":0},{"$f":"IF($N2>0,AS2,0)","v":0},{"$f":"IF($N2>0,AT2,0)","v":0},{"$f":"IF($N2>0,AU2,0)","v":0},{"$f":"SUM(AJ2:AN2)","v":0},null,{"$f":"D2*$AY$3/5/M2","v":0.27458441818545959},{"$f":"F2*$AY$6/5/M2","v":0.26196675345483678},{"$f":"H2*$AY$9/5/M2","v":0.14600440616863608},{"$f":"J2*$AY$10/5/M2","v":0.10114159823753255},{"$f":"L2*$AY$11/5/M2","v":0.21630282395353495},{"$f":"SUM(AQ2:AU2)","v":1},null,"Osa-alueet","Haastattelu-painotus (1-3)","Osa-alueisiin kuuluvat toiminnot",null,null,null,null,null,{"$f":"IF(AND(N2>0,N2<>\"-\"),1,0)","v":0}]
[null,"Säilytettävä hyväkuntoinen, pienikokoinen (täysikasvuisena ≤ 10 m) puu; vähintään 3 m (à 15m²), säilytettävä kasvualusta 15 m²","Vakiintuneella pienellä puulla on samat hyödyt kuin suurella puulla, mutta pienemmässä mittakaavassa. Huom. Syväjuuriset, metsässä kasvaneet puut (esim. mänty) sopeutuvat paremmin yksittäispuiksi kuin pintajuuriset puut (esim. kuusi), jotka usein ränsistyvät joutuessaan erilaisiin kasvuoloihin.",2.5,"Vakiintuneella pienellä puulla on samat hyödyt kuin suurella puulla, mutta pienemmässä mittakaavassa. Puulla voi olla merkitystä myös hyötyviljelyn kannalta, mikäli kyseessä on hedelmäpuu.  Hyväkuntoisen puun säilyttämisessä ei ole turvallisuusriskejä, mikäli puun juuriston ja rungon suojauksesta huolehditaan rakennusvaiheessa. Huom. Syväjuuriset, metsässä kasvaneet puut (esim. mänty) sopeutuvat paremmin yksittäispuiksi kuin pintajuuriset puut (esim. kuusi), jotka usein ränsistyvät joutuessaan erilaisiin kasvuoloihin.",2.5,"Vakiintuneella, täysikasvuisena pienen koon saavuttavalla, puulla on samat hyödyt maisema-arvon kannalta kuin suurella puulla. Koko arvioidaan maiseman kannalta toissijaiseksi, sillä puiden säilyttäminen on sinänsä on arvokasta. Maisema-arvoon vaikuttaa merkittävästi säilytettävän kasvillisuuden kunto sekä laji. Syväjuuriset, metsässä kasvaneet puut (esim. mänty) sopeutuvat paremmin yksittäispuiksi kuin pintajuuriset puut (esim. kuusi), jotka usein ränsistyvät joutuessaan erilaisiin kasvuoloihin.",3,"Sama hoitotarve kuin isolla säilytettävällä puulla.",2.5,"Vakiintuneella pienellä puulla on samat hyödyt kuin suurella puulla, mutta pienemmässä mittakaavassa.",2.5,{"$f":"(D3*$AY$3+F3*$AY$6+H3*$AY$9+J3*$AY$10+L3*$AY$11)/5","v":3.0322916666666666},{"$f":"Viherkerroin!J3","v":0},{"$f":"(D3*$AY$3+F3*$AY$6+H3*$AY$9+J3*$AY$10+L3*$AY$11)/($AY$3+$AY$6+$AY$9+$AY$10+$AY$11)","v":2.5715547703180217},"2 = Kohtalainen merkitys",null,null,null,null,null,null,null,null,null,null,null,null,null,null,null,null,null,null,null,{"$f":"IF($N3>0,AQ3,0)","v":0},{"$f":"IF($N3>0,AR3,0)","v":0},{"$f":"IF($N3>0,AS3,0)","v":0},{"$f":"IF($N3>0,AT3,0)","v":0},{"$f":"IF($N3>0,AU3,0)","v":0},{"$f":"SUM(AJ3:AN3)","v":0},null,{"$f":"D3*$AY$3/5/M3","v":0.26165120806137637},{"$f":"F3*$AY$6/5/M3","v":0.24962784839115992},{"$f":"H3*$AY$9/5/M3","v":0.16695293713500514},{"$f":"J3*$AY$10/5/M3","v":0.11565326920874842},{"$f":"L3*$AY$11/5/M3","v":0.20611473720371007},{"$f":"SUM(AQ3:AU3)","v":0.99999999999999989},null,"Ekologisuus",1.5868055555555554,"Hulevesien sidonta ja puhdistus",{"$f":"SUM(AY3:AY11)","v":5.8958333333333321},null,null,null,null,{"$f":"IF(AND(N3>0,N3<>\"-\"),1,0)","v":0}]
[null,"Säilytettävä hyväkuntoinen puu (1,5-3 m) tai iso pensas, à 3 m², säilytettävä kasvualusta 3 m²","Samat hyödyt kuin säilytettävillä yli 3-metrisillä puilla, mutta pienemmässä mittakaavassa. Pensailla on erityistä merkitystä elinympäristönä ja suojapaikkana monille pieneläimille.",2,"Samat hyödyt toiminnallisuudelle kuin säilytettävillä yli 3-metrisillä puilla, mutta pienemmässä mittakaavassa. Pensaalla voi olla merkitystä myös hyötyviljelyn kannalta, mikäli kyseessä on esimerkiksi marjapensas. ",2,"Samat hyödyt maisema-arvon kannalta kuin säilytettävillä yli 3-metrisillä puilla, mutta pienemmässä mittakaavassa. Maisema-arvoon vaikuttaa merkittävästi säilytettävän kasvillisuuden kunto. ",2,"Hoitotarve muuten sama kuin yli 3-metrisillä säilytettävillä puilla, mutta pensailla suurempi lannoitus- ja leikkaustarve.",2,"Samat hyödyt kuin säilytettävillä yli 3-metrisillä puilla, mutta pienemmässä mittakaavassa. ",2,2.3583333333333329,{"$f":"Viherkerroin!J4","v":0},2,"1 = Vähäinen merkitys",null,null,null,null,null,null,null,null,null,null,null,null,null,null,null,null,null,null,null,0,0,0,0,0,0,null,0.26914016489988224,0.25677267373380447,0.14310954063604245,0.11896348645465256,0.21201413427561841,{"$f":"SUM(AQ4:AU4)","v":1},null,null,null,"Hiilensidonta ja -varastointi",{"$f":"AY3/$BA$3","v":0.26914016489988224},null,null,null,null,0]
[null,"Säilytettävä luonnonniitty tai luonnonmukainen pohjakasvillisuus","Vakiintuneella luonnontilaisella niityllä tai pohjakasvillisuudella on samat hyödyt kuin säilytettävillä puilla ja pensailla, mutta pienemmässä mittakaavassa. Niityllä ja luonnontilaisella pohjakasvillisuudella on erityistä merkitystä ravinnonlähteenä, elinympäristönä ja suojapaikkana monille pieneläimille. Pohjakasvillisuuden säilyttäminen on usein haastavaa, sillä kasvillisuus on tottunut tiettyihin kasvuolosuhteisiin (vrt. metsäkasvillisuus).",2,"Samat hyödyt toiminnallisuudelle kuin säilytettävillä puilla ja pensailla, mutta pienemmässä mittakaavassa. ",1.5,"Säilytettävällä niityllä tai pohjakasvillisuudella on samat hyödyt maisema-arvon kannalta kuin säilytettävillä pensailla. Maisema-arvoon vaikuttaa merkittävästi säilytettävän kasvillisuuden kunto.  ",2,"Niityn niitto 1-2 kertaa vuodessa; säilytettävän pohjakasvillisuuden kunnossapitotarve vaatii lisäselvitystä.",2,"Vakiintuneella luonnontilaisella niityllä tai pohjakasvillisuudella on samat hyödyt kuin säilytettävillä puilla ja pensailla, mutta pienemmässä mittakaavassa.",2,2.2069444444444444,{"$f":"Viherkerroin!J5","v":0},1.871613663133098,"0 = Ei merkitystä",null,null,null,null,null,null,null,null,null,null,null,null,null,null,null,null,null,null,null,0,0,0,0,0,0,null,0.28760226557583385,0.20578980490874763,0.15292636878539964,0.12712397734424166,0.22655758338577722,1,null,null,null,"Lajien ja elinympäristöjen monimuotoisuus, ekologinen verkosto",null,null,null,null,null,{"$f":"IF(AND(N5>0,N5<>\"-\"),1,0)","v":0}]
[null,"Säilytettävä avokallio ","Kallio on erityisen tärkeä elinympäristö (4). Ekologisuudesta saatavia pisteitä vähentää läpäisemättömän pinnan negatiivinen merkitys hulevesien hallinnalle sekä hiilensidonnalle ja -varastoinnille. Kalliokasvillisuus on lisäksi erittäin herkkää kulumiselle, mikä vähentää sen ekologista arvoa, ellei kalliolla kulkua rajoiteta.",2,"Toiminnallisuutta lisää mahdollisuus virkistyskäyttöön ja luonnosta oppimiseen. Toiminnallisuutta vähentää kalliokasvillisuuden herkkyys kulumiselle, mistä johtuen mahdollinen suojaus tai kulun ohjaus (esim. portailla) voi olla tarpeen eroosion rajoittamiseksi ja turvallisuuden lisäämiseksi.",1,"Avokallion maisema-arvo on huomattava. Kallion maisema-arvoa ei voi toisintaa keinotekoisesti jälkeenpäin, mistä johtuen se tulisi aina säilyttää maisemassa, kun mahdollista.",3,"Hoitotarve harvemmin kuin kerran vuodessa. Mahdollinen suojaus tai kulun ohjaus (esim. portailla) tarpeen eroosion rajoittamiseksi ja turvallisuuden lisäämiseksi.",3,"Avokallio on yleensä läpäisemätön ja näin ollen suurentaa valumakerrointa ja samalla hulevesien määrää.",0,1.8645833333333333,{"$f":"Viherkerroin!J6","v":0},1.5812720848056538,"Asteikko (Kunnossapito - Huom. Bonuselementeillä maksimipistemäärä 1)",null,null,null,null,null,null,null,null,null,null,null,null,null,null,null,null,null,null,null,0,0,0,0,0,0,null,0.34040968342644318,0.16238361266294224,0.27150837988826815,0.22569832402234635,0,0.99999999999999989,null,"Toiminnallisuus",1.5138888888888886,"Pienilmaston tasaaminen ja puhdistus (viilentäminen, ilman epäpuhtauksien sidonta, melun ja tuulisuuden vähentäminen, näkösuoja)",null,null,null,null,null,0]
["Istutettava / kylvettävä kasvillisuus","Isokokoinen puu, täysikasvuisena > 10 m; à 25 m²; kasvualustan syvyys 0,8 m; yksittäispuun istutuskuopan mitat 2 x 2 m  ","Isokokoisella istutettavalla puulla on samat hyödyt kuin vastaavalla säilytettävällä puulla, mutta hyödyt realisoituvat usein vasta vuosien päästä. Suuri kasvulausta on merkittävä hulevesien hallinnan kannalta. Pitkäikäisten, puuvartisten kasvien merkitys hiilensidonnalle ja varastoinnille on erityisen  suuri.",2.5,"Isokokoisella istutettavalla puulla on samat hyödyt kuin vastaavalla säilytettävällä puulla, mutta hyödyt realisoituvat usein vasta vuosien päästä. Istutettavan puun hyötyjä pienilmaston säätelyssä lisää kuitenkin mahdollisuus puulajin ja istutuspaikan määrittämiseen rakennukseen nähden, mikä ei ole mahdollista säilytettävällä kasvillisuudella.",2,"Isokokoisella istutettavalla puulla on samat hyödyt kuin vastaavalla säilytettävällä puulla, mutta hyödyt realisoituvat usein vasta vuosien päästä. Istutettavan puun maisema-arvoa lisää kuitenkin mahdollisuus puulajin ja istutuspaikan määrittämiseen rakennukseen nähden, mikä ei ole mahdollista säilytettävällä kasvillisuudella.",3,"Hoitotarve 1-2 kertaa vuodessa. Lannoitus kerran vuodessa, minkä lisäksi leikkaus ja rungon suojaaminen kasvinsyöjiltä mahdollisesti tarpeen.",2,"Isokokoisella istutettavalla puulla on samat hyödyt kuin vastaavalla säilytettävällä puulla, mutta hyödyt realisoituvat usein vasta vuosien päästä.",2.5,2.8107638888888884,{"$f":"Viherkerroin!J7","v":0},2.3836866902237928,"3 = Hoitotarve harvemmin kuin kerran vuodessa",null,null,null,null,null,null,null,null,null,null,null,null,null,null,null,null,null,null,null,0,0,0,0,0,0,null,0.28227300802964794,0.21544163063619517,0.18011117974058063,9.9814700432365677E-2,0.22235948116121065,1,null,null,null,"Ruoantuotanto hyötyviljelyllä, oppiminen luonnosta, leikkiminen",{"$f":"AY6/$BA$3","v":0.25677267373380447},null,null,null,null,0]
[null,"Pienikokoinen puu, täysikasvuisena ≤ 10 m; à 15 m²; kasvualustan syvyys 0,6 m; yksittäispuun istutuskuopan mitat 1,5 x 1,5 m  ","Pienikokoisella istutettavalla puulla on samat hyödyt kuin istutettavalla isolla puulla, mutta pienemmässä mittakaavassa (kasvin ja kasvualustan koko).",2,"Pienikokoisella istutettavalla puulla on samat hyödyt kuin istutettavalla isolla puulla, mutta pienemmässä mittakaavassa (kasvin koko). Puulla voi olla merkitystä myös hyötyviljelyn kannalta, mikäli kyseessä on hedelmäpuu.  ",1.5,"Pienikokoisella istutettavalla puulla on samat hyödyt kuin istutettavalla isolla puulla, mutta pienemmässä mittakaavassa.",2.5,"Sama hoitotarve kuin isoilla puilla.",2,"Pienikokoisella istutettavalla puulla on samat hyödyt kuin istutettavalla isolla puulla, mutta pienemmässä mittakaavassa (kasvin ja kasvualustan koko).",2,2.2913194444444445,{"$f":"Viherkerroin!J8","v":0},1.9431684334511192,"2 = Hoitotarve 1-2 kertaa vuodessa",null,null,null,null,null,null,null,null,null,null,null,null,null,null,null,null,null,null,null,0,0,0,0,{"$f":"IF($N8>0,AU8,0)","v":0},0,null,0.27701166843461128,0.19821185028034549,0.18411880587967874,0.12244279436278224,{"$f":"L8*$AY$11/5/M8","v":0.21821488104258221},1,null,null,null,"Turvallisuus",null,null,null,null,null,0]
[null,"Isot pensaat, à 3 m²; kasvualustan syvyys 0,6 m","Istutettavalla isokokoisella pensaalla on samat hyödyt kuin istutettavilla puilla, mutta pienemmässä mittakaavassa (kasvin ja kasvualustan koko). Pensailla on erityistä merkitystä elinympäristönä ja suojapaikkana monille pieneläimille.",1.5,"Istutettavalla isokokoisella pensaalla on samat hyödyt kuin istutettavilla puilla, mutta pienemmässä mittakaavassa (kasvin koko). Pensailla voi olla merkitystä myös hyötyviljelylle sekä tilanjakajina pihan toiminnoille.",1,"Isokokoisella istutettavalla pensaalla on samat hyödyt kuin istutettavalla pienellä puulla, mutta pienemmässä mittakaavassa (kasvin koko). Pensaat soveltuvat hyvin tilanjakajiksi pihan eri toimintojen välille.",2,"Hoitotarve jonkin verran suurempi kuin puilla. Arvioitu hoitotarve (leikkaus ja lannoitus) 2-3 kertaa vuodessa. Lisäksi rungon sekä lehvästön suojaaminen kasvinsyöjiltä mahdollisesti tarpeen.",1.5,"Istutettavalla isokokoisella pensaalla on samat hyödyt kuin istutettavilla puilla, mutta pienemmässä mittakaavassa (kasvin ja kasvualustan koko).",1.5,1.7017361111111107,{"$f":"Viherkerroin!J9","v":0},1.443168433451119,"1 = Hoitotarve yli 3 kertaa vuodessa",null,null,null,null,null,null,null,null,null,null,null,null,null,null,null,null,null,null,null,0,0,0,0,0,0,null,0.27973882881044687,0.17792287288308509,0.19832687206692518,0.12364823505407062,0.2203631911854724,1.0000000000000002,null,"Maisema-arvo",0.84375,"Liittyminen ympäröivään kaupunkikuvaan, vaikutus maisemaan (esim. kukat ja marjat)",{"$f":"AY9/$BA$3","v":0.14310954063604242},null,null,null,null,0]
[null,"Muut pensaat, à 1,5 m²; kasvualustan syvyys 0,4 m","Istutettavalla pienemmällä pensaalla on samat hyödyt kuin istutettavalla suurella pensaalla, mutta pienemmässä mittakaavassa (kasvin ja kasvualustan koko). Pensailla on erityistä merkitystä elinympäristönä ja suojapaikkana monille pieneläimille.",1,"Istutettavalla pienempikokoisella pensaalla on samat hyödyt kuin isolla pensaalla. Pensailla voi olla merkitystä myös hyötyviljelylle.",1,"Pienemmällä istutettavalla pensaalla on samat hyödyt kuin isommalla. Kasvin koon lisäksi maisema-arvoon vaikuttaa kuitenkin yhtä suuressa määrin lajivalinta, minkä vuoksi hyöty arvioidaan samaksi.",2,"Sama hoitotarve kuin isommilla pensailla.",1.5,"Istutettavalla pienemmällä pensaalla on samat hyödyt kuin istutettavalla suurella pensaalla, mutta pienemmässä mittakaavassa (kasvin ja kasvualustan koko).",1,1.4180555555555554,{"$f":"Viherkerroin!J10","v":0},1.2025912838633688,"0 = Hoitotarve useammin kuin kerran kuukaudessa",null,null,null,null,null,null,null,null,null,null,null,null,null,null,null,null,null,null,null,0,0,0,0,0,0,null,0.22380019588638592,0.2135161606268364,0.238001958863859,0.14838393731635652,0.17629774730656222,1,null,"Kunnossapito",0.70138888888888884,"Helppohoitoiset ratkaisut",{"$f":"AY10/$BA$3","v":0.11896348645465255},null,null,null,null,0]
[null,"Perennat, kasvualustan syvyys 0,4-0,6 m","Istutettavilla perennoilla on samat hyödyt kuin elementillä \"Muut pensaat\", mutta niihin liittyy usein suurempi kasvualustan koko (hulevesien hallinta). Perennat tarjoavat ravintoa, elinympäristöjä ja suojapaikkoja monille pieneläimille.",1.5,"Istutettavilla perennoilla on samat hyödyt kuin pienemmilla istutettavilla pensailla.",1,"Perennoilla on vastaava maisema-arvo kuin pensailla: vaikka perennat ovat tyypillisesti pienempikokoisia, niillä on usein kestävämmät ja näyttävämmät kukinnot.",2,"Hyvin suunniteltu kasvillisuus ei vaadi hoitoa useammin kuin kerran kuukaudessa. Hoidon ja kastelun tarve vaihtelee kuitenkin huomattavasti lajin, istutuspaikan ja sateisuuden mukaan. Arvioitu hoitotarve keskimäärin yli 3 kertaa vuodessa. Lannoitus ja mahdollinen suojaaminen kasvinsyöjiltä tarpeen.",1,"Istutettavilla perennoilla on samat hyödyt kuin elementillä \"Muut pensaat\", mutta niihin liittyy usein suurempi kasvualustan koko.",1.5,1.6315972222222221,{"$f":"Viherkerroin!J11","v":0},1.383686690223793,"Huom. Pisteytyksessä ei ole huomioitu kustannuksia (esim. käsityön tarvetta). ",null,null,null,null,null,null,null,null,null,null,null,null,null,null,null,null,null,null,null,0,0,0,0,0,0,null,0.29176420515003187,0.18557139816982332,0.20685252181315175,8.5975739519046607E-2,0.22983613534794639,1,null,"Hulevesi",1.25,"Hulevesien sidonta ja puhdistus",{"$f":"AY11/$BA$3","v":0.21201413427561841},{"$f":"SUM(BA4:BA11)","v":1},null,null,null,0]
[null,"Niitty tai keto, kasvualustan syvyys 0,15-0,3 m","Niityt ja kedot (kuivat niityt) ovat luonnonmukaisempi (vähemmän hoitoa vaativa) ja monilajisempi vaihtoehto esimerkiksi perennoille. Kokonaisuudessaan samansuuruinen ekologinen merkitys. Niityllä on erityistä merkitystä monimuotoisuudelle mm. pölyttäjiä houkuttelevien kukkivien kasvien ansiosta (13).",2,"Niittyjen tarjoama hyöty pienilmastolle vastaa perennoja. Niitty voi kuitenkin tarjoata paremmat mahdollisuudet oppia luonnosta.",1,"Koettu masema-arvo jakaa mielipiteitä. Kukinta lisää niityn ja kedon maisema-arvoa; \"hallittu hoitamattomuus\" ei kuitenkaan sovellu kaikkiin maankäyttötyyppeihin.",1.5,"Vakiintumisen (niitto muutaman kerran kesässä) jälkeen vaatii hoitoa 1-2 kertaa kesässä, kuivat kedot jopa harvemmin. Niityt ja kedot vaativat vähemmän hoitoa kuin esimerkiksi perennat.",2,"Niityn vaatima kasvualusta on ohuempi kuin perennoilla, mistä johtuen sen merkitys hulevesien hallinnalle on pienempi.",1.2,1.7711805555555553,{"$f":"Viherkerroin!J12","v":0},1.5020612485276799,"Huom. Pisteytystä vähentää puutteellinen kokemus elementin kunnossapidosta Suomessa",null,null,null,null,null,null,null,null,null,null,null,null,null,null,null,null,null,null,null,0,0,0,0,0,0,null,0.35836110566555579,0.17094687316212506,0.14291315428347384,0.15840031366398746,0.1693785532248579,1,null,"Viherkertoimen muodostuminen","Ekologisuus","Toiminnallisuus","Maisema-arvo","Kunnossapito","Hulevesi","Yhteensä",null,0]
[null,"Viljelypalstat (kasvualustan syvyys riippuu viljeltävistä lajeista, vähintään 0,3 m)","Viljelypalstat koostuvat usein yksivuotisista lajeista, joten niiden ekologinen merkitys painottuu kasvukaudelle, jolloin suuri merkitys pölyttäjille ja lajien monimuotoisuudelle, ja kohtalainen merkitys hulevesien hallinnalle.  Pienempi merkitys kuin esim. perennoilla.",1,"Viljelypalstat ovat erittäin merkittäviä toiminnallisuudelle, sillä ne tarjoavat mahdollisuuden hyötyviljelyyn ja luonnosta oppimiseen.",3,"Mahdollinen kukinta, marjat ja hedelmät lisäävät maisema-arvoa ja vaihtelua; viljelyn kausiluonteisuus ja mahdollinen hoitamattomuuden aiheuttama epäsiisteys vähentävät sitä (esimerkiksi perennoihin nähden).",1.5,"Viljelyyn soveltuvat alueet vaativat usein runsaasti hoitoa, mutta hoidosta vastaavat asukkaat. Taloyhtiölle koituva kunnosspitovastuu pienempi kuin esim. nurmikolla.",2,"Keskinkertainen merkitys hulevesien hallinnalle.",1,2.0093749999999999,{"$f":"Viherkerroin!J13","v":0},1.704063604240283,null,null,null,null,null,null,null,null,null,null,null,null,null,null,null,null,null,null,null,null,0,0,0,0,0,0,null,0.15794021081734924,0.45204769310523585,0.12597200622083982,0.13962329358907899,0.12441679626749612,1,null,null,{"$f":"SUM(AJ2:AJ46)/SUM($AO2:$AO46)","v":{"$error":"#DIV/0!"}},{"$f":"SUM(AK2:AK46)/SUM($AO2:$AO46)","v":{"$error":"#DIV/0!"}},{"$f":"SUM(AL2:AL46)/SUM($AO2:$AO46)","v":{"$error":"#DIV/0!"}},{"$f":"SUM(AM2:AM46)/SUM($AO2:$AO46)","v":{"$error":"#DIV/0!"}},{"$f":"SUM(AN2:AN46)/SUM($AO2:$AO46)","v":{"$error":"#DIV/0!"}},{"$f":"SUM(AY13:BC13)","v":{"$error":"#DIV/0!"}},null,0]
[null,"Nurmikko, kasvualustan syvyys 0,15-0,2 m","Nurmikolla on merkitystä monimuotoisuudelle, mutta pienemmässä määrin kuin esimerkiksi perennoilla (kasvin ja kasvualustan koko). Vaatii tyypillisesti säännöllistä hoitoa, minkä vuoksi ei ole niin merkittävä monimuotoisuudelle.",0.5,"Nurmikko tarjoaa hyvät mahdollisuudet leikkimiseen. Nurmikon vaikutus pienilmaston säätelyssä on kuitenkin pieni (koko).",1.5,"Hoidettu nurmikko on siisti; hoitamattomana maisema-arvo vähenee merkittävästi. Muuhun matalaan kasvillisuuteen nähden yksipuolinen elementti.",1,"Hoitotarve useammin kuin kerran kuukaudessa. Nurmikko vaatii tyypillisesti säännöllistä leikkausta ja lannoitusta, sekä kuivina kausina kastelua.",0.5,"Nurmikolla on merkitystä hulevesien hallinnalle, mutta pienemmässä määrin kuin esimerkiksi perennoilla (kasvin ja kasvualustan koko)",1,1.101736111111111,{"$f":"Viherkerroin!J14","v":0},0.93433451118963506,null,null,null,null,null,null,null,null,null,null,null,null,null,null,null,null,null,null,null,null,0,0,0,0,0,0,null,0.14402773400567287,0.41222817522849037,0.15316734951150332,6.3662149385439654E-2,0.22691459186889382,1,null,"Elementtityyppi","Täytetty pinta-ala, m2","Osuus kokonaispinta-alasta, %","Täytetty lkm","Kokonaislkm","Osuus kokonaislkm:stä, %","Osuus painotetusta kokonaispinta-alasta, %",null,0]
[null,"Monivuotiset köynnökset, kasvualustan syvyys 0,6 m, vertikaalinen pinta-ala (à 2 m²)","Monivuotiset köynnökset ovat verrattavissa ekologisuuden osalta suuriin pensaisiin.",1.5,"Köynnökset tarjoavat samankaltaisen hyödyn pienilmastolle ja rakennusten energiankulutukselle kuin viherkatot.",1,"Köynnökset lisäävät vehreyttä siellä, missä normaalisti olisi läpäisemätöntä pintaa. Kukkivat/syysvärin saavat köynnökset tuovat väriä viherrakenteeseen. Arvioitu vähintään isokokoisia pensaita vastaava maisema-arvo",2,"Hoitotarve arvioitu vastaamaan pensaita. Tietyt köynnökset voivat rakennuksia vasten kasvaessaan vaurioittaa julkisivuja ja lisätä kunnostustarvetta.",1.5,"Vertikaalisen pinta-alan lisääntyminen ei ole suoraan verrainnollinen hulevesien hallinnasta saataviin hyötyihin -> pienempi painotus kuin isolla pensaalla.",1,1.5767361111111109,{"$f":"Viherkerroin!J15","v":0},1.33716136631331,null,null,null,null,null,null,null,null,null,null,null,null,null,null,null,null,null,null,null,null,0,0,0,0,0,0,null,0.30191587756000882,0.19202818762387136,0.21404976877339799,0.13345078176613082,0.15855538427659108,1,null,"Säilytettävä kasvillisuus",{"$f":"SUM(N2:N6)","v":0},{"$f":"AY15/Viherkerroin!$A$7","v":{"$error":"#DIV/0!"}},{"$f":"SUM(BF2:BF6)","v":0},{"$f":"COUNT(N2:N6)","v":5},{"$f":"BA15/$BA$20","v":{"$error":"#DIV/0!"}},{"$f":"AY15/Viherkerroin!$A$9","v":{"$error":"#DIV/0!"}},null,0]
[null,"Viherseinä, vertikaalinen pinta-ala","Viherseinän ekologinen arvo riippuu toteutustavasta ja sijainnista. Vaatii lisäselvitystä.",0.5,"Sama arvioitu hyöty kuin köynnöksillä.",1,"Hyvin suunnitellulla viherseinällä on sama arvioitu hyöty kuin köynnöksillä.",2,"Viherseinien toimivuudesta ei ole riittävästi kokemusta Suomessa kunnossapitotarpeen arvioimiseksi. Toimintojen säilyttämiseksi hoitotoimenpiteiden tarve voi kuitenkin olla merkittävä. Vaatii lisäselvityksiä. Lähtökohdaksi vertailuun otettu paljon hoitoa vaativa nurmikko.",0.5,"Viherseinällä, joka ei ole kytkeytynut kasvualustaan, on pienempi merkitys hulevesien hallinnalle kuin köynnöksillä. Vaatii lisäselvitystä.",0.25,0.93159722222222219,{"$f":"Viherkerroin!J16","v":0},0.79004711425206131,null,null,null,null,null,null,null,null,null,null,null,null,null,null,null,null,null,null,null,null,0,0,0,0,0,0,null,0.17033171822586657,0.32500931792769283,0.36228102869921736,7.5288855758479323E-2,6.708907938874395E-2,1,null,"Istutettava kasvillisuus",{"$f":"SUM(N7:N16)","v":0},{"$f":"AY16/Viherkerroin!$A$7","v":{"$error":"#DIV/0!"}},{"$f":"SUM(BF7:BF16)","v":0},{"$f":"COUNT(N7:N16)","v":10},{"$f":"BA16/$BA$20","v":{"$error":"#DIV/0!"}},{"$f":"AY16/Viherkerroin!$A$9","v":{"$error":"#DIV/0!"}},null,0]
["Pinnoitteet","Puoliläpäisevät pinnoitteet (esim. nurmikivi, kivituhka, kasvualusta 0,3 m)","Kasvualusta paksumpi kuin tavallisella nurmikolla. Arvioitu ekologinen hyöty samansuuruinen kuin nurmikolla.",0.5,"Sama toiminnallisuus kuin nurmikolla pienemmällä pienilmaston säätelyvaikutuksella -> alhaisempi painotus.",1,"Puoliläpäisevä nurmikivi-pinnoite on siisti - maisema-arvoltaan verrattavissa nurmikkoon.",1,"Hoitotarve yli 3 kertaa vuodessa. Puoliläpäisevien pinnoitteiden talvikunnossapito haasteellista (10). Suuri kiintoaineen tai roskien määrä heikentää pinnoitteen läpäisevyyttä.",1,"Puoliläpäisevä pinta, jossa kuitenkin haihduttavaa ja hiiltä sitovaa kasvillisuutta, soveltuu kohtalaisesti hulevesien hallintaan (10).",1,1.020486111111111,{"$f":"Viherkerroin!J17","v":0},0.86542991755005905,null,null,null,null,null,null,null,null,null,null,null,null,null,null,null,null,null,null,null,null,0,0,0,0,0,0,null,0.15549506634909835,0.29669955767267775,0.16536236815243283,0.13746172167403881,0.24498128615175233,1.0000000000000002,null,"Pinnoitteet",{"$f":"SUM(N17:N18)","v":0},{"$f":"AY17/Viherkerroin!$A$7","v":{"$error":"#DIV/0!"}},{"$f":"SUM(BF17:BF18)","v":0},{"$f":"COUNT(N17:N18)","v":2},{"$f":"BA17/$BA$20","v":{"$error":"#DIV/0!"}},{"$f":"AY17/Viherkerroin!$A$9","v":{"$error":"#DIV/0!"}},null,0]
[null,"Läpäisevät pinnoitteet (esim. sora- ja hiekkapinnat)","Parempi hulevesien läpäisevyys kuin nurmikivellä, mutta vähemmän muita ekologisia hyötyjä.",0.5,"Sama toiminnallisuus kuin nurmikolla ilman pienilmaston säätelyvaikutusta -> alhaisempi painotus",1,"Läpäisevä hiekka- ja sorapinta on selkeä eikä vaadi paljoa hoitoa näyttääkseen siistiltä. Viherrakenteen kannalta kuitenkin epäedullinen elementti, sillä vähentää tontin vehreyttä.",1,"Hoitotarve harvemmin kuin kerran vuodessa. ",3,"Parempi hulevesien läpäisevyys kuin nurmikivellä, muttä yleensä vähemmän kuin säilytettävillä luonnonmukaisilla pohjilla.",1.5,1.4260416666666664,{"$f":"Viherkerroin!J18","v":0},1.2093639575971731,null,null,null,null,null,null,null,null,null,null,null,null,null,null,null,null,null,null,null,null,0,0,0,0,0,0,null,0.11127343559775993,0.21232042853664473,0.11833455076698322,0.29510591672753839,0.26296566837107382,1,null,"Hulevesien hallintarakenteet",{"$f":"SUM(N19:N28)","v":0},{"$f":"AY18/Viherkerroin!$A$7","v":{"$error":"#DIV/0!"}},{"$f":"SUM(BF19:BF28)","v":0},{"$f":"COUNT(N19:N28)","v":9},{"$f":"BA18/$BA$20","v":{"$error":"#DIV/0!"}},{"$f":"AY18/Viherkerroin!$A$9","v":{"$error":"#DIV/0!"}},null,0]
["Hulevesien hallintarakenteet","Sadepuutarha (ei pysyvää vesipintaa), jossa monipuolista ja kerroksellista kasvillisuutta","Lajiston monimuotoisuuden kannalta erittäin merkittävä. Runsaan kasvillisuuden ansiosta myös merkitystä hiilensidonnalle. Ekologisuutta lisää mahdollisuus hyödyntää hulevedet puutarhanhoidossa. Huom. Vieraslajeja ja muita aggressiivisesti leviäviä lajeja vältettävä.",2.5,"Runsaan kasvillisuuden ansiosta merkitys pienilmaston säätelylle ja luonnosta oppimiselle. Toiminnallisuutta lisää osaltaan mahdollisuus puutarhanhoitoon.",2,"Hyvin suunniteltuna sadepuutarha voi toimia edustavana maisemaelementtinä, jonka maisema-arvoa ajoittainen kuivuminen ei heikennä. Lajit tulee valita tästä lähtökohdasta.",2.5,"Hyvin suunniteltu sadepuutarha ei kärsi ajoitteisesta kuivumisesta. Kasvillisuuden ja muiden pintojen hoitotarpeeksi arvioitu 1-2 kertaa vuodessa (hoitotarve vaatii kuitenkin lisäselvitystä) (10)",1.5,"Hulevesienhallinnan ja lajiston monimuotoisuuden kannalta erittäin merkittävä; soveltuu hyvin hulevesien määrän ja laadun hallintaan (10).",3,2.78125,{"$f":"Viherkerroin!J20","v":0},2.3586572438162547,null,null,null,null,null,null,null,null,null,null,null,null,null,null,null,null,null,null,null,null,0,0,0,0,0,0,null,0.2852684144818976,0.21772784019975025,0.15168539325842698,7.5655430711610475E-2,0.2696629213483146,1,null,"Bonuselementit",{"$f":"SUM(N29:N46)","v":0},{"$f":"AY19/Viherkerroin!$A$7","v":{"$error":"#DIV/0!"}},{"$f":"SUM(BF29:BF46)","v":0},{"$f":"COUNT(N29:N46)","v":12},{"$f":"BA19/$BA$20","v":{"$error":"#DIV/0!"}},{"$f":"AY19/Viherkerroin!$A$9","v":{"$error":"#DIV/0!"}},null,0]
[null,"Viherkatto: Kattopuutarha 30 – 100 cm (paksuus toivotun lajiston mukaan: Esim. 30 cm mahdollistaa vain matalat pensaat; vähintään 60 cm vaaditaan suuremmille puuvartisille: Katso: RT 85-11204 Viherkatot ja katto- ja kansipuutarhat, kasvillisuus ja kasvualusta; Taulukko 14)","Viherkatot vähentävät rakennusten enengiankulutusta ja tämän myötä kasvihuonekaasupäästöjä. Viherkatot tarjoavat elinympäristöjä ja ravintoa muun muassa erilaisille hyönteislajeille sekä niitä ravintonaan käyttäville linnuille.",1.5,"Viherkatot ovat toiminnallisuuden osalta verrattavissa nurmikon kaltaiseen matalaan kasvillisuuteen. Viherkatot tarjoavat esimerkiksi mahdollisuuden hyötyviljelyyn ja vähentävät ilman epäpuhtauksia.",1.5,"Viherkatot ovat merkittäviä maisemalle, sillä ne lisäävät vehreyttä siellä, missä normaalisti olisi läpäisemätöntä pintaa. Lisäksi viherkatot näkyvät usein pidemmälle kuin esimerkiksi matalat perennat. Monilajiset ja esimerkiksi maksaruoho(Sedum)-peitteellä varustetut viherkatot ovat myös monivärisiä ja luovat vuodenaikaisvaihtelua. Mitä paksumpi kasvualusta viherkatolla on, sitä suurempi valikoima istutettavassa kasvillisuudessa on. Arvioitu perennoja vastaava maisema-arvo.",2,"Hoitotarve yli 3 kertaa vuodessa. Vaatii vedenpoistojärjestelmien ja kasvillisuuden hoitoa sekä roskien, puuntaimien ja lumen poistoa (10). Viherkaton lisääminen jälkikäteen rakennukseen vaatii usein kantavuuden lisäämistä rakenteellisilla muutoksilla.",1,"Viherkatot ovat hulevesien hallinnan osalta verrattavissa nurmikon kaltaiseen matalaan kasvillisuuteen. Viherkatto yli 0,3 m syvällä kasvualustalla on kuitenkin merkittävämpi hulevesien hallinnalle kuin nurmikko (0,05-0,2 m kasvualusta). Soveltuu hyvin hulevesien määrän hallintaan (10).",2.5,2.0329861111111112,{"$f":"Viherkerroin!J21","v":0},1.7240871613663136,null,null,null,null,null,null,null,null,null,null,null,null,null,null,null,null,null,null,null,null,{"$f":"IF($N20>0,AQ20,0)","v":0},0,0,0,0,{"$f":"SUM(AJ20:AN20)","v":0},null,{"$f":"D20*$AY$3/5/M20","v":0.23415883859948758},{"$f":"F20*$AY$6/5/M20","v":0.223398804440649},{"$f":"H20*$AY$9/5/M20","v":0.16601195559350984},{"$f":"J20*$AY$10/5/M20","v":6.900085397096499E-2},{"$f":"L20*$AY$11/5/M20","v":0.30742954739538852},{"$f":"SUM(AQ20:AU20)","v":1},null,null,null,{"$f":"SUM(AZ15:AZ19)","v":{"$error":"#DIV/0!"}},{"$f":"SUM(BA15:BA19)","v":0},{"$f":"SUM(BB15:BB19)","v":38},{"$f":"SUM(BC15:BC19)","v":{"$error":"#DIV/0!"}},{"$f":"SUM(BD15:BD19)","v":{"$error":"#DIV/0!"}},null,0]
[null,"Viherkatto: Niitty, keto tai heinä, kasvualustan paksuus 10 – 29 cm  (paksuus toivotun lajiston mukaan: Esim. 10 cm mahdollistaa kuivan ketokaton; vähintään 15 cm vaaditaan rehevämmälle niittykatolle: Katso: RT 85-11204  Viherkatot ja katto- ja kansipuutarhat, kasvillisuus ja kasvualusta; Taulukko 14)","Ekologisuus vertailukelpoisempi kattopuutarhan kuin maksaruohokaton kanssa, sillä 10-29 cm paksuiselle viherkatolle voi istuttaa  jo hyvinkin monimuotoista kasvillisuutta. ",1.5,"Toiminnallisuus sama kuin paksummalla viherkatolla, mutta pienemmässä mittakaavassa, sillä ohuemmalle kasvualustalle ei ole mahdollista istuttaa yhtä monipuolista kasvillisuutta. ",1,"Maisema-arvo sama kuin paksummalla viherkatolla, mutta pienemmässä mittakaavassa, sillä ohuemmalle kasvualustalle ei ole mahdollista istuttaa yhtä monipuolista kasvillisuutta. ",1.5,"Hoitotarve sama kuin paksummalla viherkatolla.",1,"Hulevesien hallinnan potentiaali sama kuin paksummalla viherkatolla, mutta pienemmässä mittakaavassa ohuemman kasvualustan vuoksi. ",2,1.6722222222222221,{"$f":"Viherkerroin!J22","v":0},1.418138987043581,null,null,null,null,null,null,null,null,null,null,null,null,null,null,null,null,null,null,null,null,0,0,0,0,0,{"$f":"SUM(AJ21:AN21)","v":0},null,{"$f":"D21*$AY$3/5/M21","v":0.28467607973421927},{"$f":"F21*$AY$6/5/M21","v":0.181063122923588},{"$f":"H21*$AY$9/5/M21","v":0.15137043189368771},{"$f":"J21*$AY$10/5/M21","v":8.3887043189368779E-2},{"$f":"L21*$AY$11/5/M21","v":0.29900332225913623},{"$f":"SUM(AQ21:AU21)","v":1},null,"Elementtityyppi","Ekologisuus","Toiminnallisuus","Maisema-arvo","Kunnossapito","Hulevesi","Yhteensä",null,0]
[null,"Viherkatto: Maksaruoho- tai sammalkatto, kasvualustan paksuus 4 – 9 cm","Ekologisuus sama kuin paksummalla viherkatolla, mutta pienemmässä mittakaavassa.",1,"Toiminnallisuus sama kuin paksummalla viherkatolla, mutta pienemmässä mittakaavassa. Ei kuitenkaan siinä määrin havaittavaa eroa, että vaikuttaisi painotukseen. ",1,"Maisema-arvo sama kuin paksummalla viherkatolla, mutta pienemmässä mittakaavassa. Ei kuitenkaan siinä määrin havaittavaa eroa, että vaikuttaisi painotukseen.",1.5,"Hoitotarve sama kuin paksummalla viherkatolla.",1,"Hulevesien hallinnan potentiaali sama kuin paksummalla viherkatolla, mutta pienemmässä mittakaavassa ohuemman kasvualustan vuoksi. ",1.5,1.3885416666666663,{"$f":"Viherkerroin!J23","v":0},1.1775618374558303,null,null,null,null,null,null,null,null,null,null,null,null,null,null,null,null,null,null,null,null,0,0,0,0,0,{"$f":"SUM(AJ22:AN22)","v":0},null,{"$f":"D22*$AY$3/5/M22","v":0.22855713928482124},{"$f":"F22*$AY$6/5/M22","v":0.21805451362840711},{"$f":"H22*$AY$9/5/M22","v":0.18229557389347339},{"$f":"J22*$AY$10/5/M22","v":0.10102525631407855},{"$f":"L22*$AY$11/5/M22","v":0.27006751687921987},{"$f":"SUM(AQ22:AU22)","v":1.0000000000000002},null,"Säilytettävä kasvillisuus",{"$f":"SUM(AJ2:AJ6)/SUM($AO2:$AO6)","v":{"$error":"#DIV/0!"}},{"$f":"SUM(AK2:AK6)/SUM($AO2:$AO6)","v":{"$error":"#DIV/0!"}},{"$f":"SUM(AL2:AL6)/SUM($AO2:$AO6)","v":{"$error":"#DIV/0!"}},{"$f":"SUM(AM2:AM6)/SUM($AO2:$AO6)","v":{"$error":"#DIV/0!"}},{"$f":"SUM(AN2:AN6)/SUM($AO2:$AO6)","v":{"$error":"#DIV/0!"}},{"$f":"SUM(AY22:BC22)","v":{"$error":"#DIV/0!"}},null,0]
[null,"Imeytysallas tai -painanne kasvillisuus- tai kiviainespinnalla (ei pysyvää vesipintaa, läpäisevä maaperä)","Pienempi merkitys monimuotoisuudelle ja hiilensidonnalle kuin sadepuutarhalla.",2.5,"Pienempi merkitys pienilmaston tasaamisessa kuin sadepuutarhalla. Mahdollistaa suurelta osin samat toiminnot kuin nurmikko ja läpäisevät pinnoitteet.",1.5,"Maisema-arvo riippuu painanteen toteutustavasta. Tyypillisesti sora- ja nurmipeitteellä varustettu painanne verrattavissa kyseisien elementtien maisema-arvoon.",1,"Hoitotarve riippuu toteutustavasta. Nurmipinta verrattavissa nurmikkoon (0,5), kiviainespintaa hoidettava harvemmin. Keskimääräinen hoitotarve (1-2 kertaa vuodessa/ kerran kuukaudessa) = 1. Vaatii roskien ja kiintoaineksen poistoa, suodattavan kerroksen läpäisevyyden ylläpitoa, kaivon lietepesän tyhjennystä (kerran vuodessa) (10)",1,"Erittäin suuri merkitys hulevesien määrälliselle ja laadulliselle hallinnalle (10). ",3,2.306597222222222,{"$f":"Viherkerroin!J24","v":0},1.9561248527679627,null,null,null,null,null,null,null,null,null,null,null,null,null,null,null,null,null,null,null,null,0,0,0,0,0,0,null,0.34397109739575493,0.19689899141953937,7.315971699533344E-2,6.0815896432334794E-2,0.32515429775703752,1,null,"Istutettava kasvillisuus",{"$f":"SUM(AJ7:AJ16)/SUM($AO7:$AO16)","v":{"$error":"#DIV/0!"}},{"$f":"SUM(AK7:AK16)/SUM($AO7:$AO16)","v":{"$error":"#DIV/0!"}},{"$f":"SUM(AL7:AL16)/SUM($AO7:$AO16)","v":{"$error":"#DIV/0!"}},{"$f":"SUM(AM7:AM16)/SUM($AO7:$AO16)","v":{"$error":"#DIV/0!"}},{"$f":"SUM(AN7:AN16)/SUM($AO7:$AO16)","v":{"$error":"#DIV/0!"}},{"$f":"SUM(AY23:BC23)","v":{"$error":"#DIV/0!"}},null,0]
[null,"Imeytyskaivanto (esim. kivipesä)","Ei merkitystä monimuotoisuudelle ja hiilensidonnalle. Toisaalta vapauttaa tilaa kasvillisuudelle tai muulle maankäytölle maan pinnalla.",2,"Ei merkitystä pienilmaston tasaamiselle. Toiminnallisuutta lisää mahdollisuus muiden toimintojen sijoittamiseen kaivannon päälle.",1,"Ei merkitystä maisemalle",0,"Hoitotarve pienempi kuin kasvillisuuspintaisella rakenteella. Vaatii roskien ja kiintoaineksen poisto, suodattavan kerroksen läpäisevyyden ylläpito, kaivon lietepesän tyhjennys (kerran vuodessa) (10)",1.5,"Pienempi merkitys pienvesien virtaamien tasaamisessa ja eroosion ehkäisyssä kuin imeytyspainanteella. ",1.5,1.5229166666666665,{"$f":"Viherkerroin!J25","v":0},1.2915194346289753,null,null,null,null,null,null,null,null,null,null,null,null,null,null,null,null,null,null,null,null,0,0,0,0,0,0,null,0.41678066575467398,0.19881440948472409,0,0.13816689466484269,0.24623803009575926,1,null,"Pinnoitteet",{"$f":"SUM(AJ17:AJ18)/SUM($AO17:$AO18)","v":{"$error":"#DIV/0!"}},{"$f":"SUM(AK17:AK18)/SUM($AO17:$AO18)","v":{"$error":"#DIV/0!"}},{"$f":"SUM(AL17:AL18)/SUM($AO17:$AO18)","v":{"$error":"#DIV/0!"}},{"$f":"SUM(AM17:AM18)/SUM($AO17:$AO18)","v":{"$error":"#DIV/0!"}},{"$f":"SUM(AN17:AN18)/SUM($AO17:$AO18)","v":{"$error":"#DIV/0!"}},{"$error":"#DIV/0!"},null,0]
[null,"Lampi, kosteikko tai tulvaniitty luonnonmukaisella kasvillisuudella (ainakin osan vuodesta pysyvä vesipinta; muun ajan maa pysyy kosteana); Katso: Hagelberg et al., 2009 (18)","Luonnonmukainen kasvillisuus tärkeää monimuotoisuudelle, elinympäristöille ja ekologiselle verkostolle. Runsaan kasvillisuuden ansiosta myös merkitystä hiilensidonnalle. Huom. Vieraslajeja ja muita aggressiivisesti leviäviä lajeja vältettävä.",3,"Runsaan kasvillisuuden ansiosta merkitys pienilmaston säätelylle sekä luonnosta oppimiselle.",2,"Koettu masema-arvo jakaa mielipiteitä. Soveltuu  väljään yhdyskuntarakenteeseen, jossa suositaan luonnonmukaisempaa kasvillisuutta.",1.5,"Kosteikkokasvillisuus vaatii jonkin verran hoitoa monipuolisen kasvivalikoiman säilyttämiseksi, umpeenkasvun estämiseksi ja toimivuuden takaamiseksi. Esim. Tasausaltaan ja purku-uomien tai -putkien puhdistamisesta  huolehdittava. Arvioitu tarve kasvillisuuden hoitoon ja rakenteiden toimivuuden varmistamiseen 1-2 kertaa vuodessa; ruoppaus 10-15 vuoden välein. (10)",2,"Imeytyspainanne soveltuu hyvin hulevesien määrän ja laadun hallintaan (10).",3,2.8413194444444443,{"$f":"Viherkerroin!J26","v":0},2.4095995288574796,null,null,null,null,null,null,null,null,null,null,null,null,null,null,null,null,null,null,null,null,0,0,0,0,0,0,null,0.33508493217646335,0.21312477086643036,8.9087131858731516E-2,9.8741292924355378E-2,0.26396187217401934,1,null,"Hulevesien hallintarakenteet",{"$f":"SUM(AJ19:AJ28)/SUM($AO19:$AO28)","v":{"$error":"#DIV/0!"}},{"$f":"SUM(AK19:AK28)/SUM($AO19:$AO28)","v":{"$error":"#DIV/0!"}},{"$f":"SUM(AL19:AL28)/SUM($AO19:$AO28)","v":{"$error":"#DIV/0!"}},{"$f":"SUM(AM19:AM28)/SUM($AO19:$AO28)","v":{"$error":"#DIV/0!"}},{"$f":"SUM(AN19:AN28)/SUM($AO19:$AO28)","v":{"$error":"#DIV/0!"}},{"$error":"#DIV/0!"},null,0]
[null,"Viivytys- tai pidätysallas tai -painanne kasvillisuus- tai kiviainespinnalla (ainakin osan vuodesta pysyvä vesipinta; muun ajan maa pysyy kosteana)","Samat toiminnot kuin kosteikolla. Pienempi merkitys monimuotoisuudelle sekä hiilensidonnalle.",2,"Toiminnallisuus verrattavissa imeytyspainanteeseen.",1.5,"Maisema-arvo riippuu painanteen toteutustavasta. Tyypillisesti sora- ja nurmipeitteellä varustettu painanne verrattavissa kyseisien elementtien maisema-arvoon.",1,"Hoitotarve verrattavissa imeytyspainanteeseen. Sis: kasvillisuuden tai kiviainespinnan hoito, purkuputken tai maapadon toimivuuden tarkkailu sekä\nroskien ja kiintoaineksen poisto tarvittaessa (10)",1,"Samat toiminnot kuin kosteikolla, mutta pienempi määrällinen ja laadullinen merkitys hulevesien hallinnalle.",2.5,2.0229166666666663,{"$f":"Viherkerroin!J27","v":0},1.7155477031802122,null,null,null,null,null,null,null,null,null,null,null,null,null,null,null,null,null,null,null,null,0,0,0,0,0,0,null,0.31376587710264336,0.22451081359423278,8.3419155509783752E-2,6.9344318571919E-2,0.30895983522142129,1.0000000000000002,null,"Bonuselementit",{"$f":"SUM(AJ29:AJ46)/SUM($AO29:$AO46)","v":{"$error":"#DIV/0!"}},{"$f":"SUM(AK29:AK46)/SUM($AO29:$AO46)","v":{"$error":"#DIV/0!"}},{"$f":"SUM(AL29:AL46)/SUM($AO29:$AO46)","v":{"$error":"#DIV/0!"}},{"$f":"SUM(AM29:AM46)/SUM($AO29:$AO46)","v":{"$error":"#DIV/0!"}},{"$f":"SUM(AN29:AN46)/SUM($AO29:$AO46)","v":{"$error":"#DIV/0!"}},{"$error":"#DIV/0!"},null,0]
[null,"Viivytyskaivanto tai -säiliö (maanalainen)","Samat toiminnot kuin viivytyspainanteella. Ei merkitystä monimuotoisuudelle ja hiilensidonnalle. Toisaalta vapauttaa tilaa kasvillisuudelle tai muulle maankäytölle maan pinnalla.",1.5,"Ei merkitystä pienilmaston tasaamiselle. Toiminnallisuutta lisää mahdollisuus muiden toimintojen sijoittamiseen kaivannon päälle.",1,"Ei merkitystä maisemalle",0,"Hoitotarve verrattavissa imeytyskaivantoon. Sis: esim. salaojajärjestelmän huuhtominen ja kiintoaineksen poisto imumenetelmällä (10)",1.5,"Samat toiminnot kuin viivytyspainanteella, mutta pienempi merkitys hulevesien laadullisessa hallinnassa. ",1.5,1.364236111111111,null,1.1569493521790342,null,null,null,null,null,null,null,null,null,null,null,null,null,null,null,null,null,null,null,null,0,0,0,0,0,0,null,0.34894375159073554,0.22193942479002288,0,0.15423771952150675,0.27487910409773481,1,null,null,null,null,null,null,null,null,null,0]
[null,"Biosuodatuspainanne tai -allas","Samaa merkitystä hiilensidonnalle ja luonnon monimuotoisuudelle kuin viivytys- tai pidätysaltaalla.",2,"Sama merkitys pienilmaston säätelylle ja luonnosta oppimiselle kuin saadepuutarhalla.",2,"Maisema-arvo riippuu painanteen toteutustavasta. Tyypillisesti vertailukelpoinen viivytys- tai imeytyspainanteen kanssa.",1.5,"Hoitotarve verrattavissa imeytyskaivantoon. Sis: esim. salaojajärjestelmän huuhtominen ja kiintoaineksen poisto imumenetelmällä (10)",1.2,"Samat toiminnot kuin sadepuutarhalla, kosteikolla tai imeytyspainanteella.",3,2.4117361111111109,{"$f":"Viherkerroin!J29","v":0},2.0452885747938754,null,null,null,null,null,null,null,null,null,null,null,null,null,null,null,null,null,null,null,null,0,0,0,0,0,0,null,0.26318062714158197,0.25108698781997751,0.1049555126839241,6.979757551325981E-2,0.31097929684125664,1,null,null,null,null,null,null,null,null,null,0]
["Bonuselementit, max 1 piste/osa-alue ","Hulevesien ohjaaminen läpäisemättömiltä pinnoilta läpäisevälle kasvillisuudelle maassa","Ekologisuutta lisää myös vesijohtoveden vähentäminen kastelussa.",1,"Toiminnallisuutta lisää mahdollisuus hyödyntää hulevesiä kasvillisuuden hoidossa.",0.5,"Ei merkitystä maisemalle",0,"Kunnossapitotarve riippuu rakenteesta. Vaatii todennäköisesti roskien poistoa ja vettä johtavien putkien puhdistamista 1-2 kertaa vuodessa tai useammin. (10)",0.5,"Merkitystä hulevesien hallinnalle, mutta riippuu kovasti ohjaamisreitin toteuttamisesta ja kunnossapidosta.",0.5,0.66388888888888875,{"$f":"Viherkerroin!J30","v":0},0.56301531213191991,null,null,null,null,null,null,null,null,null,null,null,null,null,null,null,null,null,null,null,null,0,0,0,0,0,0,null,0.47803347280334735,0.22803347280334726,0,0.10564853556485358,0.18828451882845193,1,null,null,null,null,null,null,null,null,null,0]
[null,"Hulevesien ohjaaminen läpäisemättömiltä pinnoilta rakennettuihin vesiaiheisiin, kuten lampiin ja puroihin (joissa vesi vaihtuu/kiertää)","Merkitystä erityisesti monimuotoisuudelle, mutta myös hiilensidonnalle.",1,"Mahdollisuus vesileikkeihin ja luonnosta oppimiseen. Toiminnallisuutta vähentävät turvallisuusnäkökohdat ja usein vesiaiheisiin liittyvät hyöntesiet kuten hyttyset",0.5,"Vesiaiheilla on huomattava merkitys maisemalle",1,"Arvioitu kunnossapitotarve 1-2 kertaa vuodessa tai useammin; riippuu rakennettavan vesiaiheen tyypistä. Usein vaatii roskien poistoa ja vesiaiheeseen johtavien putkien puhdistamista. (10)",0.5,"Merkitystä hulevesien hallinnalle, mutta riippuu kovasti ohjaamisreitin ja liitetyn vesiaiheen toteuttamisesta ja kunnosapidosta.",0.5,0.83263888888888871,{"$f":"Viherkerroin!J31","v":0},0.70612485276796233,null,null,null,null,null,null,null,null,null,null,null,null,null,null,null,null,null,null,null,null,0,0,0,0,0,0,null,0.38115095913261055,0.18181818181818182,0.20266889074228531,8.4236864053377838E-2,0.15012510425354467,1.0000000000000002,null,null,null,null,null,null,null,null,null,0]
[null,"Jalopuut ja metsähaapa, istutettava tai säilytettävä isokokoinen puu (à 25 m²)","Jalopuilla ja metsähaavalla on erittäin suuri merkitys uhanalaisten lajien säilymiselle. Ne ovat ns. avainlajeja (12), eli niiden säilyttämisestä ovat riippuvaisia lukuisat muut lajit. Jalopuista koostuvat metsiköt ovat hyvin merkittävä elinympäristö (4). Yksittäiset istutetut puut eivät luonnollisesti ole verrattavissa luonnonmetsään; esimerkiksi yksittäisten puistopuiden on kuitenkin huomattu toimivan elinympäristöinä monille harvinaisille kääville (5) ja hyönteisille. Lehtipuut myös parantavat maaperää havupuihin nähden ravinteisemmalla lehtikarikkeellaan (11).",1,"Lehtipuilla pienempi merkitys pienilmaston säätelyssä havupuihin nähden (pienempi lehtialaindeksi, lehdettömyys talvella) (11)",0.5,"Jalopuut ovat erittäin suosittuja maisemapuita Helsingissä",1,"Jalopuut usein suojattava kasvinsyöjiltä taimivaiheessa. Vakiinnuttua ei kuitenkaan suurta kunnossapidon tarvetta (Huom. Jalopuiden käytössä vältettävä yksinomaan jalavien (Ulmus) käyttöä jalavantaudin vuoksi)",1,null,null,0.77777777777777768,null,0.65959952885747941,null,null,null,null,null,null,null,null,null,null,null,null,null,null,null,null,null,null,null,null,0,0,0,0,0,0,null,0.40803571428571433,0.19464285714285712,0.21696428571428575,0.18035714285714288,0,1,null,null,null,null,null,null,null,null,null,0]
[null,"Havupuut, istutettava tai säilytettävä isokokoinen puu (à 25 m²)","Havupuilla jalopuita suurempi merkitys hulevesienhallinnalle ikivihreyden ja suuremman lehtialaindeksin ansiosta (11)",0.5,"Havupuilla erittäin suuri merkitys pienilmaston säätelyssä suuren lehtialan ja ikivihreyden ansiosta - suoja melulta, tuulelta ja ilmansaasteilta",1,"Havupuiden merkitys maisemassa korostuu erityisesti talvella muun (lehdellisen) kasvillisuuspeitteen vähentyessä",1,"Vakiinnuttua ei suurta kunnossapidon tarvetta. Havupuut ovat kuitenkin usein herkempiä ilmansaasteille kuin lehtipuut (harsuuntuminen) (15)",1,null,null,0.77048611111111098,null,0.6534157832744405,null,null,null,null,null,null,null,null,null,null,null,null,null,null,null,null,null,null,null,null,{"$f":"IF($N32>0,AQ32,0)","v":0},{"$f":"IF($N32>0,AR32,0)","v":0},{"$f":"IF($N32>0,AS32,0)","v":0},{"$f":"IF($N32>0,AT32,0)","v":0},0,0,null,0.20594862550698514,0.39296980621901756,0.2190175754844525,0.18206399278954488,0,1,null,null,null,null,null,null,null,null,null,0]
[null,"Havupuut, istutettava tai säilytettävä pienikokoinen puu (à 15 m²)","Havupuilla jalopuita suurempi merkitys hulevesienhallinnalle ikivihreyden ja suuremman lehtialaindeksin ansiosta (11)",0.5,"Havupuilla erittäin suuri merkitys pienilmaston säätelyssä suuren lehtialan ja ikivihreyden ansiosta - suoja melulta, tuulelta ja ilmansaasteilta",1,"Havupuiden merkitys maisemassa korostuu erityisesti talvella muun (lehdellisen) kasvillisuuspeitteen vähentyessä",1,"Vakiinnuttua ei suurta kunnossapidon tarvetta. Havupuut ovat kuitenkin usein herkempiä ilmansaasteille kuin lehtipuut (harsuuntuminen) (15)",1,null,null,0.77048611111111098,null,0.6534157832744405,null,null,null,null,null,null,null,null,null,null,null,null,null,null,null,null,null,null,null,null,0,0,0,0,0,0,null,0.20594862550698514,0.39296980621901756,0.2190175754844525,0.18206399278954488,0,1,null,null,null,null,null,null,null,null,null,0]
[null,"Varjostava isokokoinen puu (à 25 m²) rakennuksen etelä- ja lounaispuolella (erityisesti lehtipuut) ","Merkitys hiilensidonnalle ja monimuotoisuudelle.",0.5,"Varjostavat puut auringon tulosuunnassa vähentävät rakennusten viilentämistarvetta kesäisin. ",1,"Puilla on merkittävä arvo maisemassa",1,"Ei merkittävää kunnossapitotarvetta.",1,"Isokokoisella istutettavalla puulla on samakaltaiset hyödyt kuin vastaavalla säilytettävällä puulla, mutta hyödyt realisoituvat usein vasta vuosien päästä.",0.5,0.89548611111111109,{"$f":"Viherkerroin!J32","v":0},0.75942285041224977,null,null,null,null,null,null,null,null,null,null,null,null,null,null,null,null,null,null,null,null,0,0,0,0,0,0,null,0.17720046529662659,0.33811554866227211,0.18844513377278016,0.1566498642884839,0.13958898797983715,1,null,null,null,null,null,null,null,null,null,0]
[null,"Varjostava pienikokoinen puu (à 15 m²) rakennuksen etelä- ja lounaispuolella (erityisesti lehtipuut) ","Merkitys hiilensidonnalle ja monimuotoisuudelle.",0.5,"Varjostavat puut auringon tulosuunnassa vähentävät rakennusten viilentämistarvetta kesäisin. ",1,"Puilla on merkittävä arvo maisemassa",1,"Ei merkittävää kunnossapitotarvetta.",1,"Pienikokoisella istutettavalla puulla on samankaltaiset hyödyt kuin istutettavalla isolla puulla, mutta pienemmässä mittakaavassa (kasvin ja kasvualustan koko).",0.5,0.89548611111111109,{"$f":"Viherkerroin!J33","v":0},0.75942285041224977,null,null,null,null,null,null,null,null,null,null,null,null,null,null,null,null,null,null,null,null,0,0,0,0,0,0,null,0.17720046529662659,0.33811554866227211,0.18844513377278016,0.1566498642884839,0.13958898797983715,1,null,null,null,null,null,null,null,null,null,0]
[null,"Viljelyyn soveltuvat istutukset: hedelmäpuut (à 10 m²), marjapensaat (à 10 m²)","Monivuotiset hedelmäpuut ja marjapensaat ovat tärkeitä monimuotoisuudelle (pölyttäminen, ravintokasvina toimiminen), hiilensidonnalle ja hulevesien hallinnalle.",1,"Merkitystä virkistyskäytölle (esim. hyötyviljelylle) ja luonnosta oppimiselle.",1,"Usein kasvukauden alussa kukkivat ja myöhemmin hedelmiä tuottavat puut ovat hyvin arvokkaita maisemalle. Marjoja tuottavat pensaat ovat hyvin arvokkaita maisemalle. ",1,"Hedelmäpuut ja marjapensaat vaativat  hoitoa vähintään 2 kertaa vuodessa (lannoitus, leikkaus) minkä lisäksi ne on usein suojattava kasvinsyöjiltä.",0.5,"Istutettavalla pienemmällä pensaalla on samankaltiaset hyödyt kuin istutettavalla suurella pensaalla, mutta pienemmässä mittakaavassa (kasvin ja kasvualustan koko).",0.5,0.98402777777777772,{"$f":"Viherkerroin!J34","v":0},0.83451118963486459,null,null,null,null,null,null,null,null,null,null,null,null,null,null,null,null,null,null,null,null,0,0,0,0,0,0,null,0.32251235003528583,0.30769230769230765,0.17148906139731829,7.1277346506704309E-2,0.12702893436838392,1,null,null,null,null,null,null,null,null,null,0]
[null,"Viljelyyn soveltuvat marjapensaat (à 3 m²)","Monivuotiset marjapensaat ovat tärkeitä monimuotoisuudelle (pölyttäminen, ravintokasvina toimiminen), hiilensidonnalle ja hulevesien hallinnalle.",1,"Merkitystä virkistyskäytölle (esim. hyötyviljelylle) ja luonnosta oppimiselle.",1,"Marjoja tuottavat pensaat ovat hyvin arvokkaita maisemalle. ",1,"Marjapensaat vaativat  hoitoa vähintään 2 kertaa vuodessa (lannoitus, leikkaus) minkä lisäksi ne on usein suojattava kasvinsyöjiltä.",0.5,null,null,0.85902777777777772,null,0.72850412249705543,null,null,null,null,null,null,null,null,null,null,null,null,null,null,null,null,null,null,null,null,0,0,0,0,0,0,null,0.3694421988682296,0.35246564268391262,0.19644300727566696,8.1649151172190793E-2,0,1,null,null,null,null,null,null,null,null,null,0]
[null,"Monikerroksinen, luonnonmukaisesti kehittyvä kasvillisuus, väh. 5 luonnonlajia /100 m²","Monikerroksinen, luonnonmukainen kasvillisuus tärkeää monimuotoisuudelle, elinympäristöille ja ekologiselle verkostolle. Alueelle soveltuva kasvillisuus vähentää myös hoitotarvetta, mikä lisää ekologisuutta.",1,"Merkitys pienilmastolle ja luonnosta oppimiselle.",1,"Alueelle soveltuvat lajit lisäävät maisema-arvoa.",1,"Vakiinnuttua ei suurta kunnossapidon tarvetta. Alueelle soveltuva kasvillisuus vähentää merkittävästi hoitotarvetta.",1,"Monikerroksisella kasvillisuudella suurempi vaikutus hulevesien hallinnalle käsittelyn ja imeytymisen kautta.",1,1.1791666666666665,{"$f":"Viherkerroin!J35","v":0},1,null,null,null,null,null,null,null,null,null,null,null,null,null,null,null,null,null,null,null,null,0,0,0,0,0,0,null,0.26914016489988224,0.25677267373380447,0.14310954063604245,0.11896348645465256,0.21201413427561841,1,null,"Elementtikohtaiset minimivaatimukset","Täytetty","Vaadittu",true,null,null,null,null,0]
[null,"Helsingille ominaiset puulajit ja kukkivat puut ja pensaat - väh. 3 lajia/100 m²","Tärkeää monimuotoisuudelle, elinympäristöille ja ekologiselle verkostolle. Alueelle soveltuva kasvillisuus vähentää myös hoitotarvetta, mikä lisää ekologisuutta.",1,"Merkitys pienilmastolle ja luonnosta oppimiselle.",0.5,"Alueelle soveltuvat lajit lisäävät maisema-arvoa. Erityisesti kukkivat lajit arvokkaita maiseman kannalta.",1,"Vakiinnuttua ei suurta kunnossapidon tarvetta. Alueelle soveltuva kasvillisuus vähentää merkittävästi hoitotarvetta.",1,"Vain pieni vaikutus hulevesien hallinnalle.",0.5,0.90277777777777768,{"$f":"Viherkerroin!J36","v":0},0.76560659599528869,null,null,null,null,null,null,null,null,null,null,null,null,null,null,null,null,null,null,null,null,0,0,0,0,0,0,null,0.35153846153846158,0.16769230769230767,0.18692307692307697,0.1553846153846154,0.13846153846153847,1,null,"Vähintään 1 hulevesirakenne",{"$f":"SUM(BF22:BF27)","v":0},{"$f":"IF(Rajaukset!#REF!=\"-\",0,1)","v":{"$error":"#REF!"}},{"$f":"IF(AY39>=AZ39,\"Kyllä\",\"Ei\")","v":{"$error":"#REF!"}},null,null,null,null,0]
[null,"Monilajinen kukkiva kasvillisuus, jota pölyttäjt  kykenevät hyödyntämään, väh. 10 pölyttäjille tärkeää lajia/100 m² ","Merkitys pölyttäjien tukemiselle. Alueelle ominaisen pölyttäjälajiston mukaan valitut monilajiset kasvialueet tärkeitä pölyttäjille, kuten perhosille  (16, 17). Tärkeää monimuotoisuudelle, elinympäristöille ja ekologiselle verkostolle. ",0.8,"Merkitys erityisesti luonnosta oppimiselle ja havainnoinnille.",1,"Kukkivat kasvit ovat erityisen merkittäviä maisemalle. ",1,"Hoito esimerkiksi niityillä perustamisvaiheessa 1-2 kertaa vuodessa tai useammin, mikäli alueella esiintyy rikkakasveja. Myöhemmin niitto kerran vuodessa. Kukkivat pensaat ja puut voivat olla helppohoitoisempia.",0.5,"Erittäin pieni vaikutus hulevesien hallinnalle.",0.1,0.82055555555555559,{"$f":"Viherkerroin!J37","v":0},0.6958775029446409,null,null,null,null,null,null,null,null,null,null,null,null,null,null,null,null,null,null,null,null,0,0,0,0,0,0,null,0.3094109681787407,0.36899119837508454,0.20565335138794855,8.5477318889641163E-2,3.0467163168584971E-2,0.99999999999999989,null,"Vähintään 1 säilytettävä elementti",{"$f":"SUM(BF2:BF6)","v":0},{"$f":"IF(Rajaukset!#REF!=\"-\",0,1)","v":{"$error":"#REF!"}},{"$f":"IF(AY40>=AZ40,\"Kyllä\",\"Ei\")","v":{"$error":"#REF!"}},null,null,null,null,0]
[null,"Näyttävästi kukkivat/tuoksuvat istutukset","Kukkivat ja tuoksuvat kasvit ovat usein merkittäviä myös pölyttäjille (13) - merkitys monimuotoisuudelle.",0.5,"Merkitys erityisesti luonnosta oppimiselle.",1,"Kukkivat ja värikkäät kasvit ovat erityisen merkittäviä maisemalle. ",1,"Kukkivilla kasveilla usein suurempi hoitotarve.",0.5,null,null,0.70034722222222212,null,0.59393404004711425,null,null,null,null,null,null,null,null,null,null,null,null,null,null,null,null,null,null,null,null,0,0,0,0,0,0,null,0.22657411998016858,0.43232523549826468,0.24095190877540906,0.10014873574615768,0,1,null,null,null,null,null,null,null,null,null,0]
[null,"Viljelylaatikot","Viljelylaatikoiden ekologinen arvo arvioitu vastaamaan näyttävästi kukkivia ja tuoksuvia istutuksia. Viljelylaatikon merkitys hulevesilleon kuitenkin rajallinen.",0.5,"Merkitystä virkistyskäytölle (esim. hyötyviljelylle) ja luonnosta oppimiselle.",1,"Viljelylaatikot voivat tuoda monipuolisuutta maisemaan esimerkiksi kukkivien kasvien ansiosta. Viljelyn kausiluonteisuus ja mahdollinen hoitamattomuuden aiheuttama epäsiisteys vähentävät sitä.",0.5,"Viljelyyn soveltuvat alueet vaativat usein runsaasti hoitoa, mutta hoidosta vastaavat asukkaat. Taloyhtiölle todennäköisesti kunnosspitovastuu itse viljelylaatikoista.",0.5,"Erittäin pieni vaikutus hulevesien hallinnalle.",0.1,0.64097222222222217,{"$f":"Viherkerroin!J38","v":0},0.54358068315665498,null,null,null,null,null,null,null,null,null,null,null,null,null,null,null,null,null,null,null,null,0,0,0,0,0,0,null,0.24756229685807152,0.47237269772481033,0.13163596966413871,0.10942578548212352,3.900325027085591E-2,1,null,null,null,null,null,null,null,null,null,0]
[null,"Leikkimiseen tai urheiluun osoitettu läpäisevä pinta (esim. hiekka- tai sorapintaiset leikkipaikat, urheilukenttänurmi)","Läpäisevä pinta merkittävä hulevesien hallinnalle.",0.5,"Monikäyttöiset pinnat lisäävät toiminnallisuutta.",1,"Ei merkittävää maisema-arvoa",0,"Viherpinnan kuluminen ja monikäyttöisyyden luomat vaatimukset lisäävät kunnossapidon tarvetta.",0,"Läpäisevä pinta plussaa hulevesien hallinnalle.",1,0.71145833333333319,{"$f":"Viherkerroin!J39","v":0},0.60335689045936403,null,null,null,null,null,null,null,null,null,null,null,null,null,null,null,null,null,null,null,null,0,0,0,0,0,0,null,0.22303562713518793,0.42557345046364076,0,0,0.35139092240117137,1,null,null,null,null,null,null,null,null,null,0]
[null,"Yhteiskäytössä olevat kattoterassit, joissa kasvillisuutta vähintään 10 % pinta-alasta","Mahdollinen merkitys monimuotoisuudelle ja hiilensidonnalle",0.5,"Merkitys hyötyviljelylle, yhteisöllisyydelle ja luonnosta oppimiselle",1,"Viherpinnan lisääminen luo maisema-arvoa",0.5,"Ruukuissa kasvattaminen lisää kasvien hoitotarvetta,",0,"Merkitys riippuu pinta-alasta, mutta varmasti pienempi kuin maksaruohokatolla.",0.25,0.60833333333333317,{"$f":"Viherkerroin!J40","v":0},0.51590106007067138,null,null,null,null,null,null,null,null,null,null,null,null,null,null,null,null,null,null,null,null,0,0,0,0,0,0,null,0.26084474885844755,0.49771689497716898,0.13869863013698636,0,0.10273972602739728,1.0000000000000002,null,null,null,null,null,null,null,null,null,0]
[null,"Säilytettävä kuollut maapuu/kanto  (à 5 m²)","Lahoamaan jätetty puu tarjoaa elinympäristöjä ja ravintoa suurelle osalle uhanalaisista metsälajeista. Erityisesti järeällä, jo lahonneella puulla on erittäin suuri merkitys lajiston ja elinympäristöjen monimuotoisuusdelle ja ekologiselle verkostolle (4, (6-8). ",1,"Toiminnallisuutta lisää mahdollisuus oppia luonnosta. Maapuut voivat myös toimia tilanjakajina (ohjaten kulkua esim. polkujen reunoilla) sekä leikkiympäristöinä. ",1,"Kuolleen puun maisema-arvo on hyvin subjektiivinen. Erityisesti järeää puuta voi hyödyntää (ja hyödynnetään nykyäänkin) tilanjakajana tontilla; toisaalta lahoava puu voidaan kokea epäsiistiksi erityisesti edustusympäristössä.",1,"Ei vaadi lainkaan kunnossapitoa. Lahoaminen ja hajoaminen ovat luontaista maapuulle. ",1,null,null,0.92916666666666647,null,0.78798586572438156,null,null,null,null,null,null,null,null,null,null,null,null,null,null,null,null,null,null,null,null,0,0,0,0,0,0,null,0.34155455904334836,0.32585949177877427,0.18161434977578481,0.1509715994020927,0,1.0000000000000002,null,null,null,null,null,null,null,null,null,0]
[null,"Luonnonmonimuotoisuuden ja eläimistön elinolosuhteiden tukeminen (à 5 m², esim. lahopuu/maapuu, lahopuuaita, lehtikomposti, hyönteishotelli, linnunpönttö)","Lahoamaan jätetty puu tarjoaa elinympäristöjä ja ravintoa suurelle osalle uhanalaisista metsälajeista. Erityisesti järeällä, jo lahonneella puulla on erittäin suuri merkitys lajiston ja elinympäristöjen monimuotoisuusdelle ja ekologiselle verkostolle (4, (6-8). Linnunpöntöillä ja hyönteishotelleilla voi olla paikallisesti suuri merkitys lajistolle.",1,"Merkitys erityisesti luonnosta oppimiselle ja havainnoinnille. Maapuita voi käyttää leikki-, kuntoilu- ja oleskelutarkoitukseen. Kompostilla ja lahopuutarhalla lisäksi hyötykäyttömahdollisuus.",1,"Maisema-arvo riippuu kohteen koosta, toteutustavasta ja huollosta. Verrannollinen viljelylaatikkoon.",0.5,"Ei merkittävää kunnossapitotarvetta. Kompostilla ja linnunpöntöillä vuosittainen hoitotarve.",1,"Ei vaikutusta hulevesien hallinnalle.",0,{"$f":"(D46*$AY$3+F46*$AY$6+H46*$AY$9+J46*$AY$10+L46*$AY$11)/5","v":0.84479166666666639},{"$f":"Viherkerroin!J41","v":0},0.71643109540636041,null,null,null,null,null,null,null,null,null,null,null,null,null,null,null,null,null,null,null,null,0,0,0,0,0,0,null,0.37566789971228948,0.3584052609946568,9.9876695437731242E-2,0.16605014385532271,0,1.0000000000000002,null,null,null,null,null,null,null,null,null,0]
[null,null,null,null,null,null,null,null,null,null,null,null,null,null,null,null,null,null,null,null,null,null,null,null,null,null,null,null,null,null,null,null,null,null,null,{"$f":"SUM(AJ2:AJ46)","v":0},{"$f":"SUM(AK2:AK46)","v":0},{"$f":"SUM(AL2:AL46)","v":0},{"$f":"SUM(AM2:AM46)","v":0},{"$f":"SUM(AN2:AN46)","v":0},0,null,{"$f":"SUM(AQ2:AQ46)","v":12.572509940880723},12.367636901313531,7.1029322554534042,5.2795298158560104,7.6773910864963337,45]
["Lähteet (numeroituna elementtien selityksissä):"]
[1,"Aylor, Donald. \"Noise reduction by vegetation and ground.\" The Journal of the Acoustical Society of America 51 (1972): 197."]
[2,"Ferris, R., and J. W. Humphrey. \"A review of potential biodiversity indicators for application in British forests.\" Forestry 72.4 (1999): 313-328."]
[3,"Tyrväinen, Liisa. \"The amenity value of the urban forest: an application of the hedonic pricing method.\" Landscape and Urban planning 37.3 (1997): 211-222."]
[4,"Meriluoto, Markku, and Timo Soininen. Metsäluonnon arvokkaat elinympäristöt. Metsälehti kustannus, 1998."]
[5,"Peuhu, E. and Siitonen, J. 2011. \"Ontot puistopuut ovat merkittävä elinympäristö monimuotoiselle lahopuueliöstölle.\" (2011)."]
[6,"Siitonen, Juha, et al. \"Coarse woody debris and stand characteristics in mature managed and old-growth boreal mesic forests in southern Finland.\" Forest Ecology and Management 128.3 (2000): 211-225."]
[7,"Vanha-Majamaa, Ilkka, and Jyrki Jalonen. \"Green tree retention in Fennoscandian forestry.\" Scandinavian Journal of Forest Research 16.S3 (2001): 79-90."]
[8,"Rosenvald, Raul, and Asko Lohmus. \"For what, when, and where is green-tree retention better than clear-cutting? A review of the biodiversity aspects.\" Forest Ecology and Management 255.1 (2008): 1-15."]
[9,"Palmberg, Irmeli E., and Jari Kuru. \"Outdoor activities as a basis for environmental responsibility.\" The Journal of Environmental Education 31.4 (2000): 32-36."]
[10,"Kuntaliiton hulevesiopas, 2012: http://www.kunnat.net/fi/asiantuntijapalvelut/yty/hulevesien_hallinta/Sivut/default.aspx"]
[11,"Augusto, Laurent, Jacques Ranger, Dan Binkley, and Andreas Rothe. \"Impact of several common tree species of European temperate forests on soil fertility.\" Annals of Forest Science 59, no. 3 (2002): 233-253."]
[12,"Bond, W. J. \"Keystone species.\" Biodiversity and ecosystem function. Springer Berlin Heidelberg, 1993. 237-253."]
[13,"Kremen, Claire, and Richard S. Ostfeld. \"A call to ecologists: measuring, analyzing, and managing ecosystem services.\" Frontiers in Ecology and the Environment 3.10 (2005): 540-548."]
[14,"Burgess, Stephen SO, et al. \"The redistribution of soil water by tree root systems.\" Oecologia 115.3 (1998): 306-311."]
[15,"http://www.metsavastaa.net/ilmansaasteet"]
[16,"Nieminen, M. ja Sundell, P.R. 2002. Kyläjoen eritasoliittymän perhosniittyjen uhanalaisten perhoslajien elinmahdollisuuksien selvitys ja seuranta \n"]
[17,"Nieminen, M. ja Kaitila, J-P. \"Saaristomeren kansallispuiston niittyjen ja hakojen perhoset.\" Metsähallituksen luonnonsuojelujulkaisuja, Sarja A: 111. (2000)"]
[18,"Hagelberg, E., A. Karhunen, A. Kulmala, ja R. Larsson. \"Käytännön kosteikkosuunnittelu [Wetland planning in practise].\" Publications of the Teho Project 1 (2009): 2009."]

{"sheet":"Lisatietoa","index":5,"n_rows":66,"n_cols":19,"rows_kept":66,"cut":false,"hidden":false,"merged":[[6,0,14,0],[18,0,26,0],[28,0,43,0],[4,17,6,17],[0,16,0,18],[0,8,0,9],[2,16,3,16],[0,2,0,3],[0,4,0,5],[0,6,0,7],[0,10,0,11],[2,17,3,17],[4,16,6,16],[1,0,4,0]]}
["Elementtityypit","Elementit","Ekologisuus",null,"Toiminnallisuus",null,"Maisema-arvo",null,"Kunnossapito",null,"Hulevesi",null,"Painotettu keskiarvo",null,"Asteikko (Ekologisuus, toiminnallisuus, maisema-arvo - Huom. Bonuselementeillä maksimipistemäärä 1)",null,"Asiantuntijahaastatteluista laskettu yleinen painotus osa-alueille"]
["Säilytettävä kasvillisuus ja maaperä","Säilytettävä hyväkuntoinen isokokoinen (täysikasvuisena > 10 m) puu; vähintään 3 m (à 25 m²), säilytettävä kasvualusta 25 m²","Pitkäikäisyyden ja suuren biomassan ansiosta erittäin suuri merkitys hiilensidonnalle ja -varastoinnille. Erityisesti avointa maisemaa hallitsevat, suuret yksittäiset puut ja puuryhmät ovat tärkeä luontotyyppi (4,13). Ns. säästöpuiden jättäminen on metsätaloudessa havaittu merkittäväksi keinoksi säilyttää elinympäristöjä hakkuiden välillä (6-8), huomioiden kuitenkin, että vain osa lajeista kykenee hyödyntämään niitä. Huom. Syväjuuriset, metsässä kasvaneet puut (esim. mänty) sopeutuvat paremmin yksittäispuiksi kuin pintajuuriset puut (esim. kuusi), jotka usein ränsistyvät joutuessaan erilaisiin kasvuoloihin. ",3,"Vakiintuneella, täysikasvuisena suuren koon saavuttavalla, puulla on erittäin suuri merkitys pienilmaston tasaamiselle ja puhdistamiselle sekä näkösuojana toimimiselle (etenkin, jos kyseessä havupuu)(11). Puusto voi suojata myös jonkin verran melulta (1), joskin vaikutus onkin enimmäkseen psykologinen (näkösuoja vähentää melun häiritsevyyttä). Merkittävä myös toiminnallisuuden kannalta, esim. virkistyskäyttö ja luonnosta oppiminen (9). Hyväkuntoisen puun säilyttämisessä ei ole turvallisuusriskejä, mikäli puun juuriston ja rungon suojauksesta huolehditaan rakennusvaiheessa. Huom. Syväjuuriset, metsässä kasvaneet puut (esim. mänty) sopeutuvat paremmin yksittäispuiksi kuin pintajuuriset puut (esim. kuusi), jotka usein ränsistyvät joutuessaan erilaisiin kasvuoloihin.",3,"Vakiintuneella, täysikasvuisena suuren koon saavuttavalla, puulla on erittäin suuri maisema-arvo, sillä se lieventää siirtymää rakentamattomasta maankäytöstä rakennettuun. Kaupunkimetsien on havaittu vaikuttavan positiivisesti tonttien hintoihin (3). Säilytettävä kasvillisuus on usein merkittävämpi maisemaelementti kuin istutettava kasvillisuus, jolla voi kestää useita vuosia vakiintua ja saavuttaa vastaava koko. Maisema-arvoon vaikuttaa merkittävästi säilytettävän kasvillisuuden kunto. Syväjuuriset, metsässä kasvaneet puut (esim. mänty) sopeutuvat paremmin yksittäispuiksi kuin pintajuuriset puut (esim. kuusi), jotka usein ränsistyvät joutuessaan erilaisiin kasvuoloihin.",3,"Hoitotarve kerran vuodessa tai harvemmin rakennusvaiheen suojaamisen jälkeen. Lannoitus (n. kerran vuodessa) sekä puun kunnon tarkkailu ja  vaarallisten oksien poisto  tarpeen alueilla, jossa puu voi kaatussaan aiheuttaa turvallisuusriskin. Terveydentilan heikentymisestä kertovat usein latvuston kellastuminen ja harventuminen sekä pienentyneet lehdet. Jalopuut kestävät tyypillisesti hyvin lahovikoja toisin kuin esimerkiksi koivu.",2.5,"Vakiintuneella, täysikasvuisena suuren koon saavuttavalla, puulla on erittäin suuri merkitys hulevesien hallinnalle juuriston sitoman veden ja latvuston varastoiman sadeveden (interseptiohaihdunnan) ansiosta (11).",3,3.4673611111111109,null,"3 = Suuri merkitys",null,"Osa-alueet","Yleinen painotus (1-3)","Osa-alueisiin kuuluvat toiminnot"]
[null,"Säilytettävä hyväkuntoinen, pienikokoinen (täysikasvuisena ≤ 10 m) puu; vähintään 3 m (à 15m²), säilytettävä kasvualusta 15 m²","Vakiintuneella pienellä puulla on samat hyödyt kuin suurella puulla, mutta pienemmässä mittakaavassa. Huom. Syväjuuriset, metsässä kasvaneet puut (esim. mänty) sopeutuvat paremmin yksittäispuiksi kuin pintajuuriset puut (esim. kuusi), jotka usein ränsistyvät joutuessaan erilaisiin kasvuoloihin.",2.5,"Vakiintuneella pienellä puulla on samat hyödyt kuin suurella puulla, mutta pienemmässä mittakaavassa. Puulla voi olla merkitystä myös hyötyviljelyn kannalta, mikäli kyseessä on hedelmäpuu.  Hyväkuntoisen puun säilyttämisessä ei ole turvallisuusriskejä, mikäli puun juuriston ja rungon suojauksesta huolehditaan rakennusvaiheessa. Huom. Syväjuuriset, metsässä kasvaneet puut (esim. mänty) sopeutuvat paremmin yksittäispuiksi kuin pintajuuriset puut (esim. kuusi), jotka usein ränsistyvät joutuessaan erilaisiin kasvuoloihin.",2.5,"Vakiintuneella, täysikasvuisena pienen koon saavuttavalla, puulla on samat hyödyt maisema-arvon kannalta kuin suurella puulla. Koko arvioidaan maiseman kannalta toissijaiseksi, sillä puiden säilyttäminen on sinänsä on arvokasta. Maisema-arvoon vaikuttaa merkittävästi säilytettävän kasvillisuuden kunto sekä laji. Syväjuuriset, metsässä kasvaneet puut (esim. mänty) sopeutuvat paremmin yksittäispuiksi kuin pintajuuriset puut (esim. kuusi), jotka usein ränsistyvät joutuessaan erilaisiin kasvuoloihin.",3,"Sama hoitotarve kuin isolla säilytettävällä puulla.",2.5,"Vakiintuneella pienellä puulla on samat hyödyt kuin suurella puulla, mutta pienemmässä mittakaavassa.",2.5,3.1572916666666666,null,"2 = Kohtalainen merkitys",null,"Ekologisuus",1.5868055555555554,"Hiilensidonta ja -varastointi"]
[null,"Säilytettävä hyväkuntoinen puu (1,5-3 m) tai iso pensas, à 3 m², säilytettävä kasvualusta 3 m²","Samat hyödyt kuin säilytettävillä yli 3-metrisillä puilla, mutta pienemmässä mittakaavassa. Pensailla on erityistä merkitystä elinympäristönä ja suojapaikkana monille pieneläimille.",2,"Samat hyödyt toiminnallisuudelle kuin säilytettävillä yli 3-metrisillä puilla, mutta pienemmässä mittakaavassa. Pensaalla voi olla merkitystä myös hyötyviljelyn kannalta, mikäli kyseessä on esimerkiksi marjapensas. ",2,"Samat hyödyt maisema-arvon kannalta kuin säilytettävillä yli 3-metrisillä puilla, mutta pienemmässä mittakaavassa. Maisema-arvoon vaikuttaa merkittävästi säilytettävän kasvillisuuden kunto. ",2,"Hoitotarve muuten sama kuin yli 3-metrisillä säilytettävillä puilla, mutta pensailla suurempi lannoitus- ja leikkaustarve.",2,"Samat hyödyt kuin säilytettävillä yli 3-metrisillä puilla, mutta pienemmässä mittakaavassa. ",2,2.4833333333333329,null,"1 = Vähäinen merkitys",null,null,null,"Lajien ja elinympäristöjen monimuotoisuus, ekologinen verkosto"]
[null,"Säilytettävä luonnonniitty tai luonnonmukainen pohjakasvillisuus","Vakiintuneella luonnontilaisella niityllä tai pohjakasvillisuudella on samat hyödyt kuin säilytettävillä puilla ja pensailla, mutta pienemmässä mittakaavassa. Niityllä ja luonnontilaisella pohjakasvillisuudella on erityistä merkitystä ravinnonlähteenä, elinympäristönä ja suojapaikkana monille pieneläimille. Pohjakasvillisuuden säilyttäminen on usein haastavaa, sillä kasvillisuus on tottunut tiettyihin kasvuolosuhteisiin (vrt. metsäkasvillisuus).",2,"Samat hyödyt toiminnallisuudelle kuin säilytettävillä puilla ja pensailla, mutta pienemmässä mittakaavassa. ",1.5,"Säilytettävällä niityllä tai pohjakasvillisuudella on samat hyödyt maisema-arvon kannalta kuin säilytettävillä pensailla. Maisema-arvoon vaikuttaa merkittävästi säilytettävän kasvillisuuden kunto.  ",2,"Niityn niitto 1-2 kertaa vuodessa; säilytettävän pohjakasvillisuuden kunnossapitotarve vaatii lisäselvitystä.",2,"Vakiintuneella luonnontilaisella niityllä tai pohjakasvillisuudella on samat hyödyt kuin säilytettävillä puilla ja pensailla, mutta pienemmässä mittakaavassa.",2,2.3319444444444444,null,"0 = Ei merkitystä",null,"Toiminnallisuus",1.5138888888888886,"Pienilmaston tasaaminen ja puhdistus (viilentäminen, ilman epäpuhtauksien sidonta, melun ja tuulisuuden vähentäminen, näkösuoja)"]
["Takaisin","Säilytettävä avokallio ","Kallio on erityisen tärkeä elinympäristö (4). Ekologisuudesta saatavia pisteitä vähentää läpäisemättömän pinnan negatiivinen merkitys hulevesien hallinnalle sekä hiilensidonnalle ja -varastoinnille. Kalliokasvillisuus on lisäksi erittäin herkkää kulumiselle, mikä vähentää sen ekologista arvoa, ellei kalliolla kulkua rajoiteta.",2,"Toiminnallisuutta lisää mahdollisuus virkistyskäyttöön ja luonnosta oppimiseen. Toiminnallisuutta vähentää kalliokasvillisuuden herkkyys kulumiselle, mistä johtuen mahdollinen suojaus tai kulun ohjaus (esim. portailla) voi olla tarpeen eroosion rajoittamiseksi ja turvallisuuden lisäämiseksi.",1,"Avokallion maisema-arvo on huomattava. Kallion maisema-arvoa ei voi toisintaa keinotekoisesti jälkeenpäin, mistä johtuen se tulisi aina säilyttää maisemassa, kun mahdollista.",3,"Hoitotarve harvemmin kuin kerran vuodessa. Mahdollinen suojaus tai kulun ohjaus (esim. portailla) tarpeen eroosion rajoittamiseksi ja turvallisuuden lisäämiseksi.",3,"Avokallio on yleensä läpäisemätön ja näin ollen suurentaa valumakerrointa ja samalla hulevesien määrää.",0,1.8645833333333333,null,"Asteikko (Kunnossapito - Huom. Bonuselementeillä maksimipistemäärä 1)",null,null,null,"Ruoantuotanto hyötyviljelyllä, oppiminen luonnosta, leikkiminen"]
["Istutettava / kylvettävä kasvillisuus","Isokokoinen puu, täysikasvuisena > 10 m; à 25 m²; kasvualustan syvyys 0,8 m; yksittäispuun istutuskuopan mitat 2 x 2 m  ","Isokokoisella istutettavalla puulla on samat hyödyt kuin vastaavalla säilytettävällä puulla, mutta hyödyt realisoituvat usein vasta vuosien päästä. Suuri kasvulausta on merkittävä hulevesien hallinnan kannalta. Pitkäikäisten, puuvartisten kasvien merkitys hiilensidonnalle ja varastoinnille on erityisen  suuri.",2.5,"Isokokoisella istutettavalla puulla on samat hyödyt kuin vastaavalla säilytettävällä puulla, mutta hyödyt realisoituvat usein vasta vuosien päästä. Istutettavan puun hyötyjä pienilmaston säätelyssä lisää kuitenkin mahdollisuus puulajin ja istutuspaikan määrittämiseen rakennukseen nähden, mikä ei ole mahdollista säilytettävällä kasvillisuudella.",2,"Isokokoisella istutettavalla puulla on samat hyödyt kuin vastaavalla säilytettävällä puulla, mutta hyödyt realisoituvat usein vasta vuosien päästä. Istutettavan puun maisema-arvoa lisää kuitenkin mahdollisuus puulajin ja istutuspaikan määrittämiseen rakennukseen nähden, mikä ei ole mahdollista säilytettävällä kasvillisuudella.",3,"Hoitotarve 1-2 kertaa vuodessa. Lannoitus kerran vuodessa, minkä lisäksi leikkaus ja rungon suojaaminen kasvinsyöjiltä mahdollisesti tarpeen.",2,"Isokokoisella istutettavalla puulla on samat hyödyt kuin vastaavalla säilytettävällä puulla, mutta hyödyt realisoituvat usein vasta vuosien päästä.",2.5,2.8107638888888884,null,"3 = Hoitotarve harvemmin kuin kerran vuodessa",null,null,null,"Turvallisuus"]
[null,"Pienikokoinen puu, täysikasvuisena ≤ 10 m; à 15 m²; kasvualustan syvyys 0,6 m; yksittäispuun istutuskuopan mitat 1,5 x 1,5 m  ","Pienikokoisella istutettavalla puulla on samat hyödyt kuin istutettavalla isolla puulla, mutta pienemmässä mittakaavassa (kasvin ja kasvualustan koko).",2,"Pienikokoisella istutettavalla puulla on samat hyödyt kuin istutettavalla isolla puulla, mutta pienemmässä mittakaavassa (kasvin koko). Puulla voi olla merkitystä myös hyötyviljelyn kannalta, mikäli kyseessä on hedelmäpuu.  ",1.5,"Pienikokoisella istutettavalla puulla on samat hyödyt kuin istutettavalla isolla puulla, mutta pienemmässä mittakaavassa.",2.5,"Sama hoitotarve kuin isoilla puilla.",2,"Pienikokoisella istutettavalla puulla on samat hyödyt kuin istutettavalla isolla puulla, mutta pienemmässä mittakaavassa (kasvin ja kasvualustan koko).",2,2.4163194444444445,null,"2 = Hoitotarve 1-2 kertaa vuodessa",null,"Maisema-arvo",0.84375,"Liittyminen ympäröivään kaupunkikuvaan, vaikutus maisemaan (esim. kukat ja marjat)"]
[null,"Isot pensaat, à 3 m²; kasvualustan syvyys 0,6 m","Istutettavalla isokokoisella pensaalla on samat hyödyt kuin istutettavilla puilla, mutta pienemmässä mittakaavassa (kasvin ja kasvualustan koko). Pensailla on erityistä merkitystä elinympäristönä ja suojapaikkana monille pieneläimille.",1.5,"Istutettavalla isokokoisella pensaalla on samat hyödyt kuin istutettavilla puilla, mutta pienemmässä mittakaavassa (kasvin koko). Pensailla voi olla merkitystä myös hyötyviljelylle sekä tilanjakajina pihan toiminnoille.",1,"Isokokoisella istutettavalla pensaalla on samat hyödyt kuin istutettavalla pienellä puulla, mutta pienemmässä mittakaavassa (kasvin koko). Pensaat soveltuvat hyvin tilanjakajiksi pihan eri toimintojen välille.",2,"Hoitotarve jonkin verran suurempi kuin puilla. Arvioitu hoitotarve (leikkaus ja lannoitus) 2-3 kertaa vuodessa. Lisäksi rungon sekä lehvästön suojaaminen kasvinsyöjiltä mahdollisesti tarpeen.",1.5,"Istutettavalla isokokoisella pensaalla on samat hyödyt kuin istutettavilla puilla, mutta pienemmässä mittakaavassa (kasvin ja kasvualustan koko).",1.5,1.8267361111111107,null,"1 = Hoitotarve yli 3 kertaa vuodessa",null,"Kunnossapito",0.70138888888888884,"Helppohoitoiset ratkaisut (hoitokerrat)"]
[null,"Muut pensaat, à 1,5 m²; kasvualustan syvyys 0,4 m","Istutettavalla pienemmällä pensaalla on samat hyödyt kuin istutettavalla suurella pensaalla, mutta pienemmässä mittakaavassa (kasvin ja kasvualustan koko). Pensailla on erityistä merkitystä elinympäristönä ja suojapaikkana monille pieneläimille.",1,"Istutettavalla pienempikokoisella pensaalla on samat hyödyt kuin isolla pensaalla. Pensailla voi olla merkitystä myös hyötyviljelylle.",1,"Pienemmällä istutettavalla pensaalla on samat hyödyt kuin isommalla. Kasvin koon lisäksi maisema-arvoon vaikuttaa kuitenkin yhtä suuressa määrin lajivalinta, minkä vuoksi hyöty arvioidaan samaksi.",2,"Sama hoitotarve kuin isommilla pensailla.",1.5,"Istutettavalla pienemmällä pensaalla on samat hyödyt kuin istutettavalla suurella pensaalla, mutta pienemmässä mittakaavassa (kasvin ja kasvualustan koko).",1,1.6680555555555554,null,"0 = Hoitotarve useammin kuin kerran kuukaudessa",null,"Hulevesi (painotettu jälkikäteen)",1.25,"Hulevesien määrällinen ja laadullinen hallinta"]
[null,"Perennat, kasvualustan syvyys 0,4-0,6 m","Istutettavilla perennoilla on samat hyödyt kuin elementillä \"Muut pensaat\", mutta niihin liittyy usein suurempi kasvualustan koko (hulevesien hallinta). Perennat tarjoavat ravintoa, elinympäristöjä ja suojapaikkoja monille pieneläimille.",1.5,"Istutettavilla perennoilla on samat hyödyt kuin pienemmilla istutettavilla pensailla.",1,"Perennoilla on vastaava maisema-arvo kuin pensailla: vaikka perennat ovat tyypillisesti pienempikokoisia, niillä on usein kestävämmät ja näyttävämmät kukinnot.",2,"Hyvin suunniteltu kasvillisuus ei vaadi hoitoa useammin kuin kerran kuukaudessa. Hoidon ja kastelun tarve vaihtelee kuitenkin huomattavasti lajin, istutuspaikan ja sateisuuden mukaan. Arvioitu hoitotarve keskimäärin yli 3 kertaa vuodessa. Lannoitus ja mahdollinen suojaaminen kasvinsyöjiltä tarpeen.",1,"Istutettavilla perennoilla on samat hyödyt kuin elementillä \"Muut pensaat\", mutta niihin liittyy usein suurempi kasvualustan koko.",1.5,1.7565972222222221,null,"Huom. Pisteytyksessä ei ole huomioitu kustannuksia (esim. käsityön tarvetta). "]
[null,"Niitty tai keto, kasvualustan syvyys 0,15-0,3 m","Niityt ja kedot (kuivat niityt) ovat luonnonmukaisempi (vähemmän hoitoa vaativa) ja monilajisempi vaihtoehto esimerkiksi perennoille. Kokonaisuudessaan samansuuruinen ekologinen merkitys. Niityllä on erityistä merkitystä monimuotoisuudelle mm. pölyttäjiä houkuttelevien kukkivien kasvien ansiosta (13).",2,"Niittyjen tarjoama hyöty pienilmastolle vastaa perennoja. Niitty voi kuitenkin tarjoata paremmat mahdollisuudet oppia luonnosta.",1,"Koettu masema-arvo jakaa mielipiteitä. Kukinta lisää niityn ja kedon maisema-arvoa; \"hallittu hoitamattomuus\" ei kuitenkaan sovellu kaikkiin maankäyttötyyppeihin.",1.5,"Vakiintumisen (niitto muutaman kerran kesässä) jälkeen vaatii hoitoa 1-2 kertaa kesässä, kuivat kedot jopa harvemmin. Niityt ja kedot vaativat vähemmän hoitoa kuin esimerkiksi perennat.",2,"Niityn vaatima kasvualusta on ohuempi kuin perennoilla, mistä johtuen sen merkitys hulevesien hallinnalle on pienempi.",1.2,1.9211805555555554,null,"Huom. Pisteytystä vähentää puutteellinen kokemus elementin kunnossapidosta Suomessa"]
[null,"Viljelypalstat (kasvualustan syvyys riippuu viljeltävistä lajeista, vähintään 0,3 m)","Viljelypalstat koostuvat usein yksivuotisista lajeista, joten niiden ekologinen merkitys painottuu kasvukaudelle, jolloin suuri merkitys pölyttäjille ja lajien monimuotoisuudelle, ja kohtalainen merkitys hulevesien hallinnalle.  Pienempi merkitys kuin esim. perennoilla.",1,"Viljelypalstat ovat erittäin merkittäviä toiminnallisuudelle, sillä ne tarjoavat mahdollisuuden hyötyviljelyyn ja luonnosta oppimiseen.",3,"Mahdollinen kukinta, marjat ja hedelmät lisäävät maisema-arvoa ja vaihtelua; viljelyn kausiluonteisuus ja mahdollinen hoitamattomuuden aiheuttama epäsiisteys vähentävät sitä (esimerkiksi perennoihin nähden).",1.5,"Viljelyyn soveltuvat alueet vaativat usein runsaasti hoitoa, mutta hoidosta vastaavat asukkaat. Taloyhtiölle koituva kunnosspitovastuu pienempi kuin esim. nurmikolla.",2,"Keskinkertainen merkitys hulevesien hallinnalle.",1,2.1343749999999999]
[null,"Nurmikko, kasvualustan syvyys 0,15-0,2 m","Nurmikolla on merkitystä monimuotoisuudelle, mutta pienemmässä määrin kuin esimerkiksi perennoilla (kasvin ja kasvualustan koko). Vaatii tyypillisesti säännöllistä hoitoa, minkä vuoksi ei ole niin merkittävä monimuotoisuudelle.",0.5,"Nurmikko tarjoaa hyvät mahdollisuudet leikkimiseen. Nurmikon vaikutus pienilmaston säätelyssä on kuitenkin pieni (koko).",1.5,"Hoidettu nurmikko on siisti; hoitamattomana maisema-arvo vähenee merkittävästi. Muuhun matalaan kasvillisuuteen nähden yksipuolinen elementti.",1,"Hoitotarve useammin kuin kerran kuukaudessa. Nurmikko vaatii tyypillisesti säännöllistä leikkausta ja lannoitusta, sekä kuivina kausina kastelua.",0.5,"Nurmikolla on merkitystä hulevesien hallinnalle, mutta pienemmässä määrin kuin esimerkiksi perennoilla (kasvin ja kasvualustan koko)",1,1.226736111111111]
[null,"Monivuotiset köynnökset, kasvualustan syvyys 0,6 m, vertikaalinen pinta-ala (à 2 m²)","Monivuotiset köynnökset ovat verrattavissa ekologisuuden osalta suuriin pensaisiin.",1.5,"Köynnökset tarjoavat samankaltaisen hyödyn pienilmastolle ja rakennusten energiankulutukselle kuin viherkatot.",1,"Köynnökset lisäävät vehreyttä siellä, missä normaalisti olisi läpäisemätöntä pintaa. Kukkivat/syysvärin saavat köynnökset tuovat väriä viherrakenteeseen. Arvioitu vähintään isokokoisia pensaita vastaava maisema-arvo.",2,"Hoitotarve arvioitu vastaamaan pensaita. Tietyt köynnökset voivat rakennuksia vasten kasvaessaan vaurioittaa julkisivuja ja lisätä kunnostustarvetta.",1.5,"Vertikaalisen pinta-alan lisääntyminen ei ole suoraan verrainnollinen hulevesien hallinnasta saataviin hyötyihin -> pienempi painotus kuin isolla pensaalla.",1,1.5767361111111109]
["Takaisin","Viherseinä, vertikaalinen pinta-ala","Viherseinän ekologinen arvo riippuu toteutustavasta ja sijainnista. Vaatii lisäselvitystä.",0.5,"Sama arvioitu hyöty kuin köynnöksillä.",1,"Hyvin suunnitellulla viherseinällä on sama arvioitu hyöty kuin köynnöksillä.",2,"Viherseinien toimivuudesta ei ole riittävästi kokemusta Suomessa kunnossapitotarpeen arvioimiseksi. Toimintojen säilyttämiseksi hoitotoimenpiteiden tarve voi kuitenkin olla merkittävä. Vaatii lisäselvityksiä. Lähtökohdaksi vertailuun otettu paljon hoitoa vaativa nurmikko.",0.5,"Viherseinällä, joka ei ole kytkeytynut kasvualustaan, on pienempi merkitys hulevesien hallinnalle kuin köynnöksillä. Vaatii lisäselvitystä.",0.25,0.93159722222222219]
["Pinnoitteet","Puoliläpäisevät pinnoitteet (esim. nurmikivi, kivituhka, kasvualusta 0,3 m)","Kasvualusta paksumpi kuin tavallisella nurmikolla. Arvioitu ekologinen hyöty samansuuruinen kuin nurmikolla.",0.5,"Sama toiminnallisuus kuin nurmikolla pienemmällä pienilmaston säätelyvaikutuksella -> alhaisempi painotus.",1,"Puoliläpäisevä nurmikivi-pinnoite on siisti - maisema-arvoltaan verrattavissa nurmikkoon.",1,"Hoitotarve yli 3 kertaa vuodessa. Puoliläpäisevien pinnoitteiden talvikunnossapito haasteellista (10). Suuri kiintoaineen tai roskien määrä heikentää pinnoitteen läpäisevyyttä.",1,"Puoliläpäisevä pinta, jossa kuitenkin haihduttavaa ja hiiltä sitovaa kasvillisuutta, soveltuu kohtalaisesti hulevesien hallintaan (10).",1,1.020486111111111]
["Takaisin","Läpäisevät pinnoitteet (esim. sora- ja hiekkapinnat)","Parempi hulevesien läpäisevyys kuin nurmikivellä, mutta vähemmän muita ekologisia hyötyjä.",0.5,"Sama toiminnallisuus kuin nurmikolla ilman pienilmaston säätelyvaikutusta -> alhaisempi painotus",1,"Läpäisevä hiekka- ja sorapinta on selkeä eikä vaadi paljoa hoitoa näyttääkseen siistiltä. Viherrakenteen kannalta kuitenkin epäedullinen elementti, sillä vähentää tontin vehreyttä.",1,"Hoitotarve harvemmin kuin kerran vuodessa. ",3,"Parempi hulevesien läpäisevyys kuin nurmikivellä, muttä yleensä vähemmän kuin säilytettävillä luonnonmukaisilla pohjilla.",1.5,1.8010416666666664]
["Hulevesien hallintarakenteet","Sadepuutarha (ei pysyvää vesipintaa), jossa monipuolista ja kerroksellista kasvillisuutta, biosuodatusrakenne (B), viivyttävä rakenne (V)","Lajiston monimuotoisuuden kannalta erittäin merkittävä. Runsaan kasvillisuuden ansiosta myös merkitystä hiilensidonnalle. Ekologisuutta lisää mahdollisuus hyödyntää hulevedet puutarhanhoidossa. Huom. Vieraslajeja ja muita aggressiivisesti leviäviä lajeja vältettävä.",2.5,"Runsaan kasvillisuuden ansiosta merkitys pienilmaston säätelylle ja luonnosta oppimiselle. Toiminnallisuutta lisää osaltaan mahdollisuus puutarhanhoitoon.",2,"Hyvin suunniteltuna sadepuutarha voi toimia edustavana maisemaelementtinä, jonka maisema-arvoa ajoittainen kuivuminen ei heikennä. Lajit tulee valita tästä lähtökohdasta.",2.5,"Hyvin suunniteltu sadepuutarha ei kärsi ajoitteisesta kuivumisesta. Kasvillisuuden ja muiden pintojen hoitotarpeeksi arvioitu 1-2 kertaa vuodessa (hoitotarve vaatii kuitenkin lisäselvitystä) (10)",1.5,"Hulevesienhallinnan ja lajiston monimuotoisuuden kannalta erittäin merkittävä; soveltuu hyvin hulevesien määrän ja laadun hallintaan (10).",3,2.78125]
[null,"Viherkatto: Kattopuutarha 30 – 100 cm (paksuus toivotun lajiston mukaan: Esim. 30 cm mahdollistaa vain matalat pensaat; vähintään 60 cm vaaditaan suuremmille puuvartisille: Katso: RT 85-11204 Viherkatot ja katto- ja kansipuutarhat, kasvillisuus ja kasvualusta; Taulukko 14)","Viherkatot vähentävät rakennusten enengiankulutusta ja tämän myötä kasvihuonekaasupäästöjä. Viherkatot tarjoavat elinympäristöjä ja ravintoa muun muassa erilaisille hyönteislajeille sekä niitä ravintonaan käyttäville linnuille.",1.5,"Viherkatot ovat toiminnallisuuden osalta verrattavissa nurmikon kaltaiseen matalaan kasvillisuuteen. Viherkatot tarjoavat esimerkiksi mahdollisuuden hyötyviljelyyn ja vähentävät ilman epäpuhtauksia.",1.5,"Viherkatot ovat merkittäviä maisemalle, sillä ne lisäävät vehreyttä siellä, missä normaalisti olisi läpäisemätöntä pintaa. Lisäksi viherkatot näkyvät usein pidemmälle kuin esimerkiksi matalat perennat. Monilajiset ja esimerkiksi maksaruoho(Sedum)-peitteellä varustetut viherkatot ovat myös monivärisiä ja luovat vuodenaikaisvaihtelua. Mitä paksumpi kasvualusta viherkatolla on, sitä suurempi valikoima istutettavassa kasvillisuudessa on. Arvioitu perennoja vastaava maisema-arvo.",2,"Hoitotarve yli 3 kertaa vuodessa. Vaatii vedenpoistojärjestelmien ja kasvillisuuden hoitoa sekä roskien, puuntaimien ja lumen poistoa (10). Viherkaton lisääminen jälkikäteen rakennukseen vaatii usein kantavuuden lisäämistä rakenteellisilla muutoksilla.",1,"Viherkatot ovat hulevesien hallinnan osalta verrattavissa nurmikon kaltaiseen matalaan kasvillisuuteen. Viherkatto yli 0,3 m syvällä kasvualustalla on kuitenkin merkittävämpi hulevesien hallinnalle kuin nurmikko (0,05-0,2 m kasvualusta). Soveltuu hyvin hulevesien määrän hallintaan (10).",2.5,2.0329861111111112]
[null,"Viherkatto: Niitty, keto tai heinä, kasvualustan paksuus 10 – 29 cm (paksuus toivotun lajiston mukaan: Esim. 10 cm mahdollistaa kuivan ketokaton; vähintään 15 cm vaaditaan rehevämmälle niittykatolle: Katso: RT 85-11204  Viherkatot ja katto- ja kansipuutarhat, kasvillisuus ja kasvualusta; Taulukko 14)","Ekologisuus vertailukelpoisempi kattopuutarhan kuin maksaruohokaton kanssa, sillä 10-29 cm paksuiselle viherkatolle voi istuttaa  jo hyvinkin monimuotoista kasvillisuutta. ",1.5,"Toiminnallisuus sama kuin paksummalla viherkatolla, mutta pienemmässä mittakaavassa, sillä ohuemmalle kasvualustalle ei ole mahdollista istuttaa yhtä monipuolista kasvillisuutta. ",1,"Maisema-arvo sama kuin paksummalla viherkatolla, mutta pienemmässä mittakaavassa, sillä ohuemmalle kasvualustalle ei ole mahdollista istuttaa yhtä monipuolista kasvillisuutta. ",1.5,"Hoitotarve sama kuin paksummalla viherkatolla.",1,"Hulevesien hallinnan potentiaali sama kuin paksummalla viherkatolla, mutta pienemmässä mittakaavassa ohuemman kasvualustan vuoksi. ",2,1.6722222222222221]
[null,"Viherkatto: Maksaruoho- tai sammalkatto, kasvualustan paksuus 4 – 9 cm","Ekologisuus sama kuin paksummalla viherkatolla, mutta pienemmässä mittakaavassa.",1,"Toiminnallisuus sama kuin paksummalla viherkatolla, mutta pienemmässä mittakaavassa. Ei kuitenkaan siinä määrin havaittavaa eroa, että vaikuttaisi painotukseen. ",1,"Maisema-arvo sama kuin paksummalla viherkatolla, mutta pienemmässä mittakaavassa. Ei kuitenkaan siinä määrin havaittavaa eroa, että vaikuttaisi painotukseen.",1.5,"Hoitotarve sama kuin paksummalla viherkatolla.",1,"Hulevesien hallinnan potentiaali sama kuin paksummalla viherkatolla, mutta pienemmässä mittakaavassa ohuemman kasvualustan vuoksi. ",1.5,1.3885416666666663]
[null,"Imeytysallas tai -painanne matalalla kasvillisuus- tai kiviainespinnalla (ei pysyvää vesipintaa, läpäisevä maaperä), viivyttävä rakenne (V)","Pienempi merkitys monimuotoisuudelle ja hiilensidonnalle kuin sadepuutarhalla.",2.5,"Pienempi merkitys pienilmaston tasaamisessa kuin sadepuutarhalla. Mahdollistaa suurelta osin samat toiminnot kuin nurmikko ja läpäisevät pinnoitteet.",1.5,"Maisema-arvo riippuu painanteen toteutustavasta. Tyypillisesti sora- ja nurmipeitteellä varustettu painanne verrattavissa kyseisien elementtien maisema-arvoon.",1,"Hoitotarve riippuu toteutustavasta. Nurmipinta verrattavissa nurmikkoon (0,5), kiviainespintaa hoidettava harvemmin. Keskimääräinen hoitotarve (1-2 kertaa vuodessa/ kerran kuukaudessa) = 1. Vaatii roskien ja kiintoaineksen poistoa, suodattavan kerroksen läpäisevyyden ylläpitoa, kaivon lietepesän tyhjennystä (kerran vuodessa) (10)",1,"Erittäin suuri merkitys hulevesien määrälliselle ja laadulliselle hallinnalle (10). ",3,2.306597222222222]
[null,"Imeytyskaivanto (esim. kivipesä), viivyttävä rakenne (V)","Ei merkitystä monimuotoisuudelle ja hiilensidonnalle. Toisaalta vapauttaa tilaa kasvillisuudelle tai muulle maankäytölle maan pinnalla.",2,"Ei merkitystä pienilmaston tasaamiselle. Toiminnallisuutta lisää mahdollisuus muiden toimintojen sijoittamiseen kaivannon päälle.",1,"Ei merkitystä maisemalle",0,"Hoitotarve pienempi kuin kasvillisuuspintaisella rakenteella. Vaatii roskien ja kiintoaineksen poisto, suodattavan kerroksen läpäisevyyden ylläpito, kaivon lietepesän tyhjennys (kerran vuodessa) (10)",1.5,"Pienempi merkitys pienvesien virtaamien tasaamisessa ja eroosion ehkäisyssä kuin imeytyspainanteella. ",1.5,1.7729166666666665]
[null,"Lampi, kosteikko tai tulvaniitty luonnonmukaisella kasvillisuudella (ainakin osan vuodesta pysyvä vesipinta; muun ajan maa pysyy kosteana); Katso: Hagelberg et al., 2009 (18), viivyttävä rakenne (V)","Luonnonmukainen kasvillisuus tärkeää monimuotoisuudelle, elinympäristöille ja ekologiselle verkostolle. Runsaan kasvillisuuden ansiosta myös merkitystä hiilensidonnalle. Huom. Vieraslajeja ja muita aggressiivisesti leviäviä lajeja vältettävä.",3,"Runsaan kasvillisuuden ansiosta merkitys pienilmaston säätelylle sekä luonnosta oppimiselle.",2,"Koettu masema-arvo jakaa mielipiteitä. Soveltuu  väljään yhdyskuntarakenteeseen, jossa suositaan luonnonmukaisempaa kasvillisuutta.",1.5,"Kosteikkokasvillisuus vaatii jonkin verran hoitoa monipuolisen kasvivalikoiman säilyttämiseksi, umpeenkasvun estämiseksi ja toimivuuden takaamiseksi. Esim. Tasausaltaan ja purku-uomien tai -putkien puhdistamisesta  huolehdittava. Arvioitu tarve kasvillisuuden hoitoon ja rakenteiden toimivuuden varmistamiseen 1-2 kertaa vuodessa; ruoppaus 10-15 vuoden välein. (10)",2,"Imeytyspainanne soveltuu hyvin hulevesien määrän ja laadun hallintaan (10).",3,2.7163194444444443]
[null,"Viivytys- tai pidätysallas tai -painanne matalalla kasvillisuus- tai kiviainespinnalla (ainakin osan vuodesta pysyvä vesipinta; muun ajan maa pysyy kosteana), viivyttävä rakenne (V)","Samat toiminnot kuin kosteikolla. Pienempi merkitys monimuotoisuudelle sekä hiilensidonnalle.",2,"Toiminnallisuus verrattavissa imeytyspainanteeseen.",1.5,"Maisema-arvo riippuu painanteen toteutustavasta. Tyypillisesti sora- ja nurmipeitteellä varustettu painanne verrattavissa kyseisien elementtien maisema-arvoon.",1,"Hoitotarve verrattavissa imeytyspainanteeseen. Sis: kasvillisuuden tai kiviainespinnan hoito, purkuputken tai maapadon toimivuuden tarkkailu sekä\nroskien ja kiintoaineksen poisto tarvittaessa (10)",1,"Samat toiminnot kuin kosteikolla, mutta pienempi määrällinen ja laadullinen merkitys hulevesien hallinnalle.",2.5,2.0229166666666663]
[null,"Viivytyskaivanto tai -säiliö (maanalainen), viivyttävä rakenne (V)","Samat toiminnot kuin viivytyspainanteella. Ei merkitystä monimuotoisuudelle ja hiilensidonnalle. Toisaalta vapauttaa tilaa kasvillisuudelle tai muulle maankäytölle maan pinnalla.",1.5,"Ei merkitystä pienilmaston tasaamiselle. Toiminnallisuutta lisää mahdollisuus muiden toimintojen sijoittamiseen kaivannon päälle.",1,"Ei merkitystä maisemalle",0,"Hoitotarve verrattavissa imeytyskaivantoon. Sis: esim. salaojajärjestelmän huuhtominen ja kiintoaineksen poisto imumenetelmällä (10)",1.5,"Samat toiminnot kuin viivytyspainanteella, mutta pienempi merkitys hulevesien laadullisessa hallinnassa. ",1.5,1.489236111111111]
["Takaisin","Biosuodatuspainanne tai -allas (esim. tienvarsipainanne), biosuodatusrakenne (B), viivyttävä rakenne (V)","Samaa merkitystä hiilensidonnalle ja luonnon monimuotoisuudelle kuin viivytys- tai pidätysaltaalla.",2,"Sama merkitys pienilmaston säätelylle ja luonnosta oppimiselle kuin viivytys- tai pidätysaltaalla.",2,"Maisema-arvo riippuu painanteen toteutustavasta. Tyypillisesti vertailukelpoinen viivytys- tai pidätysaltaan kanssa.",1.5,"Hoitotarve verrattavissa imeytyskaivantoon. Sis: esim. salaojajärjestelmän huuhtominen ja kiintoaineksen poisto imumenetelmällä (10)",1.2,"Samat toiminnot kuin viivytys- tai pidätysaltaalla, mutta lisäksi tehostettu puhdistusvaikutus.",3,2.4117361111111109]
["Bonuselementit","Hulevesien ohjaaminen läpäisemättömiltä pinnoilta läpäisevälle kasvillisuudelle maassa","Ekologisuutta lisää myös vesijohtoveden vähentäminen kastelussa.",1,"Toiminnallisuutta lisää mahdollisuus hyödyntää hulevesiä kasvillisuuden hoidossa.",0.5,"Ei merkitystä maisemalle",0,"Kunnossapitotarve riippuu rakenteesta. Vaatii todennäköisesti roskien poistoa ja vettä johtavien putkien puhdistamista 1-2 kertaa vuodessa tai useammin. (10)",0.5,"Merkitystä hulevesien hallinnalle, mutta riippuu ohjaamisreitin toteuttamisesta ja kunnosapidosta.",0.5,0.66388888888888875]
[null,"Hulevesien ohjaaminen läpäisemättömiltä pinnoilta rakennettuihin vesiaiheisiin, kuten lampiin ja puroihin (joissa vesi vaihtuu/kiertää)","Merkitystä erityisesti monimuotoisuudelle, mutta myös hiilensidonnalle.",1,"Mahdollisuus vesileikkeihin ja luonnosta oppimiseen. Toiminnallisuutta vähentävät turvallisuusnäkökohdat ja usein vesiaiheisiin liittyvät hyöntesiet kuten hyttyset",0.5,"Vesiaiheilla on huomattava merkitys maisemalle",1,"Arvioitu kunnossapitotarve 1-2 kertaa vuodessa tai useammin; riippuu rakennettavan vesiaiheen tyypistä. Usein vaatii roskien poistoa ja vesiaiheeseen johtavien putkien puhdistamista. (10)",0.5,"Merkitystä hulevesien hallinnalle, mutta riippuu ohjaamisreitin ja liitetyn vesiaiheen toteuttamisesta ja kunnosapidosta.",0.5,0.83263888888888871]
[null,"Jalopuut ja metsähaapa, istutettava tai säilytettävä isokokoinen puu (à 25 m²)","Jalopuilla ja metsähaavalla on erittäin suuri merkitys uhanalaisten lajien säilymiselle. Ne ovat ns. avainlajeja (12), eli niiden säilyttämisestä ovat riippuvaisia lukuisat muut lajit. Jalopuista koostuvat metsiköt ovat hyvin merkittävä elinympäristö (4). Yksittäiset istutetut puut eivät luonnollisesti ole verrattavissa luonnonmetsään; esimerkiksi yksittäisten puistopuiden on kuitenkin huomattu toimivan elinympäristöinä monille harvinaisille kääville (5) ja hyönteisille. Lehtipuut myös parantavat maaperää havupuihin nähden ravinteisemmalla lehtikarikkeellaan (11).",1,"Lehtipuilla pienempi merkitys pienilmaston säätelyssä havupuihin nähden (pienempi lehtialaindeksi, lehdettömyys talvella) (11)",0.5,"Jalopuut ovat erittäin suosittuja maisemapuita Helsingissä",1,"Jalopuut usein suojattava kasvinsyöjiltä taimivaiheessa. Vakiinnuttua ei kuitenkaan suurta kunnossapidon tarvetta (Huom. Jalopuiden käytössä vältettävä yksinomaan jalavien (Ulmus) käyttöä jalavantaudin vuoksi)",1,null,null,0.77777777777777768]
[null,"Havupuut, istutettava tai säilytettävä isokokoinen puu (à 25 m²)","Havupuilla jalopuita suurempi merkitys hulevesienhallinnalle ikivihreyden ja suuremman lehtialaindeksin ansiosta (11)",0.5,"Havupuilla erittäin suuri merkitys pienilmaston säätelyssä suuren lehtialan ja ikivihreyden ansiosta - suoja melulta, tuulelta ja ilmansaasteilta",1,"Havupuiden merkitys maisemassa korostuu erityisesti talvella muun (lehdellisen) kasvillisuuspeitteen vähentyessä",1,"Vakiinnuttua ei suurta kunnossapidon tarvetta. Havupuut ovat kuitenkin usein herkempiä ilmansaasteille kuin lehtipuut (harsuuntuminen) (15)",1,null,null,0.77048611111111098]
[null,"Havupuut, istutettava tai säilytettävä pienikokoinen puu (à 15 m²)","Havupuilla jalopuita suurempi merkitys hulevesienhallinnalle ikivihreyden ja suuremman lehtialaindeksin ansiosta (11)",0.5,"Havupuilla erittäin suuri merkitys pienilmaston säätelyssä suuren lehtialan ja ikivihreyden ansiosta - suoja melulta, tuulelta ja ilmansaasteilta",1,"Havupuiden merkitys maisemassa korostuu erityisesti talvella muun (lehdellisen) kasvillisuuspeitteen vähentyessä",1,"Vakiinnuttua ei suurta kunnossapidon tarvetta. Havupuut ovat kuitenkin usein herkempiä ilmansaasteille kuin lehtipuut (harsuuntuminen) (15)",1,null,null,0.77048611111111098]
[null,"Varjostava isokokoinen puu (à 25 m²) rakennuksen etelä- ja lounaispuolella (erityisesti lehtipuut) ","Merkitys hiilensidonnalle ja monimuotoisuudelle.",0.5,"Varjostavat puut auringon tulosuunnassa vähentävät rakennusten viilentämistarvetta kesäisin. ",1,"Puilla on merkittävä arvo maisemassa",1,"Ei merkittävää kunnossapitotarvetta.",1,"Isokokoisella istutettavalla puulla on samakaltaiset hyödyt kuin vastaavalla säilytettävällä puulla, mutta hyödyt realisoituvat usein vasta vuosien päästä.",0.5,1.020486111111111]
[null,"Varjostava pienikokoinen puu (à 15 m²) rakennuksen etelä- ja lounaispuolella (erityisesti lehtipuut) ","Merkitys hiilensidonnalle ja monimuotoisuudelle.",0.5,"Varjostavat puut auringon tulosuunnassa vähentävät rakennusten viilentämistarvetta kesäisin. ",1,"Puilla on merkittävä arvo maisemassa",1,"Ei merkittävää kunnossapitotarvetta.",1,"Pienikokoisella istutettavalla puulla on samankaltaiset hyödyt kuin istutettavalla isolla puulla, mutta pienemmässä mittakaavassa (kasvin ja kasvualustan koko).",0.5,1.020486111111111]
[null,"Viljelyyn soveltuvat istutukset: hedelmäpuut (à 10 m²), marjapensaat (à 10 m²)","Monivuotiset hedelmäpuut ja marjapensaat ovat tärkeitä monimuotoisuudelle (pölyttäminen, ravintokasvina toimiminen), hiilensidonnalle ja hulevesien hallinnalle.",1,"Merkitystä virkistyskäytölle (esim. hyötyviljelylle) ja luonnosta oppimiselle.",1,"Usein kasvukauden alussa kukkivat ja myöhemmin hedelmiä tuottavat puut ovat hyvin arvokkaita maisemalle. Marjoja tuottavat pensaat ovat hyvin arvokkaita maisemalle. ",1,"Hedelmäpuut ja marjapensaat vaativat  hoitoa vähintään 2 kertaa vuodessa (lannoitus, leikkaus) minkä lisäksi ne on usein suojattava kasvinsyöjiltä.",0.5,"Istutettavalla pienemmällä pensaalla on samankaltaiset hyödyt kuin istutettavalla suurella pensaalla, mutta pienemmässä mittakaavassa (kasvin ja kasvualustan koko).",0.5,1.1090277777777777]
[null,"Viljelyyn soveltuvat marjapensaat (à 3 m²)","Monivuotiset marjapensaat ovat tärkeitä monimuotoisuudelle (pölyttäminen, ravintokasvina toimiminen), hiilensidonnalle ja hulevesien hallinnalle.",1,"Merkitystä virkistyskäytölle (esim. hyötyviljelylle) ja luonnosta oppimiselle.",1,"Marjoja tuottavat pensaat ovat hyvin arvokkaita maisemalle. ",1,"Marjapensaat vaativat  hoitoa vähintään 2 kertaa vuodessa (lannoitus, leikkaus) minkä lisäksi ne on usein suojattava kasvinsyöjiltä.",0.5,null,null,0.85902777777777772]
[null,"Monikerroksinen, luonnonmukaisesti kehittyvä kasvillisuus, väh. 5 luonnonlajia /100 m² (suositeltavaa olla vähintään kaksi kerrosta, kuten kenttä- ja pensaskerros tai pensas- ja puukerros)","Monikerroksinen, luonnonmukainen kasvillisuus tärkeää monimuotoisuudelle, elinympäristöille ja ekologiselle verkostolle. Alueelle soveltuva kasvillisuus vähentää myös hoitotarvetta, mikä lisää ekologisuutta.",1,"Merkitys pienilmastolle muun muassa tuulisuuden torjunnan kautta. Merkitystä luonnosta oppimiselle.",1,"Alueelle soveltuvat lajit lisäävät maisema-arvoa.",1,"Vakiinnuttua ei suurta kunnossapidon tarvetta. Alueelle soveltuva kasvillisuus vähentää merkittävästi hoitotarvetta.",1,"Monikerroksisella kasvillisuudella suurempi vaikutus hulevesien hallinnalle käsittelyn ja imeytymisen kautta.",1,1.0541666666666665]
[null,"Helsingille ominaiset puulajit ja kukkivat puut ja pensaat - väh. 3 lajia/100 m²","Tärkeää monimuotoisuudelle, elinympäristöille ja ekologiselle verkostolle. Alueelle soveltuva kasvillisuus vähentää myös hoitotarvetta, mikä lisää ekologisuutta.",1,"Merkitys pienilmastolle ja luonnosta oppimiselle.",0.5,"Alueelle soveltuvat lajit lisäävät maisema-arvoa. Erityisesti kukkivat lajit arvokkaita maiseman kannalta.",1,"Vakiinnuttua ei suurta kunnossapidon tarvetta. Alueelle soveltuva kasvillisuus vähentää merkittävästi hoitotarvetta.",1,"Vain pieni vaikutus hulevesien hallinnalle.",0.5,1.0277777777777777]
[null,"Monilajinen kukkiva kasvillisuus, jota alueelle ominaiset pölyttäjälajit kykenevät hyödyntämään, väh. 10 pölyttäjille tärkeää lajia/100 m² ","Merkitys pölyttäjien tukemiselle. Alueelle ominaisen pölyttäjälajiston mukaan valitut monilajiset kasvialueet tärkeitä pölyttäjille, kuten perhosille  (16, 17). Tärkeää monimuotoisuudelle, elinympäristöille ja ekologiselle verkostolle. ",0.5,"Merkitys erityisesti luonnosta oppimiselle ja havainnoinnille.",1,"Kukkivat kasvit ovat erityisen merkittäviä maisemalle. ",1,"Hoito esimerkiksi niityillä perustamisvaiheessa 1-2 kertaa vuodessa tai useammin, mikäli alueella esiintyy rikkakasveja. Myöhemmin niitto kerran vuodessa. Kukkivat pensaat ja puut voivat olla helppohoitoisempia.",0.5,"Erittäin pieni vaikutus hulevesien hallinnalle.",0.1,0.82055555555555559]
[null,"Näyttävästi kukkivat/tuoksuvat istutukset","Kukkivat ja tuoksuvat kasvit ovat usein merkittäviä myös pölyttäjille (13) - merkitys monimuotoisuudelle.",0.5,"Merkitys erityisesti luonnosta oppimiselle.",1,"Kukkivat ja värikkäät kasvit ovat erityisen merkittäviä maisemalle. ",1,"Kukkivilla kasveilla usein suurempi hoitotarve.",0.5,null,null,0.70034722222222212]
[null,"Viljelylaatikot","Viljelylaatikoiden ekologinen arvo arvioitu vastaamaan näyttävästi kukkivia ja tuoksuvia istutuksia. Viljelylaatikon merkitys hulevesilleon kuitenkin rajallinen.",0.5,"Merkitystä virkistyskäytölle (esim. hyötyviljelylle) ja luonnosta oppimiselle.",1,"Viljelylaatikot voivat tuoda monipuolisuutta maisemaan esimerkiksi kukkivien kasvien ansiosta. Viljelyn kausiluonteisuus ja mahdollinen hoitamattomuuden aiheuttama epäsiisteys vähentävät sitä.",0.5,"Viljelyyn soveltuvat alueet vaativat usein runsaasti hoitoa, mutta hoidosta vastaavat asukkaat. Taloyhtiölle todennäköisesti kunnosspitovastuu itse viljelylaatikoista.",0.5,"Erittäin pieni vaikutus hulevesien hallinnalle.",0.1,0.64097222222222217]
[null,"Leikkimiseen tai urheiluun osoitettu läpäisevä pinta (esim. hiekka- tai sorapintaiset leikkipaikat, urheilukenttänurmi)","Läpäisevä pinta merkittävä hulevesien hallinnalle.",0.5,"Monikäyttöiset pinnat lisäävät toiminnallisuutta.",1,"Ei merkittävää maisema-arvoa",0,"Viherpinnan kuluminen ja monikäyttöisyyden luomat vaatimukset lisäävät kunnossapidon tarvetta.",0,"Läpäisevä pinta plussaa hulevesien hallinnalle.",1,0.58645833333333319]
[null,"Yhteiskäytössä olevat kattoterassit, joissa kasvillisuutta vähintään 10 % pinta-alasta","Mahdollinen merkitys monimuotoisuudelle ja hiilensidonnalle",0.5,"Merkitys hyötyviljelylle, yhteisöllisyydelle ja luonnosta oppimiselle",1,"Viherpinnan lisääminen luo maisema-arvoa",0.5,"Ruukuissa kasvattaminen lisää kasvien hoitotarvetta.",0,"Merkitys riippuu pinta-alasta, mutta varmasti pienempi kuin maksaruohokatolla.",0.25,0.54583333333333317]
[null,"Säilytettävä kuollut maapuu/kanto  (à 5 m²)","Lahoamaan jätetty puu tarjoaa elinympäristöjä ja ravintoa suurelle osalle uhanalaisista metsälajeista. Erityisesti järeällä, jo lahonneella puulla on erittäin suuri merkitys lajiston ja elinympäristöjen monimuotoisuusdelle ja ekologiselle verkostolle (4, (6-8). ",1,"Toiminnallisuutta lisää mahdollisuus oppia luonnosta. Maapuut voivat myös toimia tilanjakajina (ohjaten kulkua esim. polkujen reunoilla) sekä leikkiympäristöinä. ",1,"Kuolleen puun maisema-arvo on hyvin subjektiivinen. Erityisesti järeää puuta voi hyödyntää (ja hyödynnetään nykyäänkin) tilanjakajana tontilla; toisaalta lahoava puu voidaan kokea epäsiistiksi erityisesti edustusympäristössä.",1,"Ei vaadi lainkaan kunnossapitoa. Lahoaminen ja hajoaminen ovat luontaista maapuulle. ",1,null,null,0.92916666666666647]
["Takaisin","Luonnonmonimuotoisuuden ja eläimistön elinolosuhteiden tukeminen (à 5 m², esim. lahopuu/maapuu, lahopuuaita, lehtikomposti, hyönteishotelli)","Lahoamaan jätetty puu tarjoaa elinympäristöjä ja ravintoa suurelle osalle uhanalaisista metsälajeista. Erityisesti järeällä, jo lahonneella puulla on erittäin suuri merkitys lajiston ja elinympäristöjen monimuotoisuusdelle ja ekologiselle verkostolle (4, (6-8). Linnunpöntöillä ja hyönteishotelleilla voi olla paikallisesti suuri merkitys lajistolle.",1,"Merkitys erityisesti luonnosta oppimiselle ja havainnoinnille. Maapuita voi käyttää leikki-, kuntoilu- ja oleskelutarkoitukseen. Kompostilla ja lahopuutarhalla lisäksi hyötykäyttömahdollisuus.",1,"Maisema-arvo riippuu kohteen koosta, toteutustavasta ja huollosta. Verrannollinen viljelylaatikkoon.",0.5,"Ei merkittävää kunnossapitotarvetta. Kompostilla ja linnunpöntöillä vuosittainen hoitotarve.",1,"Ei vaikutusta hulevesien hallinnalle.",0,0.84479166666666639]
[]
["Lähteet (numeroituna elementtien selityksissä):"]
[1,"Aylor, Donald. \"Noise reduction by vegetation and ground.\" The Journal of the Acoustical Society of America 51 (1972): 197."]
[2,"Ferris, R., and J. W. Humphrey. \"A review of potential biodiversity indicators for application in British forests.\" Forestry 72.4 (1999): 313-328."]
[3,"Tyrväinen, Liisa. \"The amenity value of the urban forest: an application of the hedonic pricing method.\" Landscape and Urban planning 37.3 (1997): 211-222."]
[4,"Meriluoto, Markku, and Timo Soininen. Metsäluonnon arvokkaat elinympäristöt. Metsälehti kustannus, 1998."]
[5,"Peuhu, E. and Siitonen, J. 2011. \"Ontot puistopuut ovat merkittävä elinympäristö monimuotoiselle lahopuueliöstölle.\" (2011)."]
[6,"Siitonen, Juha, et al. \"Coarse woody debris and stand characteristics in mature managed and old-growth boreal mesic forests in southern Finland.\" Forest Ecology and Management 128.3 (2000): 211-225."]
[7,"Vanha-Majamaa, Ilkka, and Jyrki Jalonen. \"Green tree retention in Fennoscandian forestry.\" Scandinavian Journal of Forest Research 16.S3 (2001): 79-90."]
[8,"Rosenvald, Raul, and Asko Lohmus. \"For what, when, and where is green-tree retention better than clear-cutting? A review of the biodiversity aspects.\" Forest Ecology and Management 255.1 (2008): 1-15."]
[9,"Palmberg, Irmeli E., and Jari Kuru. \"Outdoor activities as a basis for environmental responsibility.\" The Journal of Environmental Education 31.4 (2000): 32-36."]
[10,"Kuntaliiton hulevesiopas, 2012: http://www.kunnat.net/fi/asiantuntijapalvelut/yty/hulevesien_hallinta/Sivut/default.aspx"]
[11,"Augusto, Laurent, Jacques Ranger, Dan Binkley, and Andreas Rothe. \"Impact of several common tree species of European temperate forests on soil fertility.\" Annals of Forest Science 59, no. 3 (2002): 233-253."]
[12,"Bond, W. J. \"Keystone species.\" Biodiversity and ecosystem function. Springer Berlin Heidelberg, 1993. 237-253."]
[13,"Kremen, Claire, and Richard S. Ostfeld. \"A call to ecologists: measuring, analyzing, and managing ecosystem services.\" Frontiers in Ecology and the Environment 3.10 (2005): 540-548."]
[14,"Burgess, Stephen SO, et al. \"The redistribution of soil water by tree root systems.\" Oecologia 115.3 (1998): 306-311."]
[15,"http://www.metsavastaa.net/ilmansaasteet"]
[16,"Nieminen, M. ja Sundell, P.R. 2002. Kyläjoen eritasoliittymän perhosniittyjen uhanalaisten perhoslajien elinmahdollisuuksien selvitys ja seuranta \n"]
[17,"Nieminen, M. ja Kaitila, J-P. \"Saaristomeren kansallispuiston niittyjen ja hakojen perhoset.\" Metsähallituksen luonnonsuojelujulkaisuja, Sarja A: 111. (2000)"]
[18,"Hagelberg, E., A. Karhunen, A. Kulmala, ja R. Larsson. \"Käytännön kosteikkosuunnittelu [Wetland planning in practise].\" Publications of the Teho Project 1 (2009): 2009."]

{"sheet":"Kelpoisuusehdot","index":6,"n_rows":17,"n_cols":3,"rows_kept":17,"cut":false,"hidden":true,"merged":[]}
["Hulevesiratkaisun / Biosuodatusrakenteen paksuus keskisyvyys (m)","viivytystarve"," Biosuodatusrakenteen paksuus keskisyvyys (m)"]
[0,0,0]
[0.1,10,0.05]
[0.2,20,0.1]
[0.3,30,0.15]
[0.4,40,0.2]
[0.5,50,0.25]
[0.6,60,0.3]
[0.7,70,0.35]
[0.8,80,0.4]
[0.9,90,0.5]
[1,100,0.6]
[1.1000000000000001,null,0.7]
[1.2,null,0.8]
[1.3,null,0.9]
[1.4,null,1]
[1.5]

{"sheet":"Hulevesiratkaisut","index":7,"n_rows":36,"n_cols":2,"rows_kept":36,"cut":false,"hidden":false,"merged":[]}
[]
["Takaisin: Viherkerroin"]
[null,"Viherkatto\nViherkatolla tarkoitetaan yleisesti kasvillisuudella peitettyä katto- tai kansipintaa. Kasvillisuus viivyttää ja pidättää vettä ja vähentää näin syntyvien hulevesien määrää tasaten samalla virtaamapiikkejä. Viherkatot soveltuvat hyvin tiheästi rakennetuille alueille, joilla on niukasti tilaa maahan sijoitettaville käsittelymenetelmille. Viherkatot tuottavat myös muita hyötyjä: ne vähentävät melua, parantavat pienilmastoa, monipuolistavat maisemaa sekä tarjoavat elinolosuhteita monille pieneläinlajeille. Kasvillisuus voi myös pidentää katon elinikää suojaamalla sitä mm. UV-säteilyltä sekä lämpötilan vaihteluilta. \n\nEdellytyksenä viherkaton perustamiselle on katto- tai kansirakenteiden riittävä kantavuus ja vedeneristys. Viherkatto voidaan toteuttaa hyvin eri paksuisina - aina ohuesta maksaruohokatosta yli metrin paksuisen rakennekerroksen vaativaan kattopuutarhaan. Sopivimman kattokasvillisuustyypin valintaan vaikuttavat muun muassa katon kaltevuus ja kantavuus, paikan tuulisuus ja valoisuus, katon käyttötarkoitus sekä toivottava hoidon taso. Nyrkkisääntönä: vettä pidättyy viherkatolle sitä enemmän, mitä paksumpi ja loivempi se on."]
["Takaisin: Viherkerroin"]
[null,"Viherseinä\nViherseinä on ratkaisu, jossa kasvillisuus on integroitu osaksi rakennuksen julkisivua. Ne soveltuvat kohteisiin, joihin ei voida perustaa maantasolta tilaa vieviä hulevesiratkaisuja. Viherseinän perustamiseen on monia erilaisia tapoja: kasvillisuus voi olla maanvaraista, kasvualusta voi olla seinästä erillinen rakenne tai kasvit voivat olla myös kiinteä osa seinää. Hulevesien hallinnan kannalta olennaista on pinta-ala, joka potentiaalisesti pidättää, imee ja haihduttaa vettä samaan tapaan kuin viherkatto. \n\nViherseinät tarjoavat samantyyppisiä hyötyjä kuin viherkatot: ne mm. parantavat ilmanlaatua, säätelevät pienilmastoa ja paikallista äänimaisemaa, tarjoavat elinympäristöjä ja esteettisiä elämyksiä. Viherseinät ovat kuitenkin vaativia rakenteita, jotka edellyttävät säännöllistä ylläpitoa eli lannoitusta, kastelua, leikkausta ja paikkausta. Viherseinien talviaikaisen toimivuuden takaaminen on Suomen olosuhteissa haastavaa ja kokemuksia on vähän. "]
["Takaisin: Viherkerroin"]
[null,"Läpäisevä ja puoliläpäisevä pinnoite \nPinnoitteet voivat olla läpäiseviä (esim. sora ja hiekka), puoliläpäiseviä (esim. kivituhka, nurmikivi, terassi) tai läpäisemättömiä (tai heikosti läpäiseviä, esim. asfaltti, betoni). Huom. Terassirakenteet lasketaan puoliläpäiseviin pinnoitteisiin ainoastaan siinä tapauksessa, että niiden alusta on läpäisevä. Läpäisevät ja puoliläpäisevät pinnoitteet muodostuvat vettä läpäisevästä pintakerroksesta ja sen alapuolisista, karkeasta kiviaineksesta muodostuvista rakennekerroksista. Pintakerroksen läpäissyt hulevesi varastoituu hetkellisesti karkean kiviaineksen huokostilaan, mistä se imeytyy syvemmälle maaperään tai johdetaan eteenpäin salaojilla. Kansirakenteilla on myös mahdollista viivyttää jonkin verran hulevettä läpäisevien pinnoitteiden ja vettä varastoivien rakennekerrosten avulla. Rakenteiden kantavuudesta ja vedenpitävyydestä sekä ylivuodosta hulevesiviemäriin on tällöin huolehdittava.\n\nLäpäisevillä pinnoitteilla vähennetään huleveden määrää, sillä ne mahdollistavat huleveden osittaisen imeytymisen maaperään. Ne eivät kuitenkaan sovellu ympäriltä kerätyn huleveden käsittelyyn. Läpäiseviä päällysteitä käytetään tyypillisesti tiiviisti rakennetuilla alueilla, joilla halutaan mahdollistaa sujuva liikkuminen. Ne soveltuvat kohteisiin, joiden liikennemäärät ovat pieniä, kuten pysäköintialueille, huolto- ja pelastusreiteille sekä kevyen liikenteen väylille. "]
["Takaisin: Viherkerroin"]
[null,"Kanava ja kouru\nKanavat ja kourut ovat kovapintaisia vedenjohtamisrakenteita. Niitä voidaan valmistaa hyvin erilaisista materiaaleista ja niihin voidaan integroida myös kasvillisuutta. Hyvin suunniteltu kanava kerää ja ohjaa vettä, hidastaa virtamaa ja myös puhdistaa vettä alustavasti kiintoainesta laskeuttamalla ennen veden johtamista muihin hulevesien hallintaratkaisuihin. Kovapintaiset kanavat ovat tyypillisesti helppohoitoisia ja kustannustehokkaita. Kanavat ja kourut eivät pääsääntöisesti tue veden imeytymistä valuma-alueella. \n"]
["Takaisin: Viherkerroin"]
[null,"Oja ja hulevesiuoma \nOjat ja hulevesiuomat eroavat vettä johtavista kanavista ja kouruista luonnonmukaisempien materiaalien sekä muotoilun osalta. Ojien ja uomien pohja on usein läpäisevä, minkä lisäksi niissä voi olla kasvillisuutta, pohjapatoja tai pelkästään soraa ja yksittäisiä kiviä. Viherpainanteista ojat ja hulevesiuomat eroavat ensisijaisesti profiililtaan. Painanteen profiili on laakea, kun taas ojat ja uomat voivat olla jyrkkäreunaisiakin. Ne voivat olla ajoittain kuivia ja täyttyä virtaavasta vedestä vain sadannan yhteydessä. Kuten painanteen, myös ojan ja hulevesiuoman tarkoitus on viivyttää, puhdistaa ja mahdollisesti imeyttää hulevesiä sekä samanaikaisesti johtaa vettä eteenpäin kohti muita hallintarakenteita."]
["Takaisin: Viherkerroin"]
[null,"Viivytys- ja pidätysallas tai -painanne     (viivyttävä rakenne, V)\nYmpäröivää maastoa alempana oleva, kasvillisuuden tai kiviaineksen peittämä viivyttävä tai pidättävä allas tai painanne viivyttää, pidättää, imeyttää ja haihduttaa hulevettä parantaen samalla sen laatua. Viivytys tapahtuu rakenteen maakerroksissa ja altaiden tapauksissa lisäksi rakenteen pinnalla lammikossa.Viivytys- ja pidätysakenteissa ei ole pysyvää vesipintaa, vaan niiden tarkoitus on tasata hulevesivirtaamaa. Lammikoitumisen syvyyttä ja kestoa voidaan säädellä esimerkiksi rakenteeseen kytkettävällä purkuputkella tai maanpäällisellä purkureitillä varustetulla padolla. Katualueella viivytysrakenne varustetaan tavallisesti myös ylivuotokaivolla. Rakenteista voi myös sijoittaa peräkkäisiksi ketjuiksi, jolloin hulevesien käsittely tehostuu.\n\nKatualueelle sijoitettu viivytysrakenne on tyypillisesti integroitu osaksi kevyen liikenteen väylää ja sen tarkoituksena on käsitellä koko katuympäristön hulevesiä. Rakennetta reunustavat esimerkiksi aukotetut reunakivet, joiden läpi tai ali vesi pääsee kulkemaan rakenteeseen. Suurella pihalla tai puistoalueella viivytysallas voi olla pinta-alaltaan huomattavasti laajempi. Puistoalueella pidätys- tai viivytysrakenne voi muodostaa keskeisen maisemaelementin sekä tarjota monenlaisia mahdollisuuksia leikkiin, virkistykseen ja monimuotoiseen kasvillisuuden käyttöön. Esimerkiksi suuret kivet voivat lisätä rakenteen käyttömahdollisuuksia ja maisema-arvoa vedettöminä aikoina."]
["Takaisin: Viherkerroin"]
[null,"Katupuiden viivyttävä kasvualusta \nViivyttävä kasvualusta on järjestelmä, jossa katupuut on yhdistetty maanalaisella imeytys- / viivytysrakenteella. Ulospäin järjestelmä näyttää tavanomaiselta yksittäisten katupuiden sarjalta, jossa hulevedet ohjataan puiden juuristoalueelle. Pintarakenteiden alla on kuitenkin yhtenäinen kasvualustarakenne, joka mahdollistaa huleveden imeytymisen, viivytyksen sekä virtauksen kasvualustaa pitkin juuristolta toiselle. Samalla juuriston ja maaperän biologiset toiminnot puhdistavat vettä. Imeytymistä ja veden puhdistusta voidaan lisätä esimerkiksi lisäämällä kasvualustaan biohiiltä. Katujen väli- ja erotuskaistoilla, kivetyillä aukioilla sekä pysäköintialueilla voi olla kantavuusvaatimuksia, jotka tulee ottaa kasvualustojen suunnittelussa huomioon. "]
["Takaisin: Viherkerroin"]
[null,"Imeytysallas ja -painanne     (viivyttävä rakenne, V)\nImeytysaltaat ja -painanteet ovat kasvillisuuden tai kiviaineksen peittämiä alueita, jotka ovat ympäristöään alemmalla tasolla. Niiden tarkoitus on viivyttää, puhdistaa ja imeyttää hulevesiä ja mahdollisesti johtaa vettä eteenpäin kohti muita hallintarakenteita. Imeytysallas tai -painanne voi olla esimerkiksi pitkittäinen rakenne kadun varrella. Peräkkäiset rakenteet voivat muodostaa sarjan tai ketjun. Rakenteeseen voidaan asentaa erilaisia pohjapatoja tai –valleja edesauttamaan sedimenttien laskeutumista, virtaaman hidastumista ja huleveden imeytymistä maaperään. \n\nImeytys vaatii läpäisevän maaperän ja soveltuu parhaiten suhteellisen puhtaiden hulevesien käsittelyyn. Erityisen likaisia hulevesiä (esim. raskaasti liikennöityjen katujen hulevedet) ei tule imeyttää suoraan maaperään, vaan niiden käsittelyssä tulee suosia pidätys- tai viivytysrakenteita. Imeyttävässä rakenteessa ei yleensä ole lammikoitumisen (viivytyksen) vaatimaa varastointitilavuutta eikä purkuputkia tai ylivuotokaivoja lisäpuhdistusta kaipaavan veden eteenpäin johtamiseen."]
["Takaisin: Viherkerroin"]
[null,"Imeytyskaivanto (esim. kivipesä)     (viivyttävä rakenne, V)\nKivipesä sijaitsee pääosin maan alla. Se on tyypillisesti karkean soran, sepelin tai kivien avulla toteutettu pistemäinen rakenne, johon esimerkiksi rakennuksen katolta johdetut huleveden varastoituvat ennen imeytymistä maaperään tai johtamista eteenpäin salaojan tai putken avulla. Rakenne voi olla myös nauhamainen ja sisältää rakeisuudeltaan vaihtelevaa materiaalia. Tyypillisesti pinnalla olevat mukulakivet ovat kookkaita, jotta niiden pinta sulaa nopeasti keväällä eikä jäädy helposti vaikka lämpötilat vaihtelisivat nollan molemmin puolin. \n"]
["Takaisin: Viherkerroin"]
[null,"Biosuodatuspainanne tai -allas   (biosuodatusrakenne, B; viivyttävä rakenne, V)\nBiosuodatusaltaita ja -painanteita on tyypillisesti sovellettu alueila, joilta valuvat huevedet vaativat tehostetumpaa puhdistusta (esim. liikenneympäristöt). Biosuodatusaltaat ja -painanteet vastaavat kasvillisuuspeitteisten imeytysaltaiden- ja painanteiden toimintaa, mutta biosuodatusrakenteen puhdistustehoa lisää erityisen runsas kasvillisuus sekä suodattavat maaperäkerrokset. Hiekka-, sora- tai muiden puhdistavien maaperäkerrosten mikrobitoiminta tehostaa entisestään hulevesien puhdistumista. Biosuodatuksella voidaan näin ollen puhdistaa tehokkaammin esimerkiksi katualueiden hulevesiä. "]
["Takaisin: Viherkerroin"]
[null,"Sadepuutarha    (biosuodatusrakenne, B; viivyttävä rakenne, V)\nPiha-alueella olevaa viivytysallasta voidaan kutsua myös sadepuutarhaksi. Sinne johdetaan kattovedet ja mahdollisten kulku- ja pysäköintialueiden vedet. Vesi johdetaan rakenteeseen pintavaluntana ja siitä edelleen ylivuotorakenteen kautta imeytettäväksi toiseen rakenteeseen (tai sadevesiviemäriin), mikäli vettä ei pystytä imeyttämään. Sadepuutarhassa on tyypillisesti monimuotoinen kasvillisuus ja se voi muodostaa koko pihan näyttävän kiintopisteen. Ja kuten nimikin sen jo kertoo, kyse on puutarhamaisesta rakenteesta, joka vaatii kukoistaakseen hoitoa ja vaalimista. \n"]
["Takaisin: Viherkerroin"]
[null,"Lampi     (viivyttävä rakenne, V)\nLammessa on pysyvä vesipinta ja se tasaa hulevesivirtaamaa. Myös veden laatu paranee, sillä hulevedessä olevat kiintoainekset laskeutuvat rakenteen pohjalle. Lampi mahdollistaa monimuotoisen kasvillisuuden käytön, koska lammesta ja sen reunoilta löytyy valikoima erilaisia kasvupaikkoja. Pysyvä vesipinta tarjoaa elinympäristöjä esimerkiksi sammakkoeläimille ja lammessa voi elää myös kaloja. Pysyvä vesipinta tarjoaa myös maisema- ja virkistysarvoja.\n"]
["Takaisin: Viherkerroin"]
[null,"Rakennettu kosteikko     (viivyttävä rakenne, V)\nRakennettu kosteikko on laaja, runsaskasvuinen vesialue, jotta käytetään huleveden viivyttämiseen ja puhdistamiseen. Hulevesien hallintaan suunnitellut kosteikot ovat yleensä moniosaisia, koostuen laskeutusaltaasta ja pääaltaasta. Lisäksi kosteikossa voi olla erilaisia ohivirtauskanavia. Hyvin suunniteltu ja ylläpidetty kosteikko puhdistaa tehokkaasti hulevesissä olevaa kiintoaineista, metalleja, pienhiukkasia ja ravinteita. Kosteikon tulee kuitenkin olla asianmukaisesti mitoitettu suhteessa valuma-alueeseen, jotta se toimii oikein. Kosteikko vaatii useimmiten laajan tilavarauksen mahdollisine tulvaniittyineen, eikä ole sen takia tyypillinen rakenne katualueilla tai pihassa. Pihojen pienialaiset, kosteikkomaiset hulevesirakenteet ovat usein sadepuutarhoja. Rakennettu kosteikko sijoittuu tyypillisesti puistoon, jolloin se on myös aktiivisessa virkistyskäytössä ja tarjoaa elinympäristöjä monille lintu- ja hyönteislajeille. \n"]
["Takaisin: Viherkerroin"]
[null,"Suodatuskaista\nSuodatuskaistat ovat loivasti viettäviä kasvillisuuden peittämiä alueita, jotka mahdollistavat huleveden hitaan johtamisen pintakerrosvaluntana ja imeyttämisen siellä missä se on maaperän puolesta mahdollista. Tyypillisesti suodatuskaistat sijoitetaan läpäisemättömän pinnan, kuten pysäköintialueen ja vastaanottavan pintavesiuoman tai toisen hulevesien hallintarakenteen väliin suorittamaan huleveden laadullista esikäsittelyä. \n\n"]
["Takaisin: Viherkerroin"]
[null,"Viivytyskaivanto tai -säiliö (maanalainen)\nViivytyskaivannot ja -säiliöt ovat ratkaisu erittäin tiiviisti rakennettujen tai laajojen läpäisemättömien pintojen luonnehtimien alueiden maanalaiseen hulevesien viivytykseen. Niitä hyödynnetään esimerkiksi teollisuus- ja logistiikka-alueilla, joilla ei ole mahdollisuutta maanpinnalla tapahtuvaan hulevesien käsittelyyn ja joilla tulee voida liikennöidä raskailla ajoneuvoilla. Viivytys voidaan toteuttaa esimerkiksi muovikennostoilla (kaseteilla), säiliöillä tai putkilla, joiden mitoitus määräytyy alueen viivytystarpeen mukaan. Viivytyskaivannot ja -säiliöt edellyttävät muiden hulevesirakenteiden tapaan säännöllistä huoltoa.\n\n"]
["Takaisin: Viherkerroin"]
[null,"Sadevesisäiliö\nSadevesisäiliö voi olla rakennukseen integroitu tai siitä erillinen säiliö, joka kerää tyypillisesti kattovesiä ja tasaa siten virtaamia. Vesi voidaan säiliöstä johtaa eteenpäin toiseen hulevesien hallintaratkaisuun ja siitä tarvittaessa ylivuotona hulevesiverkostoon tai hyödyntää muun muassa kastelu- tai pesuvetenä tontilla. Hulevesisäiliö voidaan myös sijoittaa maan alle esimerkiksi sadevesikaivona, josta vettä voidaan pumpata käsipumpulla pihan tarpeisiin.\n"]
["Takaisin: Viherkerroin"]
[]
["Kuvat: Mari Ariluoma, Eeva Eitsi, Elisa Lähde, Caroline Moinel, Suvi Tyynilä"]